Directorate,Department,Expenditure Type,Ref.Doc.1,Vendor ,Expenditure Amount (exc VAT),Payment Date
Assurance,Governance,Equipment and Materials Purchase,10005800,PITNEY BOWES FINANCE PLC,"1,333.33",11/08/2014
Assurance,Governance,Furniture-Purchase-Repair,10006260,CITY FURNITURE HIRE LIMITED,915.12,14/08/2014
Assurance,Governance,Postage,10005683,FINANCIAL DATA MANAGEMENT LTD,"1,487.85",07/08/2014
Assurance,Governance,Rents,10005678,SARACENS LTD,"50,385.50",08/08/2014
Assurance,Governance,Service Charges,10005651,COMER PROPERTY MANAGEMENT,"5,000.00",06/08/2014
Assurance,Governance,Transport Hire Charges,20010097,THE HYDE CHURCHES,790,01/08/2014
Assurance,Internal Audit & CAFT,Other Services,10005580,REDACTED - PERSONAL DATA,835,13/08/2014
Assurance,Internal Audit & CAFT,Subscriptions,10005436,CALL CREDIT LTD,"1,405.00",04/08/2014
Assurance,Internal Audit & CAFT,Subscriptions,10005022,EQUIFAX LTD,660,04/08/2014
Central Expenses,Central Expenses,Grant Payments,10005024,TRANSPORT FOR LONDON,"127,560.69",01/08/2014
Central Expenses,Central Expenses,Insurance Claims,20010231,ACCIDENT EXCHANGE LTD,"8,098.37",05/08/2014
Central Expenses,Central Expenses,Insurance Claims,20010049,ACCOUNTANT GENERAL OF THE SENIOR COURT,"4,250.00",01/08/2014
Central Expenses,Central Expenses,Insurance Claims,20010260,AGEAS INSURANCE LTD,"30,000.00",08/08/2014
Central Expenses,Central Expenses,Insurance Claims,20010904,ALBANY ASSISTANCE LTD,"2,516.30",26/08/2014
Central Expenses,Central Expenses,Insurance Claims,20010261,BARKER AUSTIN SOLICITORS,"5,300.00",08/08/2014
Central Expenses,Central Expenses,Insurance Claims,20009873,BERRYMANS LACE MAWER,"12,428.40",14/08/2014
Central Expenses,Central Expenses,Insurance Claims,10004839,BROWNE JACOBSON SOLS.,"1,091.60",04/08/2014
Central Expenses,Central Expenses,Insurance Claims,20010693,BROWNE JACOBSON SOLS.,"20,000.00",20/08/2014
Central Expenses,Central Expenses,Insurance Claims,20010533,CAMPS SOLICITORS,"6,000.00",15/08/2014
Central Expenses,Central Expenses,Insurance Claims,20011023,CCL VEHICLE RENTALS LTD,"1,187.59",29/08/2014
Central Expenses,Central Expenses,Insurance Claims,10005868,CLYDE & CO LLP,"1,425.00",12/08/2014
Central Expenses,Central Expenses,Insurance Claims,10007352,CLYDE & CO LLP,885,28/08/2014
Central Expenses,Central Expenses,Insurance Claims,10007353,CLYDE & CO LLP,"1,710.00",28/08/2014
Central Expenses,Central Expenses,Insurance Claims,20010448,CONNEXION PARTNERSHIP SOLICITORS,"1,297.28",12/08/2014
Central Expenses,Central Expenses,Insurance Claims,20009986,DEPARTMENT FOR WORK & PENSIONS,615,01/08/2014
Central Expenses,Central Expenses,Insurance Claims,20010342,DEPARTMENT FOR WORK & PENSIONS,627,08/08/2014
Central Expenses,Central Expenses,Insurance Claims,20011004,DEPARTMENT FOR WORK & PENSIONS,627,29/08/2014
Central Expenses,Central Expenses,Insurance Claims,20010366,IRWIN MITCHELL LLP,"2,747.90",11/08/2014
Central Expenses,Central Expenses,Insurance Claims,10007358,KENNEDYS,926,28/08/2014
Central Expenses,Central Expenses,Insurance Claims,10006488,LEGAL COSTS NEGOTIATORS,"1,795.11",19/08/2014
Central Expenses,Central Expenses,Insurance Claims,10007354,LEGAL COSTS NEGOTIATORS,691.81,28/08/2014
Central Expenses,Central Expenses,Insurance Claims,10007355,LEGAL COSTS NEGOTIATORS,544.67,28/08/2014
Central Expenses,Central Expenses,Insurance Claims,20010701,LEVENES SOLOCITORS,"3,775.00",19/08/2014
Central Expenses,Central Expenses,Insurance Claims,20010694,LIVERPOOL VICTORIA,"1,198.22",19/08/2014
Central Expenses,Central Expenses,Insurance Claims,20010050,MOORE BLATCH SOLICITORS,"9,000.00",01/08/2014
Central Expenses,Central Expenses,Insurance Claims,20010343,PLEXUS LAW,"13,500.00",08/08/2014
Central Expenses,Central Expenses,Insurance Claims,20010531,STEPHENSONS SOLICITORS,"7,000.00",15/08/2014
Central Expenses,Central Expenses,Insurance Claims,20010696,TESCO UNDERWRITING LIMITED,819.11,19/08/2014
Central Expenses,Central Expenses,Insurance Claims,20010700,UK INSURANCE LTD,"1,597.74",19/08/2014
Central Expenses,Central Expenses,Insurance Claims,20010457,VINCI CONSTRUCTION,632.82,12/08/2014
Central Expenses,Central Expenses,Joint Authorities - Third Party Payment,10006876,CITY OF LONDON,"98,564.00",22/08/2014
Central Expenses,Central Expenses,Joint Authorities - Third Party Payment,10006818,LONDON BOROUGH OF HARINGEY,"65,183.25",21/08/2014
Central Expenses,Central Expenses,Joint Authorities - Third Party Payment,CHP1000026,NORTH LONDON WASTE AUTHORITY,"943,693.00",08/08/2014
Central Expenses,Central Expenses,Joint Authorities - Third Party Payment,EBX0020608,NORTH LONDON WASTE AUTHORITY,"943,693.00",28/08/2014
Central Expenses,Central Expenses,Other Establishments - Third Party Payment,EBX0018759,LEE VALLEY REGIONAL PARK AUTH.,"33,699.99",20/08/2014
Central Expenses,Central Expenses,Other Establishments - Third Party Payment,EBX0017014,LONDON PENSIONS FUND AUTHORITY,"50,280.90",05/08/2014
Central Expenses,Central Expenses,Pensions To Retired Employees,10006635,LONDON PENSIONS FUND AUTHORITY,"3,950.60",19/08/2014
Commissioning Group,Deputy Chief Operating Officer,Consultants Fees,10005212,LOCAL PARTNERSHIPS LLP,"15,000.00",13/08/2014
Commissioning Group,Deputy Chief Operating Officer,Consultants Fees,10006667,QUALITY FIELDWORK & RESEARCH,"3,284.00",27/08/2014
Commissioning Group,Deputy Chief Operating Officer,Consultants Fees,10007111,QUALITY FIELDWORK & RESEARCH,"3,616.73",27/08/2014
Commissioning Group,Deputy Chief Operating Officer,Grant Payments,20009985,CHINESE MENTAL HEALTH ASSOCIATION,"4,000.00",01/08/2014
Commissioning Group,Deputy Chief Operating Officer,Grant Payments,20010688,COMMUNITY FOCUS,"19,766.00",20/08/2014
Commissioning Group,Deputy Chief Operating Officer,Grant Payments,20010979,LIVABILITY - LIFESTYLE,"2,500.00",29/08/2014
Commissioning Group,Deputy Chief Operating Officer,Grant Payments,20009950,LOVE BURNT OAK COMMUNITY RESOURCE & SUPP,"5,000.00",12/08/2014
Commissioning Group,Deputy Chief Operating Officer,Grant Payments,20010452,OYA,"7,410.00",13/08/2014
Commissioning Group,Deputy Chief Operating Officer,Grant Payments,20009990,TECHMAIDS,"2,875.00",01/08/2014
Commissioning Group,Deputy Chief Operating Officer,Grant Payments,20010544,THE YOUNG FOUNDATION,"8,854.00",15/08/2014
Commissioning Group,Deputy Chief Operating Officer,Legal and Court Fees,20010603,CLAER LLOYD-JONES & ASSOCIATES LTD,"6,000.00",15/08/2014
Commissioning Group,Deputy Chief Operating Officer,Publications,10006262,ACCESS INTELLIGENCE MEDIA & COMM.LT,"4,620.00",15/08/2014
Commissioning Group,Deputy Chief Operating Officer,Subscriptions,10006675,DELIB LIMITED,"4,000.00",19/08/2014
Commissioning Group,Deputy Chief Operating Officer,Training,10005213,PREMIER PEOPLE SOLUTIONS LTD,815,07/08/2014
Commissioning Group,Deputy Chief Operating Officer,Training,10005480,REDACTIVE EVENTS LTD,580,05/08/2014
Commissioning Group,Legal,Legal and Court Fees,10006691,LONDON BOROUGH OF HARROW,"188,033.93",19/08/2014
Commissioning Group,Legal,Legal Disbursements,10005587,LONDON BOROUGH OF HARROW,"89,614.27",06/08/2014
Corporate Accounting,Control Accounts,Government departments - Third Party Payment,EBX0020048,GREATER LONDON AUTHORITY,"241,490.00",27/08/2014
Corporate Accounting,Control Accounts,Other Agencies - Third Party Payment,10005124,CITIBANK NA LONDON,988.51,01/08/2014
Corporate Accounting,Control Accounts,Other Agencies - Third Party Payment,10005126,CITIBANK NA LONDON,967.7,04/08/2014
Corporate Accounting,Control Accounts,Other Agencies - Third Party Payment,10005398,CITIBANK NA LONDON,641.7,05/08/2014
Corporate Accounting,Control Accounts,Other Agencies - Third Party Payment,10005441,CITIBANK NA LONDON,"2,301.63",06/08/2014
Corporate Accounting,Control Accounts,Other Agencies - Third Party Payment,10005708,CITIBANK NA LONDON,"2,128.72",08/08/2014
Corporate Accounting,Control Accounts,Other Agencies - Third Party Payment,10006103,CITIBANK NA LONDON,794.1,14/08/2014
Corporate Accounting,Control Accounts,Other Agencies - Third Party Payment,10006110,CITIBANK NA LONDON,641.46,14/08/2014
Corporate Accounting,Control Accounts,Other Agencies - Third Party Payment,10006119,CITIBANK NA LONDON,"1,352.60",14/08/2014
Corporate Accounting,Control Accounts,Other Agencies - Third Party Payment,10006880,CITIBANK NA LONDON,"1,264.70",22/08/2014
Corporate Accounting,Control Accounts,Other Agencies - Third Party Payment,10006883,CITIBANK NA LONDON,560.95,22/08/2014
Corporate Accounting,Control Accounts,Other Agencies - Third Party Payment,10006886,CITIBANK NA LONDON,648.65,22/08/2014
Corporate Accounting,Control Accounts,Other Agencies - Third Party Payment,10007011,CITIBANK NA LONDON,"2,521.02",22/08/2014
Corporate Accounting,Control Accounts,Other Agencies - Third Party Payment,10007016,CITIBANK NA LONDON,"3,350.54",22/08/2014
Corporate Accounting,Control Accounts,Other Agencies - Third Party Payment,10007322,CITIBANK NA LONDON,"2,547.01",28/08/2014
Corporate Accounting,Control Accounts,Other Local Authorities - Third Party Payment,EBX0017016,GREATER LONDON AUTHORITY,"3,841,043.70",05/08/2014
Corporate Accounting,Control Accounts,Other Local Authorities - Third Party Payment,EBX0018255,GREATER LONDON AUTHORITY,"2,330,724.00",15/08/2014
Delivery Units,Adults and Communities,Advertising,10001229,NEWSQUEST (LONDON) LIMITED,596.52,11/08/2014
Delivery Units,Adults and Communities,Advertising,10006511,THE ART OF DESIGN,738,19/08/2014
Delivery Units,Adults and Communities,Agency/Interim Non Hays,20010399,TMP (UK) LTD,792,12/08/2014
Delivery Units,Adults and Communities,Consultants Fees,10006433,VOICEABILITY,"6,601.00",18/08/2014
Delivery Units,Adults and Communities,Consultants Fees,10006842,VOICEABILITY,"4,340.00",22/08/2014
Delivery Units,Adults and Communities,Equipment and Materials Purchase,10005701,MEDEQUIP ASSISTIVE TECHNOLOGY LTD,"2,631.76",07/08/2014
Delivery Units,Adults and Communities,Equipment and Materials Purchase,10005702,MEDEQUIP ASSISTIVE TECHNOLOGY LTD,"2,054.67",07/08/2014
Delivery Units,Adults and Communities,Equipment and Materials Purchase,10007431,MEDEQUIP ASSISTIVE TECHNOLOGY LTD,738,28/08/2014
Delivery Units,Adults and Communities,Equipment and Materials Purchase,10007433,MEDEQUIP ASSISTIVE TECHNOLOGY LTD,"1,173.60",28/08/2014
Delivery Units,Adults and Communities,Equipment and Materials Purchase,10007361,PARKVIEW PHARMACY,564.5,27/08/2014
Delivery Units,Adults and Communities,Equipment and Materials Purchase,10007276,PICKLES CHEMIST,595.06,28/08/2014
Delivery Units,Adults and Communities,Equipment and Materials Purchase,10005512,REDLAND HEALTHCARE LTD,"1,969.06",05/08/2014
Delivery Units,Adults and Communities,Grant Payments,20010360,AMWELL CONSTRUCTION LTD,"1,192.39",11/08/2014
Delivery Units,Adults and Communities,Health authorities - Third Party Payment,10007018,HERTFORDSHIRE PARTNERSHIP,"110,288.00",21/08/2014
Delivery Units,Adults and Communities,Other Agencies - Third Party Payment,30026284,AARON COURT CARE HOME,"2,216.41",04/08/2014
Delivery Units,Adults and Communities,Other Agencies - Third Party Payment,30026235,ABBEY RAVENSCROFT PARK NURSING HOME,"2,570.70",04/08/2014
Delivery Units,Adults and Communities,Other Agencies - Third Party Payment,30026236,ABBEY RAVENSCROFT PARK NURSING HOME,"2,318.93",04/08/2014
Delivery Units,Adults and Communities,Other Agencies - Third Party Payment,30026237,ABBEY RAVENSCROFT PARK NURSING HOME,-548.92,04/08/2014
Delivery Units,Adults and Communities,Other Agencies - Third Party Payment,30026238,ABBEY RAVENSCROFT PARK NURSING HOME,"2,657.14",04/08/2014
Delivery Units,Adults and Communities,Other Agencies - Third Party Payment,30026239,ABBEY RAVENSCROFT PARK NURSING HOME,"2,570.70",04/08/2014
Delivery Units,Adults and Communities,Other Agencies - Third Party Payment,30026240,ABBEY RAVENSCROFT PARK NURSING HOME,"2,570.70",04/08/2014
Delivery Units,Adults and Communities,Other Agencies - Third Party Payment,30026241,ABBEY RAVENSCROFT PARK NURSING HOME,"2,570.83",04/08/2014
Delivery Units,Adults and Communities,Other Agencies - Third Party Payment,30026242,ABBEY RAVENSCROFT PARK NURSING HOME,"-1,161.04",04/08/2014
Delivery Units,Adults and Communities,Other Agencies - Third Party Payment,30026243,ABBEY RAVENSCROFT PARK NURSING HOME,"2,570.70",04/08/2014
Delivery Units,Adults and Communities,Other Agencies - Third Party Payment,30026244,ABBEY RAVENSCROFT PARK NURSING HOME,"2,570.70",04/08/2014
Delivery Units,Adults and Communities,Other Agencies - Third Party Payment,30026245,ABBEY RAVENSCROFT PARK NURSING HOME,"2,878.57",04/08/2014
Delivery Units,Adults and Communities,Other Agencies - Third Party Payment,30026246,ABBEY RAVENSCROFT PARK NURSING HOME,"2,570.70",04/08/2014
Delivery Units,Adults and Communities,Other Agencies - Third Party Payment,30026247,ABBEY RAVENSCROFT PARK NURSING HOME,"2,318.93",04/08/2014
Delivery Units,Adults and Communities,Other Agencies - Third Party Payment,30026248,ABBEY RAVENSCROFT PARK NURSING HOME,"2,570.70",04/08/2014
Delivery Units,Adults and Communities,Other Agencies - Third Party Payment,30026249,ABBEY RAVENSCROFT PARK NURSING HOME,"3,205.84",04/08/2014
Delivery Units,Adults and Communities,Other Agencies - Third Party Payment,30027186,ABBEY RAVENSCROFT PARK NURSING HOME,"2,570.70",07/08/2014
Delivery Units,Adults and Communities,Other Agencies - Third Party Payment,30030303,ABBEY RAVENSCROFT PARK NURSING HOME,"1,047.26",22/08/2014
Delivery Units,Adults and Communities,Other Agencies - Third Party Payment,30029804,ABBOTS CARE LIMITED,"9,023.95",21/08/2014
Delivery Units,Adults and Communities,Other Agencies - Third Party Payment,30030759,ABBOTS CARE LIMITED,"1,182.04",27/08/2014
Delivery Units,Adults and Communities,Other Agencies - Third Party Payment,30029922,ABOUT ME CARE & SUPPORT LTD,"1,365.84",21/08/2014
Delivery Units,Adults and Communities,Other Agencies - Third Party Payment,30029996,ADDICTION RECOVERY CENTRE,"2,500.00",21/08/2014
Delivery Units,Adults and Communities,Other Agencies - Third Party Payment,30031782,ADDICTION RECOVERY CENTRE,"1,740.00",28/08/2014
Delivery Units,Adults and Communities,Other Agencies - Third Party Payment,30027269,AGUDAS ISRAEL HOUSING ASSCTN LTD,"3,321.43",13/08/2014
Delivery Units,Adults and Communities,Other Agencies - Third Party Payment,30027270,AGUDAS ISRAEL HOUSING ASSCTN LTD,-548.92,13/08/2014
Delivery Units,Adults and Communities,Other Agencies - Third Party Payment,30027271,AGUDAS ISRAEL HOUSING ASSCTN LTD,"4,207.14",13/08/2014
Delivery Units,Adults and Communities,Other Agencies - Third Party Payment,30027272,AGUDAS ISRAEL HOUSING ASSCTN LTD,"2,527.83",13/08/2014
Delivery Units,Adults and Communities,Other Agencies - Third Party Payment,30030833,AGUDAS ISRAEL HOUSING ASSCTN LTD,"3,154.25",27/08/2014
Delivery Units,Adults and Communities,Other Agencies - Third Party Payment,30028310,ALL ABOUT CARE,"1,958.01",18/08/2014
Delivery Units,Adults and Communities,Other Agencies - Third Party Payment,30028312,ALL ABOUT CARE,"2,023.28",18/08/2014
Delivery Units,Adults and Communities,Other Agencies - Third Party Payment,30026165,ALWYCK HOUSING GROUP,"2,216.41",04/08/2014
Delivery Units,Adults and Communities,Other Agencies - Third Party Payment,30026269,ANCASTER COURT NURSING HOME,"2,570.70",04/08/2014
Delivery Units,Adults and Communities,Other Agencies - Third Party Payment,30029988,ANCASTER COURT NURSING HOME,"1,492.66",21/08/2014
Delivery Units,Adults and Communities,Other Agencies - Third Party Payment,30025914,ANCHOR TRUST,"2,232.64",01/08/2014
Delivery Units,Adults and Communities,Other Agencies - Third Party Payment,30027358,ARBOURS ASSOCIATION LTD,"1,412.00",11/08/2014
Delivery Units,Adults and Communities,Other Agencies - Third Party Payment,30026512,ARUNDEL CARE SERVICES LTD,"4,256.00",06/08/2014
Delivery Units,Adults and Communities,Other Agencies - Third Party Payment,30026268,ASHBROOKE CARE HOME,"2,435.71",04/08/2014
Delivery Units,Adults and Communities,Other Agencies - Third Party Payment,30024056,ASHDOWN RESIDENTIAL HOME,"4,156.00",01/08/2014
Delivery Units,Adults and Communities,Other Agencies - Third Party Payment,30030191,ASHDOWN RESIDENTIAL HOME,"4,156.00",29/08/2014
Delivery Units,Adults and Communities,Other Agencies - Third Party Payment,30022394,ASHFIELDS RESIDENTIAL CARE HOME,"1,092.02",08/08/2014
Delivery Units,Adults and Communities,Other Agencies - Third Party Payment,30025706,ASHFIELDS RESIDENTIAL CARE HOME,"1,170.02",20/08/2014
Delivery Units,Adults and Communities,Other Agencies - Third Party Payment,30030427,ASHGALE HOUSE,"4,729.98",26/08/2014
Delivery Units,Adults and Communities,Other Agencies - Third Party Payment,30025924,ASHTON LODGE CARE CENTRE,"3,432.06",01/08/2014
Delivery Units,Adults and Communities,Other Agencies - Third Party Payment,30025942,ASHTON LODGE CARE CENTRE,"2,570.70",01/08/2014
Delivery Units,Adults and Communities,Other Agencies - Third Party Payment,30025947,ASHTON LODGE CARE CENTRE,"2,367.07",01/08/2014
Delivery Units,Adults and Communities,Other Agencies - Third Party Payment,30025950,ASHTON LODGE CARE CENTRE,"3,354.06",01/08/2014
Delivery Units,Adults and Communities,Other Agencies - Third Party Payment,30025951,ASHTON LODGE CARE CENTRE,"2,489.74",01/08/2014
Delivery Units,Adults and Communities,Other Agencies - Third Party Payment,30025965,ASHTON LODGE CARE CENTRE,"2,320.53",01/08/2014
Delivery Units,Adults and Communities,Other Agencies - Third Party Payment,30025980,ASHTON LODGE CARE CENTRE,"2,318.94",01/08/2014
Delivery Units,Adults and Communities,Other Agencies - Third Party Payment,30025981,ASHTON LODGE CARE CENTRE,-738.38,01/08/2014
Delivery Units,Adults and Communities,Other Agencies - Third Party Payment,30025997,ASHTON LODGE CARE CENTRE,"2,320.52",01/08/2014
Delivery Units,Adults and Communities,Other Agencies - Third Party Payment,30025998,ASHTON LODGE CARE CENTRE,-572.7,01/08/2014
Delivery Units,Adults and Communities,Other Agencies - Third Party Payment,30026028,ASHTON LODGE CARE CENTRE,"2,418.04",01/08/2014
Delivery Units,Adults and Communities,Other Agencies - Third Party Payment,30025956,ASPEN VILLAGES LTD,"2,216.41",01/08/2014
Delivery Units,Adults and Communities,Other Agencies - Third Party Payment,30025957,ASPEN VILLAGES LTD,"2,570.70",01/08/2014
Delivery Units,Adults and Communities,Other Agencies - Third Party Payment,30025958,ASPEN VILLAGES LTD,"3,321.43",01/08/2014
Delivery Units,Adults and Communities,Other Agencies - Third Party Payment,30030873,AUTUMN GARDENS,"2,800.00",27/08/2014
Delivery Units,Adults and Communities,Other Agencies - Third Party Payment,30030874,AUTUMN GARDENS,"2,184.04",27/08/2014
Delivery Units,Adults and Communities,Other Agencies - Third Party Payment,30025918,AVERY LODGE,"2,216.41",01/08/2014
Delivery Units,Adults and Communities,Other Agencies - Third Party Payment,30025919,AVERY LODGE,-548.92,01/08/2014
Delivery Units,Adults and Communities,Other Agencies - Third Party Payment,30032160,AVERY LODGE,"2,216.41",29/08/2014
Delivery Units,Adults and Communities,Other Agencies - Third Party Payment,30032161,AVERY LODGE,-548.92,29/08/2014
Delivery Units,Adults and Communities,Other Agencies - Third Party Payment,30025963,B & M CARE,"2,418.00",01/08/2014
Delivery Units,Adults and Communities,Other Agencies - Third Party Payment,30025964,B & M CARE,-571.91,01/08/2014
Delivery Units,Adults and Communities,Other Agencies - Third Party Payment,30026305,B & M CARE,"2,418.00",04/08/2014
Delivery Units,Adults and Communities,Other Agencies - Third Party Payment,30026306,B & M CARE,-564.82,04/08/2014
Delivery Units,Adults and Communities,Other Agencies - Third Party Payment,30031001,B & M CARE,"2,622.20",27/08/2014
Delivery Units,Adults and Communities,Other Agencies - Third Party Payment,30028261,BARNET HOMES LIMITED,"1,097.61",15/08/2014
Delivery Units,Adults and Communities,Other Agencies - Third Party Payment,30025953,BARNET MENCAP,575.75,01/08/2014
Delivery Units,Adults and Communities,Other Agencies - Third Party Payment,30025954,BARNET MENCAP,575.75,01/08/2014
Delivery Units,Adults and Communities,Other Agencies - Third Party Payment,30025955,BARNET MENCAP,575.75,01/08/2014
Delivery Units,Adults and Communities,Other Agencies - Third Party Payment,30027296,BARNET MENCAP,658,08/08/2014
Delivery Units,Adults and Communities,Other Agencies - Third Party Payment,30027297,BARNET MENCAP,658,08/08/2014
Delivery Units,Adults and Communities,Other Agencies - Third Party Payment,30027298,BARNET MENCAP,658,08/08/2014
Delivery Units,Adults and Communities,Other Agencies - Third Party Payment,30027299,BARNET MENCAP,658,08/08/2014
Delivery Units,Adults and Communities,Other Agencies - Third Party Payment,30027300,BARNET MENCAP,658,08/08/2014
Delivery Units,Adults and Communities,Other Agencies - Third Party Payment,30025898,BENSLOW MANAGEMENT COMPANY LIMITED,"2,418.04",01/08/2014
Delivery Units,Adults and Communities,Other Agencies - Third Party Payment,30028427,BIRCHWOOD GRANGE CARE HOME,"2,657.14",18/08/2014
Delivery Units,Adults and Communities,Other Agencies - Third Party Payment,30026264,BRADBURY HOUSE ORGANISATION,"3,460.71",04/08/2014
Delivery Units,Adults and Communities,Other Agencies - Third Party Payment,20010322,BROOKDALE HEALTHCARE,503.66,08/08/2014
Delivery Units,Adults and Communities,Other Agencies - Third Party Payment,20010324,BROOKDALE HEALTHCARE,755.49,08/08/2014
Delivery Units,Adults and Communities,Other Agencies - Third Party Payment,30026155,BROOKDALE HEALTHCARE,"9,300.00",04/08/2014
Delivery Units,Adults and Communities,Other Agencies - Third Party Payment,30026156,BROOKDALE HEALTHCARE,"9,610.00",04/08/2014
Delivery Units,Adults and Communities,Other Agencies - Third Party Payment,30026157,BROOKDALE HEALTHCARE,"7,806.73",04/08/2014
Delivery Units,Adults and Communities,Other Agencies - Third Party Payment,30026158,BROOKDALE HEALTHCARE,"9,673.86",04/08/2014
Delivery Units,Adults and Communities,Other Agencies - Third Party Payment,30029800,BROOKDALE HEALTHCARE,"4,699.40",21/08/2014
Delivery Units,Adults and Communities,Other Agencies - Third Party Payment,30025921,BRUNSWICK SUPPORTED LIVING SERVICES,"2,372.12",06/08/2014
Delivery Units,Adults and Communities,Other Agencies - Third Party Payment,30025961,BRUNSWICK SUPPORTED LIVING SERVICES,"1,321.60",06/08/2014
Delivery Units,Adults and Communities,Other Agencies - Third Party Payment,30025982,BRUNSWICK SUPPORTED LIVING SERVICES,"1,412.68",06/08/2014
Delivery Units,Adults and Communities,Other Agencies - Third Party Payment,30025985,BRUNSWICK SUPPORTED LIVING SERVICES,"1,942.84",06/08/2014
Delivery Units,Adults and Communities,Other Agencies - Third Party Payment,30026001,BRUNSWICK SUPPORTED LIVING SERVICES,"1,400.00",06/08/2014
Delivery Units,Adults and Communities,Other Agencies - Third Party Payment,30025966,BUPA CARE HOMES,"2,216.41",01/08/2014
Delivery Units,Adults and Communities,Other Agencies - Third Party Payment,30025967,BUPA CARE HOMES,"2,318.93",01/08/2014
Delivery Units,Adults and Communities,Other Agencies - Third Party Payment,30025968,BUPA CARE HOMES,"2,570.70",01/08/2014
Delivery Units,Adults and Communities,Other Agencies - Third Party Payment,30025969,BUPA CARE HOMES,"5,535.71",01/08/2014
Delivery Units,Adults and Communities,Other Agencies - Third Party Payment,30025970,BUPA CARE HOMES,"2,325.66",01/08/2014
Delivery Units,Adults and Communities,Other Agencies - Third Party Payment,30025971,BUPA CARE HOMES,"3,258.81",01/08/2014
Delivery Units,Adults and Communities,Other Agencies - Third Party Payment,30025972,BUPA CARE HOMES,"3,258.81",01/08/2014
Delivery Units,Adults and Communities,Other Agencies - Third Party Payment,30025973,BUPA CARE HOMES,"3,321.43",01/08/2014
Delivery Units,Adults and Communities,Other Agencies - Third Party Payment,30025974,BUPA CARE HOMES,"3,321.43",01/08/2014
Delivery Units,Adults and Communities,Other Agencies - Third Party Payment,30025975,BUPA CARE HOMES,"2,318.93",01/08/2014
Delivery Units,Adults and Communities,Other Agencies - Third Party Payment,30025976,BUPA CARE HOMES,-548.92,01/08/2014
Delivery Units,Adults and Communities,Other Agencies - Third Party Payment,30025977,BUPA CARE HOMES,"2,418.04",01/08/2014
Delivery Units,Adults and Communities,Other Agencies - Third Party Payment,30025978,BUPA CARE HOMES,"2,216.41",01/08/2014
Delivery Units,Adults and Communities,Other Agencies - Third Party Payment,30026026,BUPA CARE HOMES,"2,318.93",01/08/2014
Delivery Units,Adults and Communities,Other Agencies - Third Party Payment,30026027,BUPA CARE HOMES,"2,318.93",01/08/2014
Delivery Units,Adults and Communities,Other Agencies - Third Party Payment,30026029,BUPA CARE HOMES,"4,842.64",01/08/2014
Delivery Units,Adults and Communities,Other Agencies - Third Party Payment,30026535,BUPA CARE HOMES,"2,216.41",06/08/2014
Delivery Units,Adults and Communities,Other Agencies - Third Party Payment,30026536,BUPA CARE HOMES,"2,144.91",06/08/2014
Delivery Units,Adults and Communities,Other Agencies - Third Party Payment,30027207,BUPA CARE HOMES,598.43,07/08/2014
Delivery Units,Adults and Communities,Other Agencies - Third Party Payment,30027208,BUPA CARE HOMES,"2,318.93",07/08/2014
Delivery Units,Adults and Communities,Other Agencies - Third Party Payment,30027325,BUPA CARE HOMES,"2,318.93",08/08/2014
Delivery Units,Adults and Communities,Other Agencies - Third Party Payment,30028420,BUPA CARE HOMES,"2,318.93",18/08/2014
Delivery Units,Adults and Communities,Other Agencies - Third Party Payment,30028421,BUPA CARE HOMES,"2,318.93",18/08/2014
Delivery Units,Adults and Communities,Other Agencies - Third Party Payment,30028422,BUPA CARE HOMES,"2,318.93",18/08/2014
Delivery Units,Adults and Communities,Other Agencies - Third Party Payment,30028424,BUPA CARE HOMES,"2,318.93",18/08/2014
Delivery Units,Adults and Communities,Other Agencies - Third Party Payment,30028425,BUPA CARE HOMES,"2,924.05",18/08/2014
Delivery Units,Adults and Communities,Other Agencies - Third Party Payment,30028426,BUPA CARE HOMES,"2,302.06",18/08/2014
Delivery Units,Adults and Communities,Other Agencies - Third Party Payment,30028708,BUPA CARE HOMES,523.63,19/08/2014
Delivery Units,Adults and Communities,Other Agencies - Third Party Payment,30028709,BUPA CARE HOMES,523.63,19/08/2014
Delivery Units,Adults and Communities,Other Agencies - Third Party Payment,30032325,BUPA CARE HOMES,"4,842.64",29/08/2014
Delivery Units,Adults and Communities,Other Agencies - Third Party Payment,30028493,CAMBIAN BEECHES,"12,994.50",21/08/2014
Delivery Units,Adults and Communities,Other Agencies - Third Party Payment,30028495,CAMBIAN BEECHES,"12,994.50",21/08/2014
Delivery Units,Adults and Communities,Other Agencies - Third Party Payment,30028496,CAMBIAN BEECHES,"13,427.65",21/08/2014
Delivery Units,Adults and Communities,Other Agencies - Third Party Payment,30028498,CAMBIAN BEECHES,"13,427.65",21/08/2014
Delivery Units,Adults and Communities,Other Agencies - Third Party Payment,30028499,CAMBIAN BEECHES,"12,994.50",21/08/2014
Delivery Units,Adults and Communities,Other Agencies - Third Party Payment,30028501,CAMBIAN BEECHES,"12,994.50",21/08/2014
Delivery Units,Adults and Communities,Other Agencies - Third Party Payment,30028502,CAMBIAN BEECHES,"13,427.65",21/08/2014
Delivery Units,Adults and Communities,Other Agencies - Third Party Payment,30028504,CAMBIAN BEECHES,"13,427.65",21/08/2014
Delivery Units,Adults and Communities,Other Agencies - Third Party Payment,30028494,CAMBIAN CARE SERVICES LTD,"12,994.50",21/08/2014
Delivery Units,Adults and Communities,Other Agencies - Third Party Payment,30028497,CAMBIAN CARE SERVICES LTD,"13,427.65",21/08/2014
Delivery Units,Adults and Communities,Other Agencies - Third Party Payment,30028500,CAMBIAN CARE SERVICES LTD,"12,994.50",21/08/2014
Delivery Units,Adults and Communities,Other Agencies - Third Party Payment,30028503,CAMBIAN CARE SERVICES LTD,"13,427.65",21/08/2014
Delivery Units,Adults and Communities,Other Agencies - Third Party Payment,30030230,CAMPHILL DEVON COMMUNITY LIMITED,"4,508.00",22/08/2014
Delivery Units,Adults and Communities,Other Agencies - Third Party Payment,20010320,CARE ASSIST LIMITED,"4,207.14",08/08/2014
Delivery Units,Adults and Communities,Other Agencies - Third Party Payment,20010321,CARE ASSIST LIMITED,"4,207.14",08/08/2014
Delivery Units,Adults and Communities,Other Agencies - Third Party Payment,30031757,CARE WORLDWIDE (LONDON) LTD,"2,685.98",28/08/2014
Delivery Units,Adults and Communities,Other Agencies - Third Party Payment,30031775,CARE WORLDWIDE (LONDON) LTD,"2,680.88",28/08/2014
Delivery Units,Adults and Communities,Other Agencies - Third Party Payment,30031776,CARE WORLDWIDE (LONDON) LTD,"3,936.46",28/08/2014
Delivery Units,Adults and Communities,Other Agencies - Third Party Payment,30031777,CARE WORLDWIDE (LONDON) LTD,"4,246.53",28/08/2014
Delivery Units,Adults and Communities,Other Agencies - Third Party Payment,30031966,CARE WORLDWIDE (LONDON) LTD,"2,680.88",29/08/2014
Delivery Units,Adults and Communities,Other Agencies - Third Party Payment,30031967,CARE WORLDWIDE (LONDON) LTD,"2,685.98",29/08/2014
Delivery Units,Adults and Communities,Other Agencies - Third Party Payment,30025903,CAREBASE BURNT OAK 2006 LIMITED,"2,318.93",01/08/2014
Delivery Units,Adults and Communities,Other Agencies - Third Party Payment,30025904,CAREBASE BURNT OAK 2006 LIMITED,"2,570.70",01/08/2014
Delivery Units,Adults and Communities,Other Agencies - Third Party Payment,30025905,CAREBASE BURNT OAK 2006 LIMITED,"2,570.70",01/08/2014
Delivery Units,Adults and Communities,Other Agencies - Third Party Payment,30025906,CAREBASE BURNT OAK 2006 LIMITED,"2,588.50",01/08/2014
Delivery Units,Adults and Communities,Other Agencies - Third Party Payment,30025907,CAREBASE BURNT OAK 2006 LIMITED,"2,570.70",01/08/2014
Delivery Units,Adults and Communities,Other Agencies - Third Party Payment,30025908,CAREBASE BURNT OAK 2006 LIMITED,"2,318.93",01/08/2014
Delivery Units,Adults and Communities,Other Agencies - Third Party Payment,30025909,CAREBASE BURNT OAK 2006 LIMITED,"2,302.06",01/08/2014
Delivery Units,Adults and Communities,Other Agencies - Third Party Payment,30025910,CAREBASE BURNT OAK 2006 LIMITED,"2,320.53",01/08/2014
Delivery Units,Adults and Communities,Other Agencies - Third Party Payment,30025911,CAREBASE BURNT OAK 2006 LIMITED,"2,418.04",01/08/2014
Delivery Units,Adults and Communities,Other Agencies - Third Party Payment,30025912,CAREBASE BURNT OAK 2006 LIMITED,"2,570.70",01/08/2014
Delivery Units,Adults and Communities,Other Agencies - Third Party Payment,30025913,CAREBASE BURNT OAK 2006 LIMITED,"2,418.04",01/08/2014
Delivery Units,Adults and Communities,Other Agencies - Third Party Payment,30028572,CAREBASE BURNT OAK 2006 LIMITED,500.48,20/08/2014
Delivery Units,Adults and Communities,Other Agencies - Third Party Payment,30025765,CARETECH COMMUNITY SERVICES LTD,"4,774.00",01/08/2014
Delivery Units,Adults and Communities,Other Agencies - Third Party Payment,30025767,CARETECH COMMUNITY SERVICES LTD,"8,431.42",01/08/2014
Delivery Units,Adults and Communities,Other Agencies - Third Party Payment,30025768,CARETECH COMMUNITY SERVICES LTD,"6,653.80",01/08/2014
Delivery Units,Adults and Communities,Other Agencies - Third Party Payment,30025770,CARETECH COMMUNITY SERVICES LTD,"4,817.18",01/08/2014
Delivery Units,Adults and Communities,Other Agencies - Third Party Payment,30025772,CARETECH COMMUNITY SERVICES LTD,722.61,01/08/2014
Delivery Units,Adults and Communities,Other Agencies - Third Party Payment,30025773,CARETECH COMMUNITY SERVICES LTD,"7,621.57",01/08/2014
Delivery Units,Adults and Communities,Other Agencies - Third Party Payment,30025774,CARETECH COMMUNITY SERVICES LTD,"6,653.80",01/08/2014
Delivery Units,Adults and Communities,Other Agencies - Third Party Payment,30025776,CARETECH COMMUNITY SERVICES LTD,"7,287.66",01/08/2014
Delivery Units,Adults and Communities,Other Agencies - Third Party Payment,30025778,CARETECH COMMUNITY SERVICES LTD,"6,952.37",01/08/2014
Delivery Units,Adults and Communities,Other Agencies - Third Party Payment,30025780,CARETECH COMMUNITY SERVICES LTD,"6,328.43",01/08/2014
Delivery Units,Adults and Communities,Other Agencies - Third Party Payment,30025782,CARETECH COMMUNITY SERVICES LTD,"5,468.93",01/08/2014
Delivery Units,Adults and Communities,Other Agencies - Third Party Payment,30025784,CARETECH COMMUNITY SERVICES LTD,"5,823.57",01/08/2014
Delivery Units,Adults and Communities,Other Agencies - Third Party Payment,30025786,CARETECH COMMUNITY SERVICES LTD,"5,468.93",01/08/2014
Delivery Units,Adults and Communities,Other Agencies - Third Party Payment,30025788,CARETECH COMMUNITY SERVICES LTD,"1,088.14",01/08/2014
Delivery Units,Adults and Communities,Other Agencies - Third Party Payment,30025789,CARETECH COMMUNITY SERVICES LTD,"4,377.11",01/08/2014
Delivery Units,Adults and Communities,Other Agencies - Third Party Payment,30025791,CARETECH COMMUNITY SERVICES LTD,"4,782.86",01/08/2014
Delivery Units,Adults and Communities,Other Agencies - Third Party Payment,30025792,CARETECH COMMUNITY SERVICES LTD,"1,527.86",01/08/2014
Delivery Units,Adults and Communities,Other Agencies - Third Party Payment,30025793,CARETECH COMMUNITY SERVICES LTD,"7,072.43",01/08/2014
Delivery Units,Adults and Communities,Other Agencies - Third Party Payment,30025807,CARETECH COMMUNITY SERVICES LTD,"5,365.13",01/08/2014
Delivery Units,Adults and Communities,Other Agencies - Third Party Payment,30026010,CARETECH COMMUNITY SERVICES LTD,"4,627.86",01/08/2014
Delivery Units,Adults and Communities,Other Agencies - Third Party Payment,30026011,CARETECH COMMUNITY SERVICES LTD,"4,627.86",01/08/2014
Delivery Units,Adults and Communities,Other Agencies - Third Party Payment,30026012,CARETECH COMMUNITY SERVICES LTD,"4,627.86",01/08/2014
Delivery Units,Adults and Communities,Other Agencies - Third Party Payment,30026013,CARETECH COMMUNITY SERVICES LTD,"2,313.93",01/08/2014
Delivery Units,Adults and Communities,Other Agencies - Third Party Payment,30026014,CARETECH COMMUNITY SERVICES LTD,"6,551.23",01/08/2014
Delivery Units,Adults and Communities,Other Agencies - Third Party Payment,30026015,CARETECH COMMUNITY SERVICES LTD,-548.92,01/08/2014
Delivery Units,Adults and Communities,Other Agencies - Third Party Payment,30026016,CARETECH COMMUNITY SERVICES LTD,816.14,01/08/2014
Delivery Units,Adults and Communities,Other Agencies - Third Party Payment,30026017,CARETECH COMMUNITY SERVICES LTD,"4,646.55",01/08/2014
Delivery Units,Adults and Communities,Other Agencies - Third Party Payment,30026018,CARETECH COMMUNITY SERVICES LTD,"6,551.23",01/08/2014
Delivery Units,Adults and Communities,Other Agencies - Third Party Payment,30026019,CARETECH COMMUNITY SERVICES LTD,-548.92,01/08/2014
Delivery Units,Adults and Communities,Other Agencies - Third Party Payment,30026020,CARETECH COMMUNITY SERVICES LTD,816.14,01/08/2014
Delivery Units,Adults and Communities,Other Agencies - Third Party Payment,30026021,CARETECH COMMUNITY SERVICES LTD,"4,627.86",01/08/2014
Delivery Units,Adults and Communities,Other Agencies - Third Party Payment,30026283,CARETECH COMMUNITY SERVICES LTD,-535.5,04/08/2014
Delivery Units,Adults and Communities,Other Agencies - Third Party Payment,30026342,CARETECH COMMUNITY SERVICES LTD,"5,890.00",04/08/2014
Delivery Units,Adults and Communities,Other Agencies - Third Party Payment,30026344,CARETECH COMMUNITY SERVICES LTD,"5,059.38",04/08/2014
Delivery Units,Adults and Communities,Other Agencies - Third Party Payment,30026346,CARETECH COMMUNITY SERVICES LTD,"1,088.14",04/08/2014
Delivery Units,Adults and Communities,Other Agencies - Third Party Payment,30026347,CARETECH COMMUNITY SERVICES LTD,"5,987.43",04/08/2014
Delivery Units,Adults and Communities,Other Agencies - Third Party Payment,30026349,CARETECH COMMUNITY SERVICES LTD,"5,059.38",04/08/2014
Delivery Units,Adults and Communities,Other Agencies - Third Party Payment,30026350,CARETECH COMMUNITY SERVICES LTD,-548.92,04/08/2014
Delivery Units,Adults and Communities,Other Agencies - Third Party Payment,30026351,CARETECH COMMUNITY SERVICES LTD,"1,088.14",04/08/2014
Delivery Units,Adults and Communities,Other Agencies - Third Party Payment,30026352,CARETECH COMMUNITY SERVICES LTD,"2,589.74",04/08/2014
Delivery Units,Adults and Communities,Other Agencies - Third Party Payment,30026353,CARETECH COMMUNITY SERVICES LTD,"2,149.94",04/08/2014
Delivery Units,Adults and Communities,Other Agencies - Third Party Payment,30027233,CARETECH COMMUNITY SERVICES LTD,919.15,07/08/2014
Delivery Units,Adults and Communities,Other Agencies - Third Party Payment,30027295,CARETECH COMMUNITY SERVICES LTD,"-1,045.00",08/08/2014
Delivery Units,Adults and Communities,Other Agencies - Third Party Payment,30027338,CARETECH COMMUNITY SERVICES LTD,"4,627.86",08/08/2014
Delivery Units,Adults and Communities,Other Agencies - Third Party Payment,30028962,CARETECH COMMUNITY SERVICES LTD,"2,596.02",28/08/2014
Delivery Units,Adults and Communities,Other Agencies - Third Party Payment,30030388,CARETECH COMMUNITY SERVICES LTD,919.15,22/08/2014
Delivery Units,Adults and Communities,Other Agencies - Third Party Payment,30031018,CARETECH COMMUNITY SERVICES LTD,919.15,28/08/2014
Delivery Units,Adults and Communities,Other Agencies - Third Party Payment,30025667,CARLTON COURT (TLC GROUP),"4,207.14",01/08/2014
Delivery Units,Adults and Communities,Other Agencies - Third Party Payment,30025668,CARLTON COURT (TLC GROUP),"2,216.41",01/08/2014
Delivery Units,Adults and Communities,Other Agencies - Third Party Payment,30025669,CARLTON COURT (TLC GROUP),"2,418.04",01/08/2014
Delivery Units,Adults and Communities,Other Agencies - Third Party Payment,30025670,CARLTON COURT (TLC GROUP),"2,216.41",01/08/2014
Delivery Units,Adults and Communities,Other Agencies - Third Party Payment,30025671,CARLTON COURT (TLC GROUP),"2,318.93",01/08/2014
Delivery Units,Adults and Communities,Other Agencies - Third Party Payment,30025672,CARLTON COURT (TLC GROUP),"2,318.93",01/08/2014
Delivery Units,Adults and Communities,Other Agencies - Third Party Payment,30025673,CARLTON COURT (TLC GROUP),"2,417.24",01/08/2014
Delivery Units,Adults and Communities,Other Agencies - Third Party Payment,30025674,CARLTON COURT (TLC GROUP),-548.12,01/08/2014
Delivery Units,Adults and Communities,Other Agencies - Third Party Payment,30025675,CARLTON COURT (TLC GROUP),"2,570.70",01/08/2014
Delivery Units,Adults and Communities,Other Agencies - Third Party Payment,30025676,CARLTON COURT (TLC GROUP),-557.16,01/08/2014
Delivery Units,Adults and Communities,Other Agencies - Third Party Payment,30025677,CARLTON COURT (TLC GROUP),"2,318.93",01/08/2014
Delivery Units,Adults and Communities,Other Agencies - Third Party Payment,30025678,CARLTON COURT (TLC GROUP),-630.45,01/08/2014
Delivery Units,Adults and Communities,Other Agencies - Third Party Payment,30025679,CARLTON COURT (TLC GROUP),"2,570.70",01/08/2014
Delivery Units,Adults and Communities,Other Agencies - Third Party Payment,30025680,CARLTON COURT (TLC GROUP),"2,570.70",01/08/2014
Delivery Units,Adults and Communities,Other Agencies - Third Party Payment,30025681,CARLTON COURT (TLC GROUP),"2,570.70",01/08/2014
Delivery Units,Adults and Communities,Other Agencies - Third Party Payment,30025682,CARLTON COURT (TLC GROUP),"2,570.70",01/08/2014
Delivery Units,Adults and Communities,Other Agencies - Third Party Payment,30025683,CARLTON COURT (TLC GROUP),"2,318.93",01/08/2014
Delivery Units,Adults and Communities,Other Agencies - Third Party Payment,30025684,CARLTON COURT (TLC GROUP),"2,570.70",01/08/2014
Delivery Units,Adults and Communities,Other Agencies - Third Party Payment,30025685,CARLTON COURT (TLC GROUP),"2,570.70",01/08/2014
Delivery Units,Adults and Communities,Other Agencies - Third Party Payment,30025686,CARLTON COURT (TLC GROUP),"2,570.70",01/08/2014
Delivery Units,Adults and Communities,Other Agencies - Third Party Payment,30025687,CARLTON COURT (TLC GROUP),"2,570.70",01/08/2014
Delivery Units,Adults and Communities,Other Agencies - Third Party Payment,30025688,CARLTON COURT (TLC GROUP),"2,216.41",01/08/2014
Delivery Units,Adults and Communities,Other Agencies - Third Party Payment,30025689,CARLTON COURT (TLC GROUP),"2,418.04",01/08/2014
Delivery Units,Adults and Communities,Other Agencies - Third Party Payment,30025690,CARLTON COURT (TLC GROUP),"2,318.93",01/08/2014
Delivery Units,Adults and Communities,Other Agencies - Third Party Payment,30025691,CARLTON COURT (TLC GROUP),"2,570.70",01/08/2014
Delivery Units,Adults and Communities,Other Agencies - Third Party Payment,30025692,CARLTON COURT (TLC GROUP),"2,318.93",01/08/2014
Delivery Units,Adults and Communities,Other Agencies - Third Party Payment,30025693,CARLTON COURT (TLC GROUP),"2,570.69",01/08/2014
Delivery Units,Adults and Communities,Other Agencies - Third Party Payment,30025694,CARLTON COURT (TLC GROUP),-883.94,01/08/2014
Delivery Units,Adults and Communities,Other Agencies - Third Party Payment,30027160,CARMEN LODGE RESIDENTIAL HOME,"2,739.47",07/08/2014
Delivery Units,Adults and Communities,Other Agencies - Third Party Payment,30026250,CARTREF CARE HOME,"2,001.92",04/08/2014
Delivery Units,Adults and Communities,Other Agencies - Third Party Payment,30028304,CATHERINE LODGE,"2,184.04",18/08/2014
Delivery Units,Adults and Communities,Other Agencies - Third Party Payment,30028305,CATHERINE LODGE,"2,184.04",18/08/2014
Delivery Units,Adults and Communities,Other Agencies - Third Party Payment,30028306,CATHERINE LODGE,"2,184.04",18/08/2014
Delivery Units,Adults and Communities,Other Agencies - Third Party Payment,30031671,CATHERINE LODGE,"2,660.00",28/08/2014
Delivery Units,Adults and Communities,Other Agencies - Third Party Payment,30025927,CEDARS NURSING HOME,"2,570.70",01/08/2014
Delivery Units,Adults and Communities,Other Agencies - Third Party Payment,30025928,CEDARS NURSING HOME,"2,570.70",01/08/2014
Delivery Units,Adults and Communities,Other Agencies - Third Party Payment,30025929,CEDARS NURSING HOME,"2,570.70",01/08/2014
Delivery Units,Adults and Communities,Other Agencies - Third Party Payment,30025930,CEDARS NURSING HOME,"2,318.93",01/08/2014
Delivery Units,Adults and Communities,Other Agencies - Third Party Payment,30025931,CEDARS NURSING HOME,"2,358.17",01/08/2014
Delivery Units,Adults and Communities,Other Agencies - Third Party Payment,30025932,CEDARS NURSING HOME,"2,570.70",01/08/2014
Delivery Units,Adults and Communities,Other Agencies - Third Party Payment,30025933,CEDARS NURSING HOME,"2,570.70",01/08/2014
Delivery Units,Adults and Communities,Other Agencies - Third Party Payment,30025934,CEDARS NURSING HOME,"2,570.70",01/08/2014
Delivery Units,Adults and Communities,Other Agencies - Third Party Payment,30025935,CEDARS NURSING HOME,"2,570.70",01/08/2014
Delivery Units,Adults and Communities,Other Agencies - Third Party Payment,30025936,CEDARS NURSING HOME,"2,318.93",01/08/2014
Delivery Units,Adults and Communities,Other Agencies - Third Party Payment,30025937,CEDARS NURSING HOME,"2,570.70",01/08/2014
Delivery Units,Adults and Communities,Other Agencies - Third Party Payment,30025938,CEDARS NURSING HOME,"3,942.36",01/08/2014
Delivery Units,Adults and Communities,Other Agencies - Third Party Payment,30025939,CEDARS NURSING HOME,"2,358.17",01/08/2014
Delivery Units,Adults and Communities,Other Agencies - Third Party Payment,30025940,CEDARS NURSING HOME,"2,570.70",01/08/2014
Delivery Units,Adults and Communities,Other Agencies - Third Party Payment,30025941,CEDARS NURSING HOME,"2,418.04",01/08/2014
Delivery Units,Adults and Communities,Other Agencies - Third Party Payment,30027341,CEDARS NURSING HOME,829.26,08/08/2014
Delivery Units,Adults and Communities,Other Agencies - Third Party Payment,30021079,CENTRAL MIDDLESEX SKILLS,-904.6,07/08/2014
Delivery Units,Adults and Communities,Other Agencies - Third Party Payment,30027169,CENTRAL MIDDLESEX SKILLS,"1,266.44",07/08/2014
Delivery Units,Adults and Communities,Other Agencies - Third Party Payment,30027170,CENTRAL MIDDLESEX SKILLS,814.14,07/08/2014
Delivery Units,Adults and Communities,Other Agencies - Third Party Payment,30025863,CHARING GARDENS LTD,"2,124.61",01/08/2014
Delivery Units,Adults and Communities,Other Agencies - Third Party Payment,30025883,CHATSWORTH CARE,"10,606.43",01/08/2014
Delivery Units,Adults and Communities,Other Agencies - Third Party Payment,30026378,CHEQUERS TRANSPORT LIMITED,856.08,05/08/2014
Delivery Units,Adults and Communities,Other Agencies - Third Party Payment,30025894,CHOICE CARE GROUP,"8,736.73",01/08/2014
Delivery Units,Adults and Communities,Other Agencies - Third Party Payment,30030993,CLARE HOUSE NURSING HOME,"2,094.52",27/08/2014
Delivery Units,Adults and Communities,Other Agencies - Third Party Payment,30028213,CLOVELLY HOUSE RESID. HOME LTD,"1,872.64",14/08/2014
Delivery Units,Adults and Communities,Other Agencies - Third Party Payment,30028214,CLOVELLY HOUSE RESID. HOME LTD,"2,184.04",14/08/2014
Delivery Units,Adults and Communities,Other Agencies - Third Party Payment,30028215,CLOVELLY HOUSE RESID. HOME LTD,"2,600.00",14/08/2014
Delivery Units,Adults and Communities,Other Agencies - Third Party Payment,30028216,CLOVELLY HOUSE RESID. HOME LTD,"2,184.04",14/08/2014
Delivery Units,Adults and Communities,Other Agencies - Third Party Payment,30028217,CLOVELLY HOUSE RESID. HOME LTD,"2,184.04",14/08/2014
Delivery Units,Adults and Communities,Other Agencies - Third Party Payment,30028218,CLOVELLY HOUSE RESID. HOME LTD,"2,380.00",14/08/2014
Delivery Units,Adults and Communities,Other Agencies - Third Party Payment,30028413,CLOVELLY HOUSE RESID. HOME LTD,"2,184.04",18/08/2014
Delivery Units,Adults and Communities,Other Agencies - Third Party Payment,30022732,CMG HOMES LTD,"-2,166.42",13/08/2014
Delivery Units,Adults and Communities,Other Agencies - Third Party Payment,30028140,CMG HOMES LTD,"2,097.96",13/08/2014
Delivery Units,Adults and Communities,Other Agencies - Third Party Payment,30028142,CMG HOMES LTD,592.4,13/08/2014
Delivery Units,Adults and Communities,Other Agencies - Third Party Payment,30028143,CMG HOMES LTD,"2,097.96",13/08/2014
Delivery Units,Adults and Communities,Other Agencies - Third Party Payment,30028145,CMG HOMES LTD,592.4,13/08/2014
Delivery Units,Adults and Communities,Other Agencies - Third Party Payment,30028146,CMG HOMES LTD,"3,990.12",13/08/2014
Delivery Units,Adults and Communities,Other Agencies - Third Party Payment,30028151,CMG HOMES LTD,"-4,242.86",13/08/2014
Delivery Units,Adults and Communities,Other Agencies - Third Party Payment,30028152,CMG HOMES LTD,"3,086.84",13/08/2014
Delivery Units,Adults and Communities,Other Agencies - Third Party Payment,30028153,CMG HOMES LTD,"3,086.84",13/08/2014
Delivery Units,Adults and Communities,Other Agencies - Third Party Payment,30028154,CMG HOMES LTD,"3,086.84",13/08/2014
Delivery Units,Adults and Communities,Other Agencies - Third Party Payment,30028155,CMG HOMES LTD,"3,086.84",13/08/2014
Delivery Units,Adults and Communities,Other Agencies - Third Party Payment,30028158,CMG HOMES LTD,"4,800.00",13/08/2014
Delivery Units,Adults and Communities,Other Agencies - Third Party Payment,30028159,CMG HOMES LTD,"4,800.00",13/08/2014
Delivery Units,Adults and Communities,Other Agencies - Third Party Payment,30028160,CMG HOMES LTD,"4,800.00",13/08/2014
Delivery Units,Adults and Communities,Other Agencies - Third Party Payment,30028161,CMG HOMES LTD,"4,800.00",13/08/2014
Delivery Units,Adults and Communities,Other Agencies - Third Party Payment,30030770,CMG HOMES LTD,592.4,27/08/2014
Delivery Units,Adults and Communities,Other Agencies - Third Party Payment,30030771,CMG HOMES LTD,592.4,27/08/2014
Delivery Units,Adults and Communities,Other Agencies - Third Party Payment,30026173,COMPLETE CARE SERVICES LTD,"5,426.86",04/08/2014
Delivery Units,Adults and Communities,Other Agencies - Third Party Payment,30025999,CONNIFERS CARE LTD,"8,546.43",01/08/2014
Delivery Units,Adults and Communities,Other Agencies - Third Party Payment,30028200,CORE OUTREACH & CARE SERVICES UK LTD,"1,512.00",14/08/2014
Delivery Units,Adults and Communities,Other Agencies - Third Party Payment,30027227,COURTLANDS,"2,878.66",07/08/2014
Delivery Units,Adults and Communities,Other Agencies - Third Party Payment,30028960,COURTLANDS,"1,392.90",26/08/2014
Delivery Units,Adults and Communities,Other Agencies - Third Party Payment,30026200,CRAEGMOOR,"3,787.36",04/08/2014
Delivery Units,Adults and Communities,Other Agencies - Third Party Payment,30031802,CRANSTOUN DRUG SERVICES,"3,640.00",28/08/2014
Delivery Units,Adults and Communities,Other Agencies - Third Party Payment,30026499,CRESWICK HOUSE,"3,608.24",06/08/2014
Delivery Units,Adults and Communities,Other Agencies - Third Party Payment,30026501,CRESWICK HOUSE,"6,091.28",06/08/2014
Delivery Units,Adults and Communities,Other Agencies - Third Party Payment,30026503,CRESWICK HOUSE,"7,123.12",06/08/2014
Delivery Units,Adults and Communities,Other Agencies - Third Party Payment,30028462,CYGNET HEALTH CARE,"6,485.04",28/08/2014
Delivery Units,Adults and Communities,Other Agencies - Third Party Payment,30028356,DABB PAA,"1,092.96",18/08/2014
Delivery Units,Adults and Communities,Other Agencies - Third Party Payment,30026412,DILLON CARE LTD,"3,900.00",05/08/2014
Delivery Units,Adults and Communities,Other Agencies - Third Party Payment,30026009,DIMENSIONS UK,"1,645.60",01/08/2014
Delivery Units,Adults and Communities,Other Agencies - Third Party Payment,30026339,DIMENSIONS UK,965.6,04/08/2014
Delivery Units,Adults and Communities,Other Agencies - Third Party Payment,30027331,DIMENSIONS UK,"7,950.68",08/08/2014
Delivery Units,Adults and Communities,Other Agencies - Third Party Payment,30027332,DIMENSIONS UK,"7,950.68",08/08/2014
Delivery Units,Adults and Communities,Other Agencies - Third Party Payment,30027333,DIMENSIONS UK,"1,196.80",08/08/2014
Delivery Units,Adults and Communities,Other Agencies - Third Party Payment,30027334,DIMENSIONS UK,748,08/08/2014
Delivery Units,Adults and Communities,Other Agencies - Third Party Payment,30027335,DIMENSIONS UK,860.2,08/08/2014
Delivery Units,Adults and Communities,Other Agencies - Third Party Payment,30027337,DIMENSIONS UK,"7,950.68",08/08/2014
Delivery Units,Adults and Communities,Other Agencies - Third Party Payment,30028718,DIMENSIONS UK,"1,570.80",19/08/2014
Delivery Units,Adults and Communities,Other Agencies - Third Party Payment,30028719,DIMENSIONS UK,"1,570.80",19/08/2014
Delivery Units,Adults and Communities,Other Agencies - Third Party Payment,30030378,DIMENSIONS UK,965.6,22/08/2014
Delivery Units,Adults and Communities,Other Agencies - Third Party Payment,30030385,DIMENSIONS UK,"6,025.32",22/08/2014
Delivery Units,Adults and Communities,Other Agencies - Third Party Payment,30030386,DIMENSIONS UK,"4,495.76",22/08/2014
Delivery Units,Adults and Communities,Other Agencies - Third Party Payment,30030387,DIMENSIONS UK,"4,495.76",22/08/2014
Delivery Units,Adults and Communities,Other Agencies - Third Party Payment,30030679,DIMENSIONS UK,"2,128.00",26/08/2014
Delivery Units,Adults and Communities,Other Agencies - Third Party Payment,30030684,DIMENSIONS UK,"1,541.00",26/08/2014
Delivery Units,Adults and Communities,Other Agencies - Third Party Payment,30031800,DIMENSIONS UK,"1,196.80",28/08/2014
Delivery Units,Adults and Communities,Other Agencies - Third Party Payment,30031801,DIMENSIONS UK,748,28/08/2014
Delivery Units,Adults and Communities,Other Agencies - Third Party Payment,30031992,DIMENSIONS UK,850.85,29/08/2014
Delivery Units,Adults and Communities,Other Agencies - Third Party Payment,30028702,DR FRENCH MEMORIAL HOME LTD,702.01,20/08/2014
Delivery Units,Adults and Communities,Other Agencies - Third Party Payment,30028703,DR FRENCH MEMORIAL HOME LTD,"1,014.02",20/08/2014
Delivery Units,Adults and Communities,Other Agencies - Third Party Payment,30026520,DYNAMIC PEOPLE LTD,799,06/08/2014
Delivery Units,Adults and Communities,Other Agencies - Third Party Payment,30027187,DYNAMIC PEOPLE LTD,"1,339.00",07/08/2014
Delivery Units,Adults and Communities,Other Agencies - Third Party Payment,30027188,DYNAMIC PEOPLE LTD,985,07/08/2014
Delivery Units,Adults and Communities,Other Agencies - Third Party Payment,30028169,DYNAMIC PEOPLE LTD,610,13/08/2014
Delivery Units,Adults and Communities,Other Agencies - Third Party Payment,30029932,DYNAMIC PEOPLE LTD,"2,068.00",21/08/2014
Delivery Units,Adults and Communities,Other Agencies - Third Party Payment,20010093,EASTSIDE HOUSE RESIDENTIAL CARE HOM,"2,001.92",01/08/2014
Delivery Units,Adults and Communities,Other Agencies - Third Party Payment,30028301,EASTSIDE HOUSE RESIDENTIAL CARE HOM,"2,001.92",15/08/2014
Delivery Units,Adults and Communities,Other Agencies - Third Party Payment,30028734,EASTSIDE HOUSE RESIDENTIAL CARE HOM,"1,638.00",19/08/2014
Delivery Units,Adults and Communities,Other Agencies - Third Party Payment,30031746,EASTSIDE HOUSE RESIDENTIAL CARE HOM,"2,184.04",29/08/2014
Delivery Units,Adults and Communities,Other Agencies - Third Party Payment,30027276,ELEANOR PALMER TRUST NO 2 A/C.,"1,638.03",08/08/2014
Delivery Units,Adults and Communities,Other Agencies - Third Party Payment,30030234,ELEANOR PALMER TRUST NO 2 A/C.,"2,184.04",22/08/2014
Delivery Units,Adults and Communities,Other Agencies - Third Party Payment,30027157,ELIZA HOUSE,"2,216.41",07/08/2014
Delivery Units,Adults and Communities,Other Agencies - Third Party Payment,30028211,ELIZABETH HOUSE,"5,280.00",15/08/2014
Delivery Units,Adults and Communities,Other Agencies - Third Party Payment,30027195,ELM PARK LODGE,"3,652.91",08/08/2014
Delivery Units,Adults and Communities,Other Agencies - Third Party Payment,30027200,ELM PARK LODGE,"3,166.43",08/08/2014
Delivery Units,Adults and Communities,Other Agencies - Third Party Payment,30027201,ELM PARK LODGE,-548.92,08/08/2014
Delivery Units,Adults and Communities,Other Agencies - Third Party Payment,30027202,ELM PARK LODGE,"3,520.71",08/08/2014
Delivery Units,Adults and Communities,Other Agencies - Third Party Payment,30027213,ELM PARK LODGE,"3,612.87",08/08/2014
Delivery Units,Adults and Communities,Other Agencies - Third Party Payment,30027216,ELM PARK LODGE,"2,103.31",08/08/2014
Delivery Units,Adults and Communities,Other Agencies - Third Party Payment,30027219,ELM PARK LODGE,"3,100.00",08/08/2014
Delivery Units,Adults and Communities,Other Agencies - Third Party Payment,30027221,ELM PARK LODGE,"2,161.85",08/08/2014
Delivery Units,Adults and Communities,Other Agencies - Third Party Payment,30027223,ELM PARK LODGE,"3,299.29",08/08/2014
Delivery Units,Adults and Communities,Other Agencies - Third Party Payment,30027224,ELM PARK LODGE,"3,387.86",08/08/2014
Delivery Units,Adults and Communities,Other Agencies - Third Party Payment,30027225,ELM PARK LODGE,"3,210.71",08/08/2014
Delivery Units,Adults and Communities,Other Agencies - Third Party Payment,30027228,ELM PARK LODGE,"3,387.86",08/08/2014
Delivery Units,Adults and Communities,Other Agencies - Third Party Payment,30027235,ELM PARK LODGE,"2,035.46",15/08/2014
Delivery Units,Adults and Communities,Other Agencies - Third Party Payment,30027236,ELM PARK LODGE,-531.21,15/08/2014
Delivery Units,Adults and Communities,Other Agencies - Third Party Payment,30027237,ELM PARK LODGE,"2,103.31",08/08/2014
Delivery Units,Adults and Communities,Other Agencies - Third Party Payment,30027238,ELM PARK LODGE,-548.92,08/08/2014
Delivery Units,Adults and Communities,Other Agencies - Third Party Payment,30027239,ELM PARK LODGE,"3,455.61",08/08/2014
Delivery Units,Adults and Communities,Other Agencies - Third Party Payment,30027245,ELM PARK LODGE,"3,612.87",08/08/2014
Delivery Units,Adults and Communities,Other Agencies - Third Party Payment,30027293,ELM PARK LODGE,"3,064.28",08/08/2014
Delivery Units,Adults and Communities,Other Agencies - Third Party Payment,30027294,ELM PARK LODGE,-531.21,08/08/2014
Delivery Units,Adults and Communities,Other Agencies - Third Party Payment,30027326,ELM PARK LODGE,"2,035.45",08/08/2014
Delivery Units,Adults and Communities,Other Agencies - Third Party Payment,30028954,ELM PARK LODGE,"2,103.31",22/08/2014
Delivery Units,Adults and Communities,Other Agencies - Third Party Payment,30028963,ELM PARK LODGE,"3,612.87",22/08/2014
Delivery Units,Adults and Communities,Other Agencies - Third Party Payment,30030329,EMMAUS HOUSE,"2,184.04",22/08/2014
Delivery Units,Adults and Communities,Other Agencies - Third Party Payment,30027182,FERNBANK NURSING HOME.,"2,318.80",07/08/2014
Delivery Units,Adults and Communities,Other Agencies - Third Party Payment,30027183,FERNBANK NURSING HOME.,"2,318.80",07/08/2014
Delivery Units,Adults and Communities,Other Agencies - Third Party Payment,30027289,FERNBANK NURSING HOME.,"2,570.52",08/08/2014
Delivery Units,Adults and Communities,Other Agencies - Third Party Payment,30027290,FERNBANK NURSING HOME.,"1,645.60",08/08/2014
Delivery Units,Adults and Communities,Other Agencies - Third Party Payment,30027328,FLAGSWAN TWO LTD,"2,418.04",08/08/2014
Delivery Units,Adults and Communities,Other Agencies - Third Party Payment,30027329,FLAGSWAN TWO LTD,"1,755.68",08/08/2014
Delivery Units,Adults and Communities,Other Agencies - Third Party Payment,30027330,FLAGSWAN TWO LTD,"2,546.43",08/08/2014
Delivery Units,Adults and Communities,Other Agencies - Third Party Payment,30028184,FOUR SEASONS HEALTH CARE,"2,447.76",13/08/2014
Delivery Units,Adults and Communities,Other Agencies - Third Party Payment,30028185,FOUR SEASONS HEALTH CARE,"2,090.12",13/08/2014
Delivery Units,Adults and Communities,Other Agencies - Third Party Payment,30028186,FOUR SEASONS HEALTH CARE,"2,090.12",13/08/2014
Delivery Units,Adults and Communities,Other Agencies - Third Party Payment,30028187,FOUR SEASONS HEALTH CARE,"2,127.92",13/08/2014
Delivery Units,Adults and Communities,Other Agencies - Third Party Payment,30028188,FOUR SEASONS HEALTH CARE,"2,317.52",13/08/2014
Delivery Units,Adults and Communities,Other Agencies - Third Party Payment,30028189,FOUR SEASONS HEALTH CARE,"2,317.52",13/08/2014
Delivery Units,Adults and Communities,Other Agencies - Third Party Payment,30028190,FOUR SEASONS HEALTH CARE,"2,090.12",13/08/2014
Delivery Units,Adults and Communities,Other Agencies - Third Party Payment,30028191,FOUR SEASONS HEALTH CARE,"2,317.52",13/08/2014
Delivery Units,Adults and Communities,Other Agencies - Third Party Payment,30028192,FOUR SEASONS HEALTH CARE,"2,090.12",13/08/2014
Delivery Units,Adults and Communities,Other Agencies - Third Party Payment,30028193,FOUR SEASONS HEALTH CARE,"2,074.88",13/08/2014
Delivery Units,Adults and Communities,Other Agencies - Third Party Payment,30028194,FOUR SEASONS HEALTH CARE,"2,090.12",13/08/2014
Delivery Units,Adults and Communities,Other Agencies - Third Party Payment,30028195,FOUR SEASONS HEALTH CARE,"1,716.89",13/08/2014
Delivery Units,Adults and Communities,Other Agencies - Third Party Payment,30028429,FOUR SEASONS HEALTH CARE,"2,137.69",18/08/2014
Delivery Units,Adults and Communities,Other Agencies - Third Party Payment,30028430,FOUR SEASONS HEALTH CARE,"2,127.92",18/08/2014
Delivery Units,Adults and Communities,Other Agencies - Third Party Payment,30031979,FOUR SEASONS HEALTH CARE,"2,447.76",29/08/2014
Delivery Units,Adults and Communities,Other Agencies - Third Party Payment,30031980,FOUR SEASONS HEALTH CARE,"2,090.12",29/08/2014
Delivery Units,Adults and Communities,Other Agencies - Third Party Payment,30031981,FOUR SEASONS HEALTH CARE,"2,090.12",29/08/2014
Delivery Units,Adults and Communities,Other Agencies - Third Party Payment,30031982,FOUR SEASONS HEALTH CARE,"2,127.92",29/08/2014
Delivery Units,Adults and Communities,Other Agencies - Third Party Payment,30031983,FOUR SEASONS HEALTH CARE,"2,317.52",29/08/2014
Delivery Units,Adults and Communities,Other Agencies - Third Party Payment,30031984,FOUR SEASONS HEALTH CARE,"2,317.52",29/08/2014
Delivery Units,Adults and Communities,Other Agencies - Third Party Payment,30031985,FOUR SEASONS HEALTH CARE,"2,090.12",29/08/2014
Delivery Units,Adults and Communities,Other Agencies - Third Party Payment,30031986,FOUR SEASONS HEALTH CARE,"2,090.12",29/08/2014
Delivery Units,Adults and Communities,Other Agencies - Third Party Payment,30031987,FOUR SEASONS HEALTH CARE,"2,317.52",29/08/2014
Delivery Units,Adults and Communities,Other Agencies - Third Party Payment,30031988,FOUR SEASONS HEALTH CARE,"2,090.12",29/08/2014
Delivery Units,Adults and Communities,Other Agencies - Third Party Payment,30031989,FOUR SEASONS HEALTH CARE,"2,074.88",29/08/2014
Delivery Units,Adults and Communities,Other Agencies - Third Party Payment,30031990,FOUR SEASONS HEALTH CARE,"2,090.12",29/08/2014
Delivery Units,Adults and Communities,Other Agencies - Third Party Payment,30027240,FREEWAYS TRUST LIMITED,"2,979.76",07/08/2014
Delivery Units,Adults and Communities,Other Agencies - Third Party Payment,30027241,FREEWAYS TRUST LIMITED,-890.2,07/08/2014
Delivery Units,Adults and Communities,Other Agencies - Third Party Payment,30027242,FREEWAYS TRUST LIMITED,829.8,07/08/2014
Delivery Units,Adults and Communities,Other Agencies - Third Party Payment,30025757,FREMANTLE TRUST,"-2,999.70",01/08/2014
Delivery Units,Adults and Communities,Other Agencies - Third Party Payment,30026324,FREMANTLE TRUST,"2,236.44",04/08/2014
Delivery Units,Adults and Communities,Other Agencies - Third Party Payment,30026325,FREMANTLE TRUST,"2,236.44",04/08/2014
Delivery Units,Adults and Communities,Other Agencies - Third Party Payment,30026326,FREMANTLE TRUST,"2,236.44",04/08/2014
Delivery Units,Adults and Communities,Other Agencies - Third Party Payment,30030667,FREMANTLE TRUST,"5,876.74",26/08/2014
Delivery Units,Adults and Communities,Other Agencies - Third Party Payment,30030669,FREMANTLE TRUST,"23,362.45",26/08/2014
Delivery Units,Adults and Communities,Other Agencies - Third Party Payment,30030670,FREMANTLE TRUST,"-3,122.00",26/08/2014
Delivery Units,Adults and Communities,Other Agencies - Third Party Payment,30030671,FREMANTLE TRUST,"35,645.80",26/08/2014
Delivery Units,Adults and Communities,Other Agencies - Third Party Payment,30030672,FREMANTLE TRUST,"-2,156.20",26/08/2014
Delivery Units,Adults and Communities,Other Agencies - Third Party Payment,30031788,FREMANTLE TRUST,"2,236.44",28/08/2014
Delivery Units,Adults and Communities,Other Agencies - Third Party Payment,30026225,GABRIEL COURT RESIDENTIAL HOME,"2,793.23",04/08/2014
Delivery Units,Adults and Communities,Other Agencies - Third Party Payment,30026226,GABRIEL COURT RESIDENTIAL HOME,-610.3,04/08/2014
Delivery Units,Adults and Communities,Other Agencies - Third Party Payment,30028704,GENTLE HANDS CARE AGENCY,"1,232.00",19/08/2014
Delivery Units,Adults and Communities,Other Agencies - Third Party Payment,30031783,GENTLE HANDS CARE HOMES LIMITED,"4,394.00",28/08/2014
Delivery Units,Adults and Communities,Other Agencies - Third Party Payment,30031784,GENTLE HANDS CARE HOMES LIMITED,"4,394.00",28/08/2014
Delivery Units,Adults and Communities,Other Agencies - Third Party Payment,20010047,GLEBELANDS,"12,000.00",01/08/2014
Delivery Units,Adults and Communities,Other Agencies - Third Party Payment,30025874,GLOUCESTERSHIRE GROUP HOMES,"4,189.16",01/08/2014
Delivery Units,Adults and Communities,Other Agencies - Third Party Payment,30025875,GLOUCESTERSHIRE GROUP HOMES,-814.41,01/08/2014
Delivery Units,Adults and Communities,Other Agencies - Third Party Payment,30026211,GREENFIELDS RESIDENTIAL HOME,"2,216.41",04/08/2014
Delivery Units,Adults and Communities,Other Agencies - Third Party Payment,30026212,GREENFIELDS RESIDENTIAL HOME,-851.61,04/08/2014
Delivery Units,Adults and Communities,Other Agencies - Third Party Payment,30027265,H.C.S. (ENFIELD) LTD,"5,271.77",08/08/2014
Delivery Units,Adults and Communities,Other Agencies - Third Party Payment,30026304,HALLMARK CARE (KINGS LYNN) LTD,"2,890.31",04/08/2014
Delivery Units,Adults and Communities,Other Agencies - Third Party Payment,30028436,HARDEN,"4,343.12",18/08/2014
Delivery Units,Adults and Communities,Other Agencies - Third Party Payment,20010812,HARRYMAN FURNITURE,700,22/08/2014
Delivery Units,Adults and Communities,Other Agencies - Third Party Payment,30028537,HARTWIG CARE LIMITED,"2,175.78",19/08/2014
Delivery Units,Adults and Communities,Other Agencies - Third Party Payment,30028540,HARTWIG CARE LIMITED,863.79,19/08/2014
Delivery Units,Adults and Communities,Other Agencies - Third Party Payment,30028543,HARTWIG CARE LIMITED,885.1,19/08/2014
Delivery Units,Adults and Communities,Other Agencies - Third Party Payment,30028876,HARTWIG CARE LIMITED,526.94,20/08/2014
Delivery Units,Adults and Communities,Other Agencies - Third Party Payment,30028883,HARTWIG CARE LIMITED,682,20/08/2014
Delivery Units,Adults and Communities,Other Agencies - Third Party Payment,30028884,HARTWIG CARE LIMITED,527.34,20/08/2014
Delivery Units,Adults and Communities,Other Agencies - Third Party Payment,30029835,HARTWIG CARE LIMITED,691.77,21/08/2014
Delivery Units,Adults and Communities,Other Agencies - Third Party Payment,30029837,HARTWIG CARE LIMITED,"1,075.11",21/08/2014
Delivery Units,Adults and Communities,Other Agencies - Third Party Payment,30029839,HARTWIG CARE LIMITED,"1,098.40",21/08/2014
Delivery Units,Adults and Communities,Other Agencies - Third Party Payment,30029845,HARTWIG CARE LIMITED,993.6,21/08/2014
Delivery Units,Adults and Communities,Other Agencies - Third Party Payment,30031931,HARTWIG CARE LIMITED,"1,484.60",29/08/2014
Delivery Units,Adults and Communities,Other Agencies - Third Party Payment,30031932,HARTWIG CARE LIMITED,"2,550.75",29/08/2014
Delivery Units,Adults and Communities,Other Agencies - Third Party Payment,30031933,HARTWIG CARE LIMITED,"2,300.97",29/08/2014
Delivery Units,Adults and Communities,Other Agencies - Third Party Payment,30031934,HARTWIG CARE LIMITED,"2,250.84",29/08/2014
Delivery Units,Adults and Communities,Other Agencies - Third Party Payment,30031946,HARTWIG CARE LIMITED,"1,239.23",29/08/2014
Delivery Units,Adults and Communities,Other Agencies - Third Party Payment,30026227,HENRY NIHILL HOUSE,"1,421.28",04/08/2014
Delivery Units,Adults and Communities,Other Agencies - Third Party Payment,30027177,HENRY NIHILL HOUSE,"2,001.92",12/08/2014
Delivery Units,Adults and Communities,Other Agencies - Third Party Payment,30027179,HENRY NIHILL HOUSE,"2,321.92",12/08/2014
Delivery Units,Adults and Communities,Other Agencies - Third Party Payment,30027180,HENRY NIHILL HOUSE,"2,321.92",12/08/2014
Delivery Units,Adults and Communities,Other Agencies - Third Party Payment,30027181,HENRY NIHILL HOUSE,"2,321.92",12/08/2014
Delivery Units,Adults and Communities,Other Agencies - Third Party Payment,30028373,HENRY NIHILL HOUSE,"2,094.52",19/08/2014
Delivery Units,Adults and Communities,Other Agencies - Third Party Payment,30025882,HILLGREEN CARE LTD,"7,093.24",01/08/2014
Delivery Units,Adults and Communities,Other Agencies - Third Party Payment,30030259,HILLVIEW COURT NURSING HOME,"4,200.00",22/08/2014
Delivery Units,Adults and Communities,Other Agencies - Third Party Payment,30026312,HILTON LODGE LTD.,"3,900.07",04/08/2014
Delivery Units,Adults and Communities,Other Agencies - Third Party Payment,30027210,HILTON LODGE LTD.,"5,772.10",07/08/2014
Delivery Units,Adults and Communities,Other Agencies - Third Party Payment,30028416,HILTON LODGE LTD.,"2,184.04",18/08/2014
Delivery Units,Adults and Communities,Other Agencies - Third Party Payment,30028417,HILTON LODGE LTD.,-581.32,18/08/2014
Delivery Units,Adults and Communities,Other Agencies - Third Party Payment,30028418,HILTON LODGE LTD.,"2,184.04",18/08/2014
Delivery Units,Adults and Communities,Other Agencies - Third Party Payment,30028419,HILTON LODGE LTD.,-783.2,18/08/2014
Delivery Units,Adults and Communities,Other Agencies - Third Party Payment,30028428,HILTON LODGE LTD.,"2,184.03",18/08/2014
Delivery Units,Adults and Communities,Other Agencies - Third Party Payment,30028432,HILTON LODGE LTD.,"2,256.04",18/08/2014
Delivery Units,Adults and Communities,Other Agencies - Third Party Payment,30028437,HILTON LODGE LTD.,"2,184.04",18/08/2014
Delivery Units,Adults and Communities,Other Agencies - Third Party Payment,30028438,HILTON LODGE LTD.,"2,184.04",18/08/2014
Delivery Units,Adults and Communities,Other Agencies - Third Party Payment,30028464,HILTON LODGE LTD.,"2,184.04",18/08/2014
Delivery Units,Adults and Communities,Other Agencies - Third Party Payment,30028465,HILTON LODGE LTD.,"2,184.04",18/08/2014
Delivery Units,Adults and Communities,Other Agencies - Third Party Payment,30026005,HOLLY HOUSE RESIDENTIAL CARE HOME,"3,764.28",01/08/2014
Delivery Units,Adults and Communities,Other Agencies - Third Party Payment,30026524,HOME FARM TRUST LTD,"8,034.76",06/08/2014
Delivery Units,Adults and Communities,Other Agencies - Third Party Payment,30026526,HOME FARM TRUST LTD,"2,657.40",06/08/2014
Delivery Units,Adults and Communities,Other Agencies - Third Party Payment,30031021,HOME FROM HOME CARE LTD,"9,769.00",27/08/2014
Delivery Units,Adults and Communities,Other Agencies - Third Party Payment,30026364,HUSKARDS NEW CARE LTD,"2,216.50",04/08/2014
Delivery Units,Adults and Communities,Other Agencies - Third Party Payment,30028518,INDEPENDENCE HOMES LIMITED,"5,400.00",19/08/2014
Delivery Units,Adults and Communities,Other Agencies - Third Party Payment,30025850,INDIVIDUALISED CARE LIMITED,"2,100.00",01/08/2014
Delivery Units,Adults and Communities,Other Agencies - Third Party Payment,30025851,INDIVIDUALISED CARE LIMITED,"2,400.00",01/08/2014
Delivery Units,Adults and Communities,Other Agencies - Third Party Payment,30025852,INDIVIDUALISED CARE LIMITED,"2,200.00",01/08/2014
Delivery Units,Adults and Communities,Other Agencies - Third Party Payment,30025853,INDIVIDUALISED CARE LIMITED,800,01/08/2014
Delivery Units,Adults and Communities,Other Agencies - Third Party Payment,30025854,INDIVIDUALISED CARE LIMITED,642,01/08/2014
Delivery Units,Adults and Communities,Other Agencies - Third Party Payment,30025855,INDIVIDUALISED CARE LIMITED,800,01/08/2014
Delivery Units,Adults and Communities,Other Agencies - Third Party Payment,30025857,INDIVIDUALISED CARE LIMITED,800,01/08/2014
Delivery Units,Adults and Communities,Other Agencies - Third Party Payment,30026166,INDIVIDUALISED CARE LIMITED,700,04/08/2014
Delivery Units,Adults and Communities,Other Agencies - Third Party Payment,30026167,INDIVIDUALISED CARE LIMITED,600,04/08/2014
Delivery Units,Adults and Communities,Other Agencies - Third Party Payment,30026168,INDIVIDUALISED CARE LIMITED,656,04/08/2014
Delivery Units,Adults and Communities,Other Agencies - Third Party Payment,30026371,INDIVIDUALISED CARE LIMITED,"2,400.00",05/08/2014
Delivery Units,Adults and Communities,Other Agencies - Third Party Payment,30027148,INDIVIDUALISED CARE LIMITED,700,07/08/2014
Delivery Units,Adults and Communities,Other Agencies - Third Party Payment,30028299,INDIVIDUALISED CARE LIMITED,525,18/08/2014
Delivery Units,Adults and Communities,Other Agencies - Third Party Payment,30025884,INSIGHT SPECIALIST BEHAVIOURAL,"5,944.08",01/08/2014
Delivery Units,Adults and Communities,Other Agencies - Third Party Payment,30030242,IVER HOUSE LTD,"3,800.39",22/08/2014
Delivery Units,Adults and Communities,Other Agencies - Third Party Payment,30026186,JANITH HOMES LTD,"2,650.19",04/08/2014
Delivery Units,Adults and Communities,Other Agencies - Third Party Payment,30028293,JEAN JUGAN RESIDENCE,"2,094.52",15/08/2014
Delivery Units,Adults and Communities,Other Agencies - Third Party Payment,30028170,JEWISH CARE,-855.81,20/08/2014
Delivery Units,Adults and Communities,Other Agencies - Third Party Payment,30028171,JEWISH CARE,"1,876.79",20/08/2014
Delivery Units,Adults and Communities,Other Agencies - Third Party Payment,30028172,JEWISH CARE,-628.57,20/08/2014
Delivery Units,Adults and Communities,Other Agencies - Third Party Payment,30028174,JEWISH CARE,"-6,961.62",20/08/2014
Delivery Units,Adults and Communities,Other Agencies - Third Party Payment,30028175,JEWISH CARE,785.44,20/08/2014
Delivery Units,Adults and Communities,Other Agencies - Third Party Payment,30028179,JEWISH CARE,-660,20/08/2014
Delivery Units,Adults and Communities,Other Agencies - Third Party Payment,30029938,JEWISH CARE,"2,102.00",21/08/2014
Delivery Units,Adults and Communities,Other Agencies - Third Party Payment,30029941,JEWISH CARE,"3,200.00",21/08/2014
Delivery Units,Adults and Communities,Other Agencies - Third Party Payment,30029945,JEWISH CARE,"3,999.84",21/08/2014
Delivery Units,Adults and Communities,Other Agencies - Third Party Payment,30029946,JEWISH CARE,"3,800.00",21/08/2014
Delivery Units,Adults and Communities,Other Agencies - Third Party Payment,30029949,JEWISH CARE,"2,199.24",21/08/2014
Delivery Units,Adults and Communities,Other Agencies - Third Party Payment,30029950,JEWISH CARE,"3,360.00",21/08/2014
Delivery Units,Adults and Communities,Other Agencies - Third Party Payment,30029953,JEWISH CARE,"2,133.84",21/08/2014
Delivery Units,Adults and Communities,Other Agencies - Third Party Payment,30031764,JEWISH CARE,"-2,042.85",28/08/2014
Delivery Units,Adults and Communities,Other Agencies - Third Party Payment,30031765,JEWISH CARE,"3,360.00",28/08/2014
Delivery Units,Adults and Communities,Other Agencies - Third Party Payment,30031767,JEWISH CARE,"4,200.00",28/08/2014
Delivery Units,Adults and Communities,Other Agencies - Third Party Payment,30031770,JEWISH CARE,"3,208.60",28/08/2014
Delivery Units,Adults and Communities,Other Agencies - Third Party Payment,30031772,JEWISH CARE,"1,744.73",28/08/2014
Delivery Units,Adults and Communities,Other Agencies - Third Party Payment,30027153,JIGSAW CREATIVE CARE LIMITED,"2,998.68",07/08/2014
Delivery Units,Adults and Communities,Other Agencies - Third Party Payment,30027155,JIGSAW CREATIVE CARE LIMITED,"2,783.00",07/08/2014
Delivery Units,Adults and Communities,Other Agencies - Third Party Payment,30027156,JIGSAW CREATIVE CARE LIMITED,"1,412.00",07/08/2014
Delivery Units,Adults and Communities,Other Agencies - Third Party Payment,30028245,JIGSAW CREATIVE CARE LIMITED,"2,998.68",15/08/2014
Delivery Units,Adults and Communities,Other Agencies - Third Party Payment,30028247,JIGSAW CREATIVE CARE LIMITED,"2,783.00",15/08/2014
Delivery Units,Adults and Communities,Other Agencies - Third Party Payment,30028248,JIGSAW CREATIVE CARE LIMITED,"1,412.00",15/08/2014
Delivery Units,Adults and Communities,Other Agencies - Third Party Payment,30030194,JIGSAW CREATIVE CARE LIMITED,"2,998.68",22/08/2014
Delivery Units,Adults and Communities,Other Agencies - Third Party Payment,30030195,JIGSAW CREATIVE CARE LIMITED,"1,412.00",22/08/2014
Delivery Units,Adults and Communities,Other Agencies - Third Party Payment,30030196,JIGSAW CREATIVE CARE LIMITED,"2,783.00",22/08/2014
Delivery Units,Adults and Communities,Other Agencies - Third Party Payment,30031676,JIGSAW CREATIVE CARE LIMITED,"1,412.00",28/08/2014
Delivery Units,Adults and Communities,Other Agencies - Third Party Payment,30031677,JIGSAW CREATIVE CARE LIMITED,"2,783.00",28/08/2014
Delivery Units,Adults and Communities,Other Agencies - Third Party Payment,30026153,KEMBLE HOUSE,"9,368.10",04/08/2014
Delivery Units,Adults and Communities,Other Agencies - Third Party Payment,30026154,KEMBLE HOUSE,"8,192.99",04/08/2014
Delivery Units,Adults and Communities,Other Agencies - Third Party Payment,30027264,KEMBLE HOUSE,"9,680.37",08/08/2014
Delivery Units,Adults and Communities,Other Agencies - Third Party Payment,30028227,KIRKLEY MANOR,"2,001.92",14/08/2014
Delivery Units,Adults and Communities,Other Agencies - Third Party Payment,30025885,KISHARON DAY SCHOOL,"1,464.03",01/08/2014
Delivery Units,Adults and Communities,Other Agencies - Third Party Payment,30025886,KISHARON DAY SCHOOL,"4,260.72",01/08/2014
Delivery Units,Adults and Communities,Other Agencies - Third Party Payment,30025887,KISHARON DAY SCHOOL,"1,373.49",01/08/2014
Delivery Units,Adults and Communities,Other Agencies - Third Party Payment,30025888,KISHARON DAY SCHOOL,"1,679.87",01/08/2014
Delivery Units,Adults and Communities,Other Agencies - Third Party Payment,30025889,KISHARON DAY SCHOOL,"1,340.18",01/08/2014
Delivery Units,Adults and Communities,Other Agencies - Third Party Payment,30025890,KISHARON DAY SCHOOL,"1,241.16",01/08/2014
Delivery Units,Adults and Communities,Other Agencies - Third Party Payment,30025891,KISHARON DAY SCHOOL,"1,369.23",01/08/2014
Delivery Units,Adults and Communities,Other Agencies - Third Party Payment,30025892,KISHARON DAY SCHOOL,"1,133.60",01/08/2014
Delivery Units,Adults and Communities,Other Agencies - Third Party Payment,30026205,KISHARON DAY SCHOOL,"2,284.24",04/08/2014
Delivery Units,Adults and Communities,Other Agencies - Third Party Payment,30026206,KISHARON DAY SCHOOL,794.08,04/08/2014
Delivery Units,Adults and Communities,Other Agencies - Third Party Payment,30026208,KISHARON DAY SCHOOL,"1,373.68",04/08/2014
Delivery Units,Adults and Communities,Other Agencies - Third Party Payment,30026380,KISHARON DAY SCHOOL,"2,144.10",05/08/2014
Delivery Units,Adults and Communities,Other Agencies - Third Party Payment,30026381,KISHARON DAY SCHOOL,"1,373.68",05/08/2014
Delivery Units,Adults and Communities,Other Agencies - Third Party Payment,30026382,KISHARON DAY SCHOOL,"1,373.49",05/08/2014
Delivery Units,Adults and Communities,Other Agencies - Third Party Payment,30026384,KISHARON DAY SCHOOL,733.72,05/08/2014
Delivery Units,Adults and Communities,Other Agencies - Third Party Payment,30026386,KISHARON DAY SCHOOL,"1,275.96",05/08/2014
Delivery Units,Adults and Communities,Other Agencies - Third Party Payment,30027277,KISHARON DAY SCHOOL,"3,098.05",08/08/2014
Delivery Units,Adults and Communities,Other Agencies - Third Party Payment,30027279,KISHARON DAY SCHOOL,"5,044.23",08/08/2014
Delivery Units,Adults and Communities,Other Agencies - Third Party Payment,30027281,KISHARON DAY SCHOOL,"3,098.05",08/08/2014
Delivery Units,Adults and Communities,Other Agencies - Third Party Payment,30027283,KISHARON DAY SCHOOL,"3,098.05",08/08/2014
Delivery Units,Adults and Communities,Other Agencies - Third Party Payment,30031974,LANCAM CARE NURSING HOME,"9,126.82",29/08/2014
Delivery Units,Adults and Communities,Other Agencies - Third Party Payment,30031975,LANCAM CARE NURSING HOME,"6,732.90",29/08/2014
Delivery Units,Adults and Communities,Other Agencies - Third Party Payment,30026359,LANCASTER COURT,"2,615.38",04/08/2014
Delivery Units,Adults and Communities,Other Agencies - Third Party Payment,30026360,LANCASTER COURT,"1,747.44",04/08/2014
Delivery Units,Adults and Communities,Other Agencies - Third Party Payment,30026252,LANGDON COMMUNITY LTD,-731.69,04/08/2014
Delivery Units,Adults and Communities,Other Agencies - Third Party Payment,30026261,LANGDON COMMUNITY LTD,-810.65,04/08/2014
Delivery Units,Adults and Communities,Other Agencies - Third Party Payment,30026272,LANGDON COMMUNITY LTD,956.38,04/08/2014
Delivery Units,Adults and Communities,Other Agencies - Third Party Payment,30026282,LANGDON COMMUNITY LTD,"3,144.56",04/08/2014
Delivery Units,Adults and Communities,Other Agencies - Third Party Payment,30026307,LANGDON COMMUNITY LTD,"3,411.49",04/08/2014
Delivery Units,Adults and Communities,Other Agencies - Third Party Payment,30026310,LANGDON COMMUNITY LTD,"1,763.20",04/08/2014
Delivery Units,Adults and Communities,Other Agencies - Third Party Payment,30026316,LANGDON COMMUNITY LTD,"1,772.32",04/08/2014
Delivery Units,Adults and Communities,Other Agencies - Third Party Payment,30026320,LANGDON COMMUNITY LTD,"2,097.60",04/08/2014
Delivery Units,Adults and Communities,Other Agencies - Third Party Payment,30026321,LANGDON COMMUNITY LTD,"5,002.62",04/08/2014
Delivery Units,Adults and Communities,Other Agencies - Third Party Payment,30026322,LANGDON COMMUNITY LTD,"5,542.53",04/08/2014
Delivery Units,Adults and Communities,Other Agencies - Third Party Payment,30026331,LANGDON COMMUNITY LTD,"2,128.00",04/08/2014
Delivery Units,Adults and Communities,Other Agencies - Third Party Payment,30026366,LANGDON COMMUNITY LTD,"1,315.12",04/08/2014
Delivery Units,Adults and Communities,Other Agencies - Third Party Payment,30026368,LANGDON COMMUNITY LTD,608,04/08/2014
Delivery Units,Adults and Communities,Other Agencies - Third Party Payment,30026369,LANGDON COMMUNITY LTD,"1,064.00",04/08/2014
Delivery Units,Adults and Communities,Other Agencies - Third Party Payment,30026395,LANGDON COMMUNITY LTD,"2,403.92",05/08/2014
Delivery Units,Adults and Communities,Other Agencies - Third Party Payment,30026540,LANGDON COMMUNITY LTD,"2,506.78",06/08/2014
Delivery Units,Adults and Communities,Other Agencies - Third Party Payment,30030314,LANGDON COMMUNITY LTD,"2,403.92",22/08/2014
Delivery Units,Adults and Communities,Other Agencies - Third Party Payment,30030324,LANGDON COMMUNITY LTD,956.38,22/08/2014
Delivery Units,Adults and Communities,Other Agencies - Third Party Payment,30030330,LANGDON COMMUNITY LTD,"2,506.78",22/08/2014
Delivery Units,Adults and Communities,Other Agencies - Third Party Payment,30030331,LANGDON COMMUNITY LTD,"1,763.20",22/08/2014
Delivery Units,Adults and Communities,Other Agencies - Third Party Payment,30030335,LANGDON COMMUNITY LTD,"1,772.32",22/08/2014
Delivery Units,Adults and Communities,Other Agencies - Third Party Payment,30030374,LANGDON COMMUNITY LTD,"2,097.60",22/08/2014
Delivery Units,Adults and Communities,Other Agencies - Third Party Payment,30030375,LANGDON COMMUNITY LTD,"5,002.62",22/08/2014
Delivery Units,Adults and Communities,Other Agencies - Third Party Payment,30030376,LANGDON COMMUNITY LTD,"2,128.00",22/08/2014
Delivery Units,Adults and Communities,Other Agencies - Third Party Payment,30030414,LANGDON COMMUNITY LTD,"1,064.00",22/08/2014
Delivery Units,Adults and Communities,Other Agencies - Third Party Payment,30030663,LANGDON COMMUNITY LTD,"3,144.56",26/08/2014
Delivery Units,Adults and Communities,Other Agencies - Third Party Payment,30030665,LANGDON COMMUNITY LTD,"3,411.49",26/08/2014
Delivery Units,Adults and Communities,Other Agencies - Third Party Payment,30030673,LANGDON COMMUNITY LTD,"5,542.52",26/08/2014
Delivery Units,Adults and Communities,Other Agencies - Third Party Payment,30030697,LANGDON COMMUNITY LTD,"1,315.12",26/08/2014
Delivery Units,Adults and Communities,Other Agencies - Third Party Payment,30030699,LANGDON COMMUNITY LTD,608,26/08/2014
Delivery Units,Adults and Communities,Other Agencies - Third Party Payment,30026317,LEEMING BAR CARE HOME,"1,939.32",04/08/2014
Delivery Units,Adults and Communities,Other Agencies - Third Party Payment,30027274,LEO BAECK HOUSING ASSOC. LTD,"6,434.73",14/08/2014
Delivery Units,Adults and Communities,Other Agencies - Third Party Payment,30027275,LEO BAECK HOUSING ASSOC. LTD,"4,361.32",14/08/2014
Delivery Units,Adults and Communities,Other Agencies - Third Party Payment,20010354,LIAISE LODDON LTD,"12,000.00",11/08/2014
Delivery Units,Adults and Communities,Other Agencies - Third Party Payment,30030341,LIFESTYLE CARE PLC,"2,318.93",22/08/2014
Delivery Units,Adults and Communities,Other Agencies - Third Party Payment,30030342,LIFESTYLE CARE PLC,"2,318.93",22/08/2014
Delivery Units,Adults and Communities,Other Agencies - Third Party Payment,30030343,LIFESTYLE CARE PLC,"1,795.30",22/08/2014
Delivery Units,Adults and Communities,Other Agencies - Third Party Payment,30030344,LIFESTYLE CARE PLC,"2,318.93",22/08/2014
Delivery Units,Adults and Communities,Other Agencies - Third Party Payment,30030345,LIFESTYLE CARE PLC,"2,318.93",22/08/2014
Delivery Units,Adults and Communities,Other Agencies - Third Party Payment,30030346,LIFESTYLE CARE PLC,"2,570.39",22/08/2014
Delivery Units,Adults and Communities,Other Agencies - Third Party Payment,30030347,LIFESTYLE CARE PLC,"2,318.93",22/08/2014
Delivery Units,Adults and Communities,Other Agencies - Third Party Payment,30030348,LIFESTYLE CARE PLC,"2,570.39",22/08/2014
Delivery Units,Adults and Communities,Other Agencies - Third Party Payment,30030349,LIFESTYLE CARE PLC,"2,418.04",22/08/2014
Delivery Units,Adults and Communities,Other Agencies - Third Party Payment,30030351,LIFESTYLE CARE PLC,"2,318.93",22/08/2014
Delivery Units,Adults and Communities,Other Agencies - Third Party Payment,30030352,LIFESTYLE CARE PLC,"2,570.39",22/08/2014
Delivery Units,Adults and Communities,Other Agencies - Third Party Payment,30030353,LIFESTYLE CARE PLC,"2,244.13",22/08/2014
Delivery Units,Adults and Communities,Other Agencies - Third Party Payment,30030354,LIFESTYLE CARE PLC,"2,244.13",22/08/2014
Delivery Units,Adults and Communities,Other Agencies - Third Party Payment,30030355,LIFESTYLE CARE PLC,"2,244.13",22/08/2014
Delivery Units,Adults and Communities,Other Agencies - Third Party Payment,30030356,LIFESTYLE CARE PLC,"2,244.13",22/08/2014
Delivery Units,Adults and Communities,Other Agencies - Third Party Payment,30030357,LIFESTYLE CARE PLC,"2,487.47",22/08/2014
Delivery Units,Adults and Communities,Other Agencies - Third Party Payment,30030358,LIFESTYLE CARE PLC,"2,340.04",22/08/2014
Delivery Units,Adults and Communities,Other Agencies - Third Party Payment,30030360,LIFESTYLE CARE PLC,"2,487.47",22/08/2014
Delivery Units,Adults and Communities,Other Agencies - Third Party Payment,30030361,LIFESTYLE CARE PLC,"2,318.93",22/08/2014
Delivery Units,Adults and Communities,Other Agencies - Third Party Payment,30030362,LIFESTYLE CARE PLC,"2,318.93",22/08/2014
Delivery Units,Adults and Communities,Other Agencies - Third Party Payment,30030363,LIFESTYLE CARE PLC,"2,318.93",22/08/2014
Delivery Units,Adults and Communities,Other Agencies - Third Party Payment,30030364,LIFESTYLE CARE PLC,"2,570.39",22/08/2014
Delivery Units,Adults and Communities,Other Agencies - Third Party Payment,30030366,LIFESTYLE CARE PLC,"2,570.39",22/08/2014
Delivery Units,Adults and Communities,Other Agencies - Third Party Payment,30030367,LIFESTYLE CARE PLC,"2,318.93",22/08/2014
Delivery Units,Adults and Communities,Other Agencies - Third Party Payment,30030368,LIFESTYLE CARE PLC,"2,570.39",22/08/2014
Delivery Units,Adults and Communities,Other Agencies - Third Party Payment,30030369,LIFESTYLE CARE PLC,"2,094.52",22/08/2014
Delivery Units,Adults and Communities,Other Agencies - Third Party Payment,30030370,LIFESTYLE CARE PLC,"2,418.04",22/08/2014
Delivery Units,Adults and Communities,Other Agencies - Third Party Payment,30030372,LIFESTYLE CARE PLC,"2,318.93",22/08/2014
Delivery Units,Adults and Communities,Other Agencies - Third Party Payment,30030373,LIFESTYLE CARE PLC,"2,570.39",22/08/2014
Delivery Units,Adults and Communities,Other Agencies - Third Party Payment,30030666,LIFESTYLE CARE PLC,"2,244.13",26/08/2014
Delivery Units,Adults and Communities,Other Agencies - Third Party Payment,30031006,LIFESTYLE CARE PLC,"2,244.13",27/08/2014
Delivery Units,Adults and Communities,Other Agencies - Third Party Payment,30031977,LIFESTYLE CARE PLC,"2,487.77",29/08/2014
Delivery Units,Adults and Communities,Other Agencies - Third Party Payment,30026285,LIFEWAYS,"3,145.24",04/08/2014
Delivery Units,Adults and Communities,Other Agencies - Third Party Payment,30026287,LIFEWAYS,"5,037.40",04/08/2014
Delivery Units,Adults and Communities,Other Agencies - Third Party Payment,30026288,LIFEWAYS,"5,943.00",04/08/2014
Delivery Units,Adults and Communities,Other Agencies - Third Party Payment,30026294,LIFEWAYS,"3,656.00",04/08/2014
Delivery Units,Adults and Communities,Other Agencies - Third Party Payment,30026295,LIFEWAYS,"5,766.44",04/08/2014
Delivery Units,Adults and Communities,Other Agencies - Third Party Payment,30026297,LIFEWAYS,"2,377.20",04/08/2014
Delivery Units,Adults and Communities,Other Agencies - Third Party Payment,30026298,LIFEWAYS,"4,828.24",04/08/2014
Delivery Units,Adults and Communities,Other Agencies - Third Party Payment,30026403,LIFEWAYS,"6,930.00",05/08/2014
Delivery Units,Adults and Communities,Other Agencies - Third Party Payment,30026528,LIFEWAYS,"5,037.40",06/08/2014
Delivery Units,Adults and Communities,Other Agencies - Third Party Payment,30027163,LILAS HOUSE,"2,574.32",07/08/2014
Delivery Units,Adults and Communities,Other Agencies - Third Party Payment,30022373,LIONCARE LIMITED,"5,409.60",07/08/2014
Delivery Units,Adults and Communities,Other Agencies - Third Party Payment,30026273,LIVABILITY,"2,400.00",04/08/2014
Delivery Units,Adults and Communities,Other Agencies - Third Party Payment,30026329,LIVABILITY,"4,891.20",04/08/2014
Delivery Units,Adults and Communities,Other Agencies - Third Party Payment,30028406,LIVABILITY,"3,424.00",18/08/2014
Delivery Units,Adults and Communities,Other Agencies - Third Party Payment,30028407,LIVABILITY,"3,672.00",18/08/2014
Delivery Units,Adults and Communities,Other Agencies - Third Party Payment,30028409,LIVABILITY,"3,189.32",18/08/2014
Delivery Units,Adults and Communities,Other Agencies - Third Party Payment,30028411,LIVABILITY,"2,766.88",18/08/2014
Delivery Units,Adults and Communities,Other Agencies - Third Party Payment,30028434,LIVABILITY,"5,279.24",18/08/2014
Delivery Units,Adults and Communities,Other Agencies - Third Party Payment,30026209,LONG FURROWS RESIDENTIAL CARE HOME,"4,242.08",04/08/2014
Delivery Units,Adults and Communities,Other Agencies - Third Party Payment,30026210,LONG FURROWS RESIDENTIAL CARE HOME,-548.92,04/08/2014
Delivery Units,Adults and Communities,Other Agencies - Third Party Payment,30026318,M D HOMES,"3,542.86",04/08/2014
Delivery Units,Adults and Communities,Other Agencies - Third Party Payment,30028229,MACINTYRE CARE,"2,332.48",14/08/2014
Delivery Units,Adults and Communities,Other Agencies - Third Party Payment,30028231,MACINTYRE CARE,750.4,14/08/2014
Delivery Units,Adults and Communities,Other Agencies - Third Party Payment,30028232,MACINTYRE CARE,"3,812.84",14/08/2014
Delivery Units,Adults and Communities,Other Agencies - Third Party Payment,30028234,MACINTYRE CARE,"3,570.16",14/08/2014
Delivery Units,Adults and Communities,Other Agencies - Third Party Payment,30028236,MACINTYRE CARE,"2,326.48",14/08/2014
Delivery Units,Adults and Communities,Other Agencies - Third Party Payment,30028238,MACINTYRE CARE,"4,015.72",14/08/2014
Delivery Units,Adults and Communities,Other Agencies - Third Party Payment,30028157,MAISON MOTI LTD,"3,260.00",13/08/2014
Delivery Units,Adults and Communities,Other Agencies - Third Party Payment,30028349,MAISON MOTI LTD,"1,642.48",18/08/2014
Delivery Units,Adults and Communities,Other Agencies - Third Party Payment,30028351,MAISON MOTI LTD,"1,830.00",18/08/2014
Delivery Units,Adults and Communities,Other Agencies - Third Party Payment,30028352,MAISON MOTI LTD,"1,830.00",18/08/2014
Delivery Units,Adults and Communities,Other Agencies - Third Party Payment,30028353,MAISON MOTI LTD,625,18/08/2014
Delivery Units,Adults and Communities,Other Agencies - Third Party Payment,30028354,MAISON MOTI LTD,625,18/08/2014
Delivery Units,Adults and Communities,Other Agencies - Third Party Payment,30028362,MAISON MOTI LTD,"1,140.00",18/08/2014
Delivery Units,Adults and Communities,Other Agencies - Third Party Payment,30028435,MAISON MOTI LTD,768,18/08/2014
Delivery Units,Adults and Communities,Other Agencies - Third Party Payment,30028576,MAISON MOTI LTD,"1,026.00",19/08/2014
Delivery Units,Adults and Communities,Other Agencies - Third Party Payment,30026508,MANDELA HOUSE,"3,541.84",06/08/2014
Delivery Units,Adults and Communities,Other Agencies - Third Party Payment,30027165,MANDELA HOUSE,"4,050.36",07/08/2014
Delivery Units,Adults and Communities,Other Agencies - Third Party Payment,30025994,MARRILYNE LODGE,"2,554.16",01/08/2014
Delivery Units,Adults and Communities,Other Agencies - Third Party Payment,30025995,MARRILYNE LODGE,"2,235.12",01/08/2014
Delivery Units,Adults and Communities,Other Agencies - Third Party Payment,30026221,MARYVILLE CARE HOME,"2,318.93",04/08/2014
Delivery Units,Adults and Communities,Other Agencies - Third Party Payment,30026222,MARYVILLE CARE HOME,-548.92,04/08/2014
Delivery Units,Adults and Communities,Other Agencies - Third Party Payment,30026223,MARYVILLE CARE HOME,"2,512.73",04/08/2014
Delivery Units,Adults and Communities,Other Agencies - Third Party Payment,30026224,MARYVILLE CARE HOME,-548.92,04/08/2014
Delivery Units,Adults and Communities,Other Agencies - Third Party Payment,30026000,MAYFIELD ADULT SERVICES,"9,875.71",01/08/2014
Delivery Units,Adults and Communities,Other Agencies - Third Party Payment,30024620,MCCH SOCIETY LIMITED,"4,280.00",18/08/2014
Delivery Units,Adults and Communities,Other Agencies - Third Party Payment,30026270,MEERA NURSING HOME LIMITED,"2,318.93",04/08/2014
Delivery Units,Adults and Communities,Other Agencies - Third Party Payment,30026315,MEERA NURSING HOME LIMITED,"2,320.57",04/08/2014
Delivery Units,Adults and Communities,Other Agencies - Third Party Payment,30026330,MEERA NURSING HOME LIMITED,"2,318.93",04/08/2014
Delivery Units,Adults and Communities,Other Agencies - Third Party Payment,30026333,MEERA NURSING HOME LIMITED,"2,318.93",04/08/2014
Delivery Units,Adults and Communities,Other Agencies - Third Party Payment,30026336,MEERA NURSING HOME LIMITED,"2,531.42",04/08/2014
Delivery Units,Adults and Communities,Other Agencies - Third Party Payment,30026337,MEERA NURSING HOME LIMITED,"2,318.93",04/08/2014
Delivery Units,Adults and Communities,Other Agencies - Third Party Payment,30026338,MEERA NURSING HOME LIMITED,"2,320.53",04/08/2014
Delivery Units,Adults and Communities,Other Agencies - Third Party Payment,30026358,MEERA NURSING HOME LIMITED,"2,318.93",04/08/2014
Delivery Units,Adults and Communities,Other Agencies - Third Party Payment,30026030,METHODIST HOMES FOR THE AGED,"2,321.92",01/08/2014
Delivery Units,Adults and Communities,Other Agencies - Third Party Payment,30026323,METHODIST HOMES FOR THE AGED,"2,001.92",04/08/2014
Delivery Units,Adults and Communities,Other Agencies - Third Party Payment,30026332,METHODIST HOMES FOR THE AGED,"2,500.00",04/08/2014
Delivery Units,Adults and Communities,Other Agencies - Third Party Payment,30030412,METHODIST HOMES FOR THE AGED,"2,206.28",22/08/2014
Delivery Units,Adults and Communities,Other Agencies - Third Party Payment,30031010,METHODIST HOMES FOR THE AGED,"2,001.92",27/08/2014
Delivery Units,Adults and Communities,Other Agencies - Third Party Payment,30031014,METHODIST HOMES FOR THE AGED,"2,500.00",27/08/2014
Delivery Units,Adults and Communities,Other Agencies - Third Party Payment,30028737,MILBURY,"6,235.00",19/08/2014
Delivery Units,Adults and Communities,Other Agencies - Third Party Payment,30025698,ML HOMES LTD,"1,740.00",01/08/2014
Delivery Units,Adults and Communities,Other Agencies - Third Party Payment,30025702,ML HOMES LTD,"2,118.36",01/08/2014
Delivery Units,Adults and Communities,Other Agencies - Third Party Payment,30025703,ML HOMES LTD,"1,433.56",01/08/2014
Delivery Units,Adults and Communities,Other Agencies - Third Party Payment,30025704,ML HOMES LTD,"1,433.56",01/08/2014
Delivery Units,Adults and Communities,Other Agencies - Third Party Payment,30025708,ML HOMES LTD,"1,751.16",01/08/2014
Delivery Units,Adults and Communities,Other Agencies - Third Party Payment,30025711,ML HOMES LTD,"2,118.36",01/08/2014
Delivery Units,Adults and Communities,Other Agencies - Third Party Payment,30025725,ML HOMES LTD,"1,955.84",01/08/2014
Delivery Units,Adults and Communities,Other Agencies - Third Party Payment,30025729,ML HOMES LTD,"1,417.24",01/08/2014
Delivery Units,Adults and Communities,Other Agencies - Third Party Payment,30025730,ML HOMES LTD,"1,417.24",01/08/2014
Delivery Units,Adults and Communities,Other Agencies - Third Party Payment,30025731,ML HOMES LTD,"1,428.68",01/08/2014
Delivery Units,Adults and Communities,Other Agencies - Third Party Payment,30025732,ML HOMES LTD,"1,428.68",01/08/2014
Delivery Units,Adults and Communities,Other Agencies - Third Party Payment,30025735,ML HOMES LTD,"1,765.80",01/08/2014
Delivery Units,Adults and Communities,Other Agencies - Third Party Payment,30025736,ML HOMES LTD,"1,751.16",01/08/2014
Delivery Units,Adults and Communities,Other Agencies - Third Party Payment,30025760,ML HOMES LTD,"1,767.40",01/08/2014
Delivery Units,Adults and Communities,Other Agencies - Third Party Payment,30025809,ML HOMES LTD,"1,820.00",01/08/2014
Delivery Units,Adults and Communities,Other Agencies - Third Party Payment,30025812,ML HOMES LTD,"1,780.00",01/08/2014
Delivery Units,Adults and Communities,Other Agencies - Third Party Payment,30029985,NAS SERVICES LTD,"3,666.96",21/08/2014
Delivery Units,Adults and Communities,Other Agencies - Third Party Payment,30029987,NAS SERVICES LTD,"2,035.64",21/08/2014
Delivery Units,Adults and Communities,Other Agencies - Third Party Payment,30031968,NAS SERVICES LTD,"2,035.64",29/08/2014
Delivery Units,Adults and Communities,Other Agencies - Third Party Payment,30031969,NAS SERVICES LTD,"2,035.64",29/08/2014
Delivery Units,Adults and Communities,Other Agencies - Third Party Payment,30031970,NAS SERVICES LTD,"2,035.64",29/08/2014
Delivery Units,Adults and Communities,Other Agencies - Third Party Payment,30031971,NAS SERVICES LTD,"2,035.64",29/08/2014
Delivery Units,Adults and Communities,Other Agencies - Third Party Payment,30026308,NAZARETH HOUSE,"2,216.41",04/08/2014
Delivery Units,Adults and Communities,Other Agencies - Third Party Payment,30029994,NAZARETH HOUSE,"2,216.01",21/08/2014
Delivery Units,Adults and Communities,Other Agencies - Third Party Payment,20010325,NEEM TREE CARE CENTRE,"2,697.00",08/08/2014
Delivery Units,Adults and Communities,Other Agencies - Third Party Payment,30025846,NEWCENTURY CARE LTD,"2,618.61",01/08/2014
Delivery Units,Adults and Communities,Other Agencies - Third Party Payment,30026493,NEWCENTURY CARE LTD,"2,288.00",06/08/2014
Delivery Units,Adults and Communities,Other Agencies - Third Party Payment,30028700,NEXT STEP SUPPORT LIMITED,"2,240.00",19/08/2014
Delivery Units,Adults and Communities,Other Agencies - Third Party Payment,30028733,NEXT STEP SUPPORT LIMITED,"2,000.00",19/08/2014
Delivery Units,Adults and Communities,Other Agencies - Third Party Payment,30028456,NIGHTINGALE HOUSE,"2,524.29",15/08/2014
Delivery Units,Adults and Communities,Other Agencies - Third Party Payment,30028457,NIGHTINGALE HOUSE,"2,318.93",15/08/2014
Delivery Units,Adults and Communities,Other Agencies - Third Party Payment,30028458,NIGHTINGALE HOUSE,"2,318.94",15/08/2014
Delivery Units,Adults and Communities,Other Agencies - Third Party Payment,30028459,NIGHTINGALE HOUSE,-560.35,15/08/2014
Delivery Units,Adults and Communities,Other Agencies - Third Party Payment,30032318,NIGHTINGALE HOUSE,"2,318.93",29/08/2014
Delivery Units,Adults and Communities,Other Agencies - Third Party Payment,30032319,NIGHTINGALE HOUSE,"2,318.94",29/08/2014
Delivery Units,Adults and Communities,Other Agencies - Third Party Payment,30032320,NIGHTINGALE HOUSE,-560.35,29/08/2014
Delivery Units,Adults and Communities,Other Agencies - Third Party Payment,30026192,NORTH LONDON CARE SERVICES LTD,"6,260.84",04/08/2014
Delivery Units,Adults and Communities,Other Agencies - Third Party Payment,30026361,NORWOOD RAVENSWOOD SCHOOLS LTD,"8,224.00",04/08/2014
Delivery Units,Adults and Communities,Other Agencies - Third Party Payment,30027243,NORWOOD RAVENSWOOD SCHOOLS LTD,"5,792.00",07/08/2014
Delivery Units,Adults and Communities,Other Agencies - Third Party Payment,30028259,NORWOOD RAVENSWOOD SCHOOLS LTD,880,15/08/2014
Delivery Units,Adults and Communities,Other Agencies - Third Party Payment,30028460,NORWOOD RAVENSWOOD SCHOOLS LTD,"8,224.00",18/08/2014
Delivery Units,Adults and Communities,Other Agencies - Third Party Payment,30030009,NORWOOD RAVENSWOOD SCHOOLS LTD,"5,792.00",21/08/2014
Delivery Units,Adults and Communities,Other Agencies - Third Party Payment,30030011,NORWOOD RAVENSWOOD SCHOOLS LTD,"7,788.00",21/08/2014
Delivery Units,Adults and Communities,Other Agencies - Third Party Payment,30030019,NORWOOD RAVENSWOOD SCHOOLS LTD,"4,748.00",21/08/2014
Delivery Units,Adults and Communities,Other Agencies - Third Party Payment,30030021,NORWOOD RAVENSWOOD SCHOOLS LTD,"4,924.00",21/08/2014
Delivery Units,Adults and Communities,Other Agencies - Third Party Payment,30030025,NORWOOD RAVENSWOOD SCHOOLS LTD,"7,148.00",21/08/2014
Delivery Units,Adults and Communities,Other Agencies - Third Party Payment,30030031,NORWOOD RAVENSWOOD SCHOOLS LTD,"5,540.00",21/08/2014
Delivery Units,Adults and Communities,Other Agencies - Third Party Payment,30030032,NORWOOD RAVENSWOOD SCHOOLS LTD,608,21/08/2014
Delivery Units,Adults and Communities,Other Agencies - Third Party Payment,30030033,NORWOOD RAVENSWOOD SCHOOLS LTD,"1,520.00",21/08/2014
Delivery Units,Adults and Communities,Other Agencies - Third Party Payment,30030034,NORWOOD RAVENSWOOD SCHOOLS LTD,729.6,21/08/2014
Delivery Units,Adults and Communities,Other Agencies - Third Party Payment,30030037,NORWOOD RAVENSWOOD SCHOOLS LTD,790.4,21/08/2014
Delivery Units,Adults and Communities,Other Agencies - Third Party Payment,30030044,NORWOOD RAVENSWOOD SCHOOLS LTD,"1,021.44",21/08/2014
Delivery Units,Adults and Communities,Other Agencies - Third Party Payment,30030050,NORWOOD RAVENSWOOD SCHOOLS LTD,"1,021.44",21/08/2014
Delivery Units,Adults and Communities,Other Agencies - Third Party Payment,30030057,NORWOOD RAVENSWOOD SCHOOLS LTD,820.8,21/08/2014
Delivery Units,Adults and Communities,Other Agencies - Third Party Payment,30030396,NORWOOD RAVENSWOOD SCHOOLS LTD,"5,732.00",22/08/2014
Delivery Units,Adults and Communities,Other Agencies - Third Party Payment,30030398,NORWOOD RAVENSWOOD SCHOOLS LTD,"6,528.00",22/08/2014
Delivery Units,Adults and Communities,Other Agencies - Third Party Payment,30030400,NORWOOD RAVENSWOOD SCHOOLS LTD,"4,656.00",22/08/2014
Delivery Units,Adults and Communities,Other Agencies - Third Party Payment,30030402,NORWOOD RAVENSWOOD SCHOOLS LTD,"8,224.00",22/08/2014
Delivery Units,Adults and Communities,Other Agencies - Third Party Payment,30030409,NORWOOD RAVENSWOOD SCHOOLS LTD,"1,220.00",22/08/2014
Delivery Units,Adults and Communities,Other Agencies - Third Party Payment,10007552,NOTTING HILL HOUSING TRUST,"322,120.26",29/08/2014
Delivery Units,Adults and Communities,Other Agencies - Third Party Payment,30031791,NOTTING HILL HOUSING TRUST,"5,436.41",28/08/2014
Delivery Units,Adults and Communities,Other Agencies - Third Party Payment,30026405,ONE STEP (SUPPORT) LTD,"1,084.60",05/08/2014
Delivery Units,Adults and Communities,Other Agencies - Third Party Payment,30027172,OPTIMAL LIVING (LUTON) LTD,"4,776.70",07/08/2014
Delivery Units,Adults and Communities,Other Agencies - Third Party Payment,30027173,OPTIMAL LIVING (LUTON) LTD,-548.92,07/08/2014
Delivery Units,Adults and Communities,Other Agencies - Third Party Payment,30028724,ORIGIN HOUSING LIMITED,"1,728.00",19/08/2014
Delivery Units,Adults and Communities,Other Agencies - Third Party Payment,30028725,ORIGIN HOUSING LIMITED,"1,065.60",19/08/2014
Delivery Units,Adults and Communities,Other Agencies - Third Party Payment,30028727,ORIGIN HOUSING LIMITED,"1,728.00",19/08/2014
Delivery Units,Adults and Communities,Other Agencies - Third Party Payment,30028728,ORIGIN HOUSING LIMITED,"1,324.80",19/08/2014
Delivery Units,Adults and Communities,Other Agencies - Third Party Payment,30030693,ORIGIN HOUSING LIMITED,"2,104.83",26/08/2014
Delivery Units,Adults and Communities,Other Agencies - Third Party Payment,30030694,ORIGIN HOUSING LIMITED,"1,942.92",26/08/2014
Delivery Units,Adults and Communities,Other Agencies - Third Party Payment,30030695,ORIGIN HOUSING LIMITED,"1,457.19",26/08/2014
Delivery Units,Adults and Communities,Other Agencies - Third Party Payment,30030696,ORIGIN HOUSING LIMITED,647.64,26/08/2014
Delivery Units,Adults and Communities,Other Agencies - Third Party Payment,30026190,PARKCARE HOMES (NO2) LIMITED,"5,486.91",04/08/2014
Delivery Units,Adults and Communities,Other Agencies - Third Party Payment,30026214,PARKCARE HOMES (NO2) LIMITED,"4,813.41",04/08/2014
Delivery Units,Adults and Communities,Other Agencies - Third Party Payment,30026216,PARKCARE HOMES (NO2) LIMITED,"5,155.03",04/08/2014
Delivery Units,Adults and Communities,Other Agencies - Third Party Payment,30026218,PARKCARE HOMES (NO2) LIMITED,"5,155.03",04/08/2014
Delivery Units,Adults and Communities,Other Agencies - Third Party Payment,30027161,PARKCARE HOMES (NO2) LIMITED,"4,796.41",07/08/2014
Delivery Units,Adults and Communities,Other Agencies - Third Party Payment,30026370,PAULMAY RESIDENTIAL HOME,"1,092.00",04/08/2014
Delivery Units,Adults and Communities,Other Agencies - Third Party Payment,30031994,PAULMAY RESIDENTIAL HOME,"2,184.04",29/08/2014
Delivery Units,Adults and Communities,Other Agencies - Third Party Payment,30025926,PILLARCARE,"6,328.00",01/08/2014
Delivery Units,Adults and Communities,Other Agencies - Third Party Payment,30025949,PLATINUM HEALTH RESOURCES LTD,"4,949.11",01/08/2014
Delivery Units,Adults and Communities,Other Agencies - Third Party Payment,30025962,PLATINUM HEALTH RESOURCES LTD,"1,597.84",01/08/2014
Delivery Units,Adults and Communities,Other Agencies - Third Party Payment,30025989,PLATINUM HEALTH RESOURCES LTD,"3,764.29",01/08/2014
Delivery Units,Adults and Communities,Other Agencies - Third Party Payment,30028705,PLATINUM HEALTH RESOURCES LTD,"3,035.71",19/08/2014
Delivery Units,Adults and Communities,Other Agencies - Third Party Payment,30028706,PLATINUM HEALTH RESOURCES LTD,"3,642.86",19/08/2014
Delivery Units,Adults and Communities,Other Agencies - Third Party Payment,30028707,PLATINUM HEALTH RESOURCES LTD,"3,764.29",19/08/2014
Delivery Units,Adults and Communities,Other Agencies - Third Party Payment,30031785,PLATINUM HEALTH RESOURCES LTD,"1,597.84",28/08/2014
Delivery Units,Adults and Communities,Other Agencies - Third Party Payment,30027285,PRINCE MICHAEL OF KENT COURT,"2,144.91",08/08/2014
Delivery Units,Adults and Communities,Other Agencies - Third Party Payment,30027286,PRINCE MICHAEL OF KENT COURT,"2,216.41",08/08/2014
Delivery Units,Adults and Communities,Other Agencies - Third Party Payment,30027287,PRINCE MICHAEL OF KENT COURT,"2,216.41",08/08/2014
Delivery Units,Adults and Communities,Other Agencies - Third Party Payment,30028358,PRINCE MICHAEL OF KENT COURT,"2,144.91",15/08/2014
Delivery Units,Adults and Communities,Other Agencies - Third Party Payment,30028359,PRINCE MICHAEL OF KENT COURT,"2,216.41",15/08/2014
Delivery Units,Adults and Communities,Other Agencies - Third Party Payment,30027204,QUALITY HOUSING & SOCIAL CARE LTD,"2,879.28",07/08/2014
Delivery Units,Adults and Communities,Other Agencies - Third Party Payment,30028344,QUANTUM CARE LIMITED,"2,320.53",18/08/2014
Delivery Units,Adults and Communities,Other Agencies - Third Party Payment,30028345,QUANTUM CARE LIMITED,-548.92,18/08/2014
Delivery Units,Adults and Communities,Other Agencies - Third Party Payment,30028346,QUANTUM CARE LIMITED,"2,321.90",18/08/2014
Delivery Units,Adults and Communities,Other Agencies - Third Party Payment,30028347,QUANTUM CARE LIMITED,"2,418.04",18/08/2014
Delivery Units,Adults and Communities,Other Agencies - Third Party Payment,30028348,QUANTUM CARE LIMITED,-548.92,18/08/2014
Delivery Units,Adults and Communities,Other Agencies - Third Party Payment,30026314,QUEEN ANN CARE,"3,985.71",04/08/2014
Delivery Units,Adults and Communities,Other Agencies - Third Party Payment,30030322,REAL LIFE OPTIONS,"5,252.28",22/08/2014
Delivery Units,Adults and Communities,Other Agencies - Third Party Payment,30026229,REDACTED - PERSONAL DATA,"4,862.75",04/08/2014
Delivery Units,Adults and Communities,Other Agencies - Third Party Payment,30030325,RESIDENTIAL CARE PROVIDERS LTD,"7,800.00",22/08/2014
Delivery Units,Adults and Communities,Other Agencies - Third Party Payment,30030327,RESIDENTIAL CARE PROVIDERS LTD,"7,800.00",22/08/2014
Delivery Units,Adults and Communities,Other Agencies - Third Party Payment,30025896,RIDGEWAY NURSING HOME,"2,435.67",01/08/2014
Delivery Units,Adults and Communities,Other Agencies - Third Party Payment,30026169,ROBERT OWEN COMMUNITIES (ROC),"5,912.14",04/08/2014
Delivery Units,Adults and Communities,Other Agencies - Third Party Payment,30025990,ROLAND RESIDENTIAL CARE HOMES,"4,049.44",01/08/2014
Delivery Units,Adults and Communities,Other Agencies - Third Party Payment,30025920,ROLAND RESIDENTIAL CARE HOMES LTD,"3,225.24",01/08/2014
Delivery Units,Adults and Communities,Other Agencies - Third Party Payment,30025948,ROLAND RESIDENTIAL CARE HOMES LTD,"3,274.93",01/08/2014
Delivery Units,Adults and Communities,Other Agencies - Third Party Payment,30025979,ROLAND RESIDENTIAL CARE HOMES LTD,"4,196.51",01/08/2014
Delivery Units,Adults and Communities,Other Agencies - Third Party Payment,30026319,ROLAND RESIDENTIAL CARE HOMES LTD,"1,879.30",04/08/2014
Delivery Units,Adults and Communities,Other Agencies - Third Party Payment,30025746,ROSEACRES CARE HOME LIMITED,"2,418.04",04/08/2014
Delivery Units,Adults and Communities,Other Agencies - Third Party Payment,30027226,ROSEACRES CARE HOME LIMITED,"6,006.11",07/08/2014
Delivery Units,Adults and Communities,Other Agencies - Third Party Payment,30031012,ROSEACRES CARE HOME LIMITED,"1,638.03",27/08/2014
Delivery Units,Adults and Communities,Other Agencies - Third Party Payment,30031013,ROSEACRES CARE HOME LIMITED,702.01,27/08/2014
Delivery Units,Adults and Communities,Other Agencies - Third Party Payment,30031789,ROSEACRES CARE HOME LIMITED,546.01,28/08/2014
Delivery Units,Adults and Communities,Other Agencies - Third Party Payment,30025984,ROWAN HOUSE,"4,422.28",01/08/2014
Delivery Units,Adults and Communities,Other Agencies - Third Party Payment,30025876,ROYAL MENCAP SOCIETY,"1,722.60",01/08/2014
Delivery Units,Adults and Communities,Other Agencies - Third Party Payment,30025877,ROYAL MENCAP SOCIETY,"1,595.00",01/08/2014
Delivery Units,Adults and Communities,Other Agencies - Third Party Payment,30025879,ROYAL MENCAP SOCIETY,"1,722.60",01/08/2014
Delivery Units,Adults and Communities,Other Agencies - Third Party Payment,30025880,ROYAL MENCAP SOCIETY,"1,595.00",01/08/2014
Delivery Units,Adults and Communities,Other Agencies - Third Party Payment,30026309,SANCTUARY CARE LTD,"2,418.04",04/08/2014
Delivery Units,Adults and Communities,Other Agencies - Third Party Payment,30026149,SAXON COURT,"2,434.07",04/08/2014
Delivery Units,Adults and Communities,Other Agencies - Third Party Payment,30026150,SAXON COURT,-548.92,04/08/2014
Delivery Units,Adults and Communities,Other Agencies - Third Party Payment,30026151,SAXON COURT,"2,434.08",04/08/2014
Delivery Units,Adults and Communities,Other Agencies - Third Party Payment,30026152,SAXON COURT,-548.92,04/08/2014
Delivery Units,Adults and Communities,Other Agencies - Third Party Payment,30025959,SCIMITAR CARE HOTELS PLC,"2,754.57",01/08/2014
Delivery Units,Adults and Communities,Other Agencies - Third Party Payment,30025960,SCIMITAR CARE HOTELS PLC,-531.21,01/08/2014
Delivery Units,Adults and Communities,Other Agencies - Third Party Payment,30025996,SCIMITAR CARE HOTELS PLC,"2,418.04",01/08/2014
Delivery Units,Adults and Communities,Other Agencies - Third Party Payment,30027205,SCIMITAR CARE HOTELS PLC,633.5,20/08/2014
Delivery Units,Adults and Communities,Other Agencies - Third Party Payment,30022076,SCOPE,"2,903.88",01/08/2014
Delivery Units,Adults and Communities,Other Agencies - Third Party Payment,30022080,SCOPE,"-3,000.68",01/08/2014
Delivery Units,Adults and Communities,Other Agencies - Third Party Payment,30025840,SCOPE,"4,000.00",01/08/2014
Delivery Units,Adults and Communities,Other Agencies - Third Party Payment,30025842,SCOPE,"3,368.05",01/08/2014
Delivery Units,Adults and Communities,Other Agencies - Third Party Payment,30025843,SCOPE,-548.92,01/08/2014
Delivery Units,Adults and Communities,Other Agencies - Third Party Payment,30025844,SCOPE,"3,000.68",01/08/2014
Delivery Units,Adults and Communities,Other Agencies - Third Party Payment,30030757,SCOPE,"4,000.00",27/08/2014
Delivery Units,Adults and Communities,Other Agencies - Third Party Payment,30028339,SCOTTISH SOCIETY FOR AUTISM,"5,781.64",18/08/2014
Delivery Units,Adults and Communities,Other Agencies - Third Party Payment,30028341,SCOTTISH SOCIETY FOR AUTISM,"1,172.08",18/08/2014
Delivery Units,Adults and Communities,Other Agencies - Third Party Payment,30025983,SEAFORTH LODGE,"2,216.41",01/08/2014
Delivery Units,Adults and Communities,Other Agencies - Third Party Payment,30026002,SEAFORTH LODGE,"2,418.04",01/08/2014
Delivery Units,Adults and Communities,Other Agencies - Third Party Payment,30026003,SEAFORTH LODGE,"2,418.04",01/08/2014
Delivery Units,Adults and Communities,Other Agencies - Third Party Payment,30026025,SEAFORTH LODGE,"2,418.04",01/08/2014
Delivery Units,Adults and Communities,Other Agencies - Third Party Payment,30028405,SEAFORTH LODGE,546.01,18/08/2014
Delivery Units,Adults and Communities,Other Agencies - Third Party Payment,30029993,SEAFORTH LODGE,"1,092.02",21/08/2014
Delivery Units,Adults and Communities,Other Agencies - Third Party Payment,30025916,SELF UNLIMITED,"3,301.85",01/08/2014
Delivery Units,Adults and Communities,Other Agencies - Third Party Payment,20010432,SELF UNLIMITED-LONDON REGION,"1,177.20",18/08/2014
Delivery Units,Adults and Communities,Other Agencies - Third Party Payment,30027199,SELF UNLIMITED-LONDON REGION,"-7,009.04",08/08/2014
Delivery Units,Adults and Communities,Other Agencies - Third Party Payment,30027292,SELF UNLIMITED-LONDON REGION,"11,265.04",08/08/2014
Delivery Units,Adults and Communities,Other Agencies - Third Party Payment,30028942,SELF UNLIMITED-LONDON REGION,"1,695.12",20/08/2014
Delivery Units,Adults and Communities,Other Agencies - Third Party Payment,30028943,SELF UNLIMITED-LONDON REGION,"6,157.84",20/08/2014
Delivery Units,Adults and Communities,Other Agencies - Third Party Payment,30028944,SELF UNLIMITED-LONDON REGION,"2,783.44",20/08/2014
Delivery Units,Adults and Communities,Other Agencies - Third Party Payment,30028946,SELF UNLIMITED-LONDON REGION,"2,145.04",20/08/2014
Delivery Units,Adults and Communities,Other Agencies - Third Party Payment,30028947,SELF UNLIMITED-LONDON REGION,"11,265.04",20/08/2014
Delivery Units,Adults and Communities,Other Agencies - Third Party Payment,30028948,SELF UNLIMITED-LONDON REGION,"3,149.44",20/08/2014
Delivery Units,Adults and Communities,Other Agencies - Third Party Payment,30028949,SELF UNLIMITED-LONDON REGION,"4,859.12",20/08/2014
Delivery Units,Adults and Communities,Other Agencies - Third Party Payment,30028950,SELF UNLIMITED-LONDON REGION,"1,914.00",20/08/2014
Delivery Units,Adults and Communities,Other Agencies - Third Party Payment,30028951,SELF UNLIMITED-LONDON REGION,"2,110.96",20/08/2014
Delivery Units,Adults and Communities,Other Agencies - Third Party Payment,30029966,SELF UNLIMITED-LONDON REGION,"1,921.28",21/08/2014
Delivery Units,Adults and Communities,Other Agencies - Third Party Payment,30029967,SELF UNLIMITED-LONDON REGION,"4,221.36",21/08/2014
Delivery Units,Adults and Communities,Other Agencies - Third Party Payment,30029968,SELF UNLIMITED-LONDON REGION,"1,520.00",21/08/2014
Delivery Units,Adults and Communities,Other Agencies - Third Party Payment,30029969,SELF UNLIMITED-LONDON REGION,"3,947.12",21/08/2014
Delivery Units,Adults and Communities,Other Agencies - Third Party Payment,30029970,SELF UNLIMITED-LONDON REGION,"1,781.44",21/08/2014
Delivery Units,Adults and Communities,Other Agencies - Third Party Payment,30029971,SELF UNLIMITED-LONDON REGION,"1,690.24",21/08/2014
Delivery Units,Adults and Communities,Other Agencies - Third Party Payment,30029972,SELF UNLIMITED-LONDON REGION,"1,088.32",21/08/2014
Delivery Units,Adults and Communities,Other Agencies - Third Party Payment,30029973,SELF UNLIMITED-LONDON REGION,"4,025.56",21/08/2014
Delivery Units,Adults and Communities,Other Agencies - Third Party Payment,30029974,SELF UNLIMITED-LONDON REGION,"3,279.56",21/08/2014
Delivery Units,Adults and Communities,Other Agencies - Third Party Payment,30029975,SELF UNLIMITED-LONDON REGION,"1,459.20",21/08/2014
Delivery Units,Adults and Communities,Other Agencies - Third Party Payment,30029976,SELF UNLIMITED-LONDON REGION,"1,155.20",21/08/2014
Delivery Units,Adults and Communities,Other Agencies - Third Party Payment,30029977,SELF UNLIMITED-LONDON REGION,"3,240.64",21/08/2014
Delivery Units,Adults and Communities,Other Agencies - Third Party Payment,30029978,SELF UNLIMITED-LONDON REGION,"3,554.36",21/08/2014
Delivery Units,Adults and Communities,Other Agencies - Third Party Payment,30029979,SELF UNLIMITED-LONDON REGION,"4,496.16",21/08/2014
Delivery Units,Adults and Communities,Other Agencies - Third Party Payment,30029980,SELF UNLIMITED-LONDON REGION,"3,947.12",21/08/2014
Delivery Units,Adults and Communities,Other Agencies - Third Party Payment,30029981,SELF UNLIMITED-LONDON REGION,"1,094.40",21/08/2014
Delivery Units,Adults and Communities,Other Agencies - Third Party Payment,30029982,SELF UNLIMITED-LONDON REGION,"1,921.28",21/08/2014
Delivery Units,Adults and Communities,Other Agencies - Third Party Payment,30029983,SELF UNLIMITED-LONDON REGION,"2,926.32",21/08/2014
Delivery Units,Adults and Communities,Other Agencies - Third Party Payment,30029998,SENSE CAS FINANCE TEAM,"6,511.68",21/08/2014
Delivery Units,Adults and Communities,Other Agencies - Third Party Payment,30030000,SENSE CAS FINANCE TEAM,"6,773.28",21/08/2014
Delivery Units,Adults and Communities,Other Agencies - Third Party Payment,30030002,SENSE CAS FINANCE TEAM,"4,754.52",21/08/2014
Delivery Units,Adults and Communities,Other Agencies - Third Party Payment,30025871,SEVA CARE HOME,"2,216.41",01/08/2014
Delivery Units,Adults and Communities,Other Agencies - Third Party Payment,30025872,SEVA CARE HOME,"2,216.41",01/08/2014
Delivery Units,Adults and Communities,Other Agencies - Third Party Payment,30026234,SEYMOUR RESIDENTIAL CARE HOME,"2,418.04",04/08/2014
Delivery Units,Adults and Communities,Other Agencies - Third Party Payment,30028711,SGSL LTD,"2,880.00",19/08/2014
Delivery Units,Adults and Communities,Other Agencies - Third Party Payment,30028712,SGSL LTD,"2,880.00",19/08/2014
Delivery Units,Adults and Communities,Other Agencies - Third Party Payment,30028729,SGSL LTD,"2,399.88",19/08/2014
Delivery Units,Adults and Communities,Other Agencies - Third Party Payment,30028730,SGSL LTD,"2,399.88",19/08/2014
Delivery Units,Adults and Communities,Other Agencies - Third Party Payment,30028731,SGSL LTD,"2,720.00",19/08/2014
Delivery Units,Adults and Communities,Other Agencies - Third Party Payment,30028732,SGSL LTD,"2,720.00",19/08/2014
Delivery Units,Adults and Communities,Other Agencies - Third Party Payment,30028431,SHAKTI NURSING HOME,"2,318.93",18/08/2014
Delivery Units,Adults and Communities,Other Agencies - Third Party Payment,30028433,SHAKTI NURSING HOME,"2,318.93",18/08/2014
Delivery Units,Adults and Communities,Other Agencies - Third Party Payment,30031779,SHINE PARTNERSHIPS LTD,"2,352.00",28/08/2014
Delivery Units,Adults and Communities,Other Agencies - Third Party Payment,30031786,SHINE PARTNERSHIPS LTD,"2,640.00",28/08/2014
Delivery Units,Adults and Communities,Other Agencies - Third Party Payment,30031792,SHINE PARTNERSHIPS LTD,"2,640.00",28/08/2014
Delivery Units,Adults and Communities,Other Agencies - Third Party Payment,30025873,SIMEON CARE,"3,200.40",01/08/2014
Delivery Units,Adults and Communities,Other Agencies - Third Party Payment,30001684,SISTERS OF CHARITY SETON UNIT,"-1,263.68",01/08/2014
Delivery Units,Adults and Communities,Other Agencies - Third Party Payment,30025718,SISTERS OF CHARITY SETON UNIT,"8,722.65",01/08/2014
Delivery Units,Adults and Communities,Other Agencies - Third Party Payment,30025719,SISTERS OF CHARITY SETON UNIT,"-2,158.17",01/08/2014
Delivery Units,Adults and Communities,Other Agencies - Third Party Payment,30030319,SODEXO HEALTHCARE SERVICES LTD,"4,256.44",22/08/2014
Delivery Units,Adults and Communities,Other Agencies - Third Party Payment,30030320,SODEXO HEALTHCARE SERVICES LTD,"2,351.71",22/08/2014
Delivery Units,Adults and Communities,Other Agencies - Third Party Payment,30030321,SODEXO HEALTHCARE SERVICES LTD,"2,420.04",22/08/2014
Delivery Units,Adults and Communities,Other Agencies - Third Party Payment,30020290,SONESTA NURSING HOME LTD.,-897.65,04/08/2014
Delivery Units,Adults and Communities,Other Agencies - Third Party Payment,30026194,SONESTA NURSING HOME LTD.,"2,318.93",04/08/2014
Delivery Units,Adults and Communities,Other Agencies - Third Party Payment,30026195,SONESTA NURSING HOME LTD.,"2,318.93",04/08/2014
Delivery Units,Adults and Communities,Other Agencies - Third Party Payment,30026196,SONESTA NURSING HOME LTD.,"2,109.73",04/08/2014
Delivery Units,Adults and Communities,Other Agencies - Third Party Payment,30026197,SONESTA NURSING HOME LTD.,"2,570.70",04/08/2014
Delivery Units,Adults and Communities,Other Agencies - Third Party Payment,30026006,SOUTHDOWN HOUSING ASSOC. LIMITED,"3,599.28",01/08/2014
Delivery Units,Adults and Communities,Other Agencies - Third Party Payment,30026008,SOUTHDOWN HOUSING ASSOC. LIMITED,"1,291.56",01/08/2014
Delivery Units,Adults and Communities,Other Agencies - Third Party Payment,30027174,SPRINGDENE,"1,161.02",07/08/2014
Delivery Units,Adults and Communities,Other Agencies - Third Party Payment,30028156,SPRINGDENE,"3,617.70",13/08/2014
Delivery Units,Adults and Communities,Other Agencies - Third Party Payment,30028162,SPRINGDENE,"3,321.43",13/08/2014
Delivery Units,Adults and Communities,Other Agencies - Third Party Payment,30028163,SPRINGDENE,"2,367.07",13/08/2014
Delivery Units,Adults and Communities,Other Agencies - Third Party Payment,30028164,SPRINGDENE,-617.87,13/08/2014
Delivery Units,Adults and Communities,Other Agencies - Third Party Payment,30028357,SPRINGDENE,"1,196.80",18/08/2014
Delivery Units,Adults and Communities,Other Agencies - Third Party Payment,30028713,SPRINGDENE,598.4,19/08/2014
Delivery Units,Adults and Communities,Other Agencies - Third Party Payment,30026022,ST AGNELL'S HOUSE (CARETECH),"6,177.86",01/08/2014
Delivery Units,Adults and Communities,Other Agencies - Third Party Payment,30027345,ST ANDREWS DAY CENTRE,"2,988.60",11/08/2014
Delivery Units,Adults and Communities,Other Agencies - Third Party Payment,30031929,ST DOMINIC'S NURSING HOME,"2,094.52",29/08/2014
Delivery Units,Adults and Communities,Other Agencies - Third Party Payment,30026354,ST ELIZABETH'S CENTRE,"4,351.78",04/08/2014
Delivery Units,Adults and Communities,Other Agencies - Third Party Payment,30026355,ST ELIZABETH'S CENTRE,-548.92,04/08/2014
Delivery Units,Adults and Communities,Other Agencies - Third Party Payment,30026356,ST ELIZABETH'S CENTRE,"11,753.34",04/08/2014
Delivery Units,Adults and Communities,Other Agencies - Third Party Payment,30026174,ST JOSEPH'S PASTORAL CENTRE,628,04/08/2014
Delivery Units,Adults and Communities,Other Agencies - Third Party Payment,30026176,ST JOSEPH'S PASTORAL CENTRE,624,04/08/2014
Delivery Units,Adults and Communities,Other Agencies - Third Party Payment,30026177,ST JOSEPH'S PASTORAL CENTRE,640,04/08/2014
Delivery Units,Adults and Communities,Other Agencies - Third Party Payment,30030232,ST MUNGO ASSOCIATION,"2,720.00",22/08/2014
Delivery Units,Adults and Communities,Other Agencies - Third Party Payment,30026188,ST RAPHAELS HOME,"2,462.28",04/08/2014
Delivery Units,Adults and Communities,Other Agencies - Third Party Payment,30026189,ST RAPHAELS HOME,-548.92,04/08/2014
Delivery Units,Adults and Communities,Other Agencies - Third Party Payment,30027267,ST RAPHAELS HOME,"2,462.28",08/08/2014
Delivery Units,Adults and Communities,Other Agencies - Third Party Payment,30027268,ST RAPHAELS HOME,-548.92,08/08/2014
Delivery Units,Adults and Communities,Other Agencies - Third Party Payment,30026164,ST. AUDREYS RETIREMENT HOME,"2,418.04",04/08/2014
Delivery Units,Adults and Communities,Other Agencies - Third Party Payment,30030973,ST. MARK'S DAY SERVICE,"1,999.08",28/08/2014
Delivery Units,Adults and Communities,Other Agencies - Third Party Payment,30025922,ST.DAVIDS CARE IN THE,"3,928.63",01/08/2014
Delivery Units,Adults and Communities,Other Agencies - Third Party Payment,30028300,STALLCOMBE HOUSE FARM TRUST,"6,472.00",18/08/2014
Delivery Units,Adults and Communities,Other Agencies - Third Party Payment,30026213,STOUR VALLEY CARE GROUP,"5,668.57",04/08/2014
Delivery Units,Adults and Communities,Other Agencies - Third Party Payment,30031780,STREETSCENE,"2,780.00",29/08/2014
Delivery Units,Adults and Communities,Other Agencies - Third Party Payment,30026203,SUNRIDGE HOUSING ASSOCIATION LTD,-560.16,04/08/2014
Delivery Units,Adults and Communities,Other Agencies - Third Party Payment,30025915,SWANBOROUGH HOUSE,"3,722.44",01/08/2014
Delivery Units,Adults and Communities,Other Agencies - Third Party Payment,30030309,SWANBOROUGH HOUSE,"3,722.44",22/08/2014
Delivery Units,Adults and Communities,Other Agencies - Third Party Payment,30026357,SYDMAR LODGE,"2,216.41",04/08/2014
Delivery Units,Adults and Communities,Other Agencies - Third Party Payment,30027234,SYDMAR LODGE,"2,878.57",07/08/2014
Delivery Units,Adults and Communities,Other Agencies - Third Party Payment,30026365,TENTERDEN HOUSE,"3,962.42",04/08/2014
Delivery Units,Adults and Communities,Other Agencies - Third Party Payment,10007278,THE BARNETGROUP LIMITED,"7,669.80",28/08/2014
Delivery Units,Adults and Communities,Other Agencies - Third Party Payment,10007279,THE BARNETGROUP LIMITED,840,28/08/2014
Delivery Units,Adults and Communities,Other Agencies - Third Party Payment,10007280,THE BARNETGROUP LIMITED,931.3,28/08/2014
Delivery Units,Adults and Communities,Other Agencies - Third Party Payment,10007281,THE BARNETGROUP LIMITED,"4,070.00",28/08/2014
Delivery Units,Adults and Communities,Other Agencies - Third Party Payment,10007284,THE BARNETGROUP LIMITED,884.79,28/08/2014
Delivery Units,Adults and Communities,Other Agencies - Third Party Payment,10007285,THE BARNETGROUP LIMITED,877.5,28/08/2014
Delivery Units,Adults and Communities,Other Agencies - Third Party Payment,10007286,THE BARNETGROUP LIMITED,"2,530.00",28/08/2014
Delivery Units,Adults and Communities,Other Agencies - Third Party Payment,10007287,THE BARNETGROUP LIMITED,"3,410.00",28/08/2014
Delivery Units,Adults and Communities,Other Agencies - Third Party Payment,10007288,THE BARNETGROUP LIMITED,"7,087.35",28/08/2014
Delivery Units,Adults and Communities,Other Agencies - Third Party Payment,30028444,THE BARNETGROUP LIMITED,881.6,18/08/2014
Delivery Units,Adults and Communities,Other Agencies - Third Party Payment,30028447,THE BARNETGROUP LIMITED,"3,920.00",18/08/2014
Delivery Units,Adults and Communities,Other Agencies - Third Party Payment,30028449,THE BARNETGROUP LIMITED,"1,120.00",18/08/2014
Delivery Units,Adults and Communities,Other Agencies - Third Party Payment,30028451,THE BARNETGROUP LIMITED,"1,120.00",18/08/2014
Delivery Units,Adults and Communities,Other Agencies - Third Party Payment,30028453,THE BARNETGROUP LIMITED,"1,120.00",18/08/2014
Delivery Units,Adults and Communities,Other Agencies - Third Party Payment,30028455,THE BARNETGROUP LIMITED,"1,120.00",18/08/2014
Delivery Units,Adults and Communities,Other Agencies - Third Party Payment,30030691,THE BARNETGROUP LIMITED,"2,200.00",26/08/2014
Delivery Units,Adults and Communities,Other Agencies - Third Party Payment,30030316,THE BEECHES UK LTD,"17,183.15",22/08/2014
Delivery Units,Adults and Communities,Other Agencies - Third Party Payment,30026313,THE CHRISTIAN CARE TRUST,"2,001.92",04/08/2014
Delivery Units,Adults and Communities,Other Agencies - Third Party Payment,30026334,THE CHRISTIAN CARE TRUST,"2,184.04",04/08/2014
Delivery Units,Adults and Communities,Other Agencies - Third Party Payment,30028226,THE CHRISTIAN CARE TRUST,"2,418.04",14/08/2014
Delivery Units,Adults and Communities,Other Agencies - Third Party Payment,30030334,THE CHRISTIAN CARE TRUST,"2,001.92",22/08/2014
Delivery Units,Adults and Communities,Other Agencies - Third Party Payment,30031015,THE CHRISTIAN CARE TRUST,"2,184.04",27/08/2014
Delivery Units,Adults and Communities,Other Agencies - Third Party Payment,30027184,THE CONIFERS,"2,497.59",07/08/2014
Delivery Units,Adults and Communities,Other Agencies - Third Party Payment,30027185,THE CONIFERS,-522.35,07/08/2014
Delivery Units,Adults and Communities,Other Agencies - Third Party Payment,30025925,THE DISABILITIES TRUST,"7,758.06",01/08/2014
Delivery Units,Adults and Communities,Other Agencies - Third Party Payment,30025991,THE DISABILITIES TRUST,"11,038.48",01/08/2014
Delivery Units,Adults and Communities,Other Agencies - Third Party Payment,30025992,THE DISABILITIES TRUST,"15,921.33",01/08/2014
Delivery Units,Adults and Communities,Other Agencies - Third Party Payment,30025993,THE DISABILITIES TRUST,"19,029.57",01/08/2014
Delivery Units,Adults and Communities,Other Agencies - Third Party Payment,30026393,THE EXTRA MILE CARE CO LTD,"1,037.12",05/08/2014
Delivery Units,Adults and Communities,Other Agencies - Third Party Payment,30027347,THE EXTRA MILE CARE CO LTD,"1,262.08",11/08/2014
Delivery Units,Adults and Communities,Other Agencies - Third Party Payment,30027351,THE EXTRA MILE CARE CO LTD,552.9,11/08/2014
Delivery Units,Adults and Communities,Other Agencies - Third Party Payment,30027356,THE EXTRA MILE CARE CO LTD,634.8,11/08/2014
Delivery Units,Adults and Communities,Other Agencies - Third Party Payment,30028166,THE EXTRA MILE CARE CO LTD,"1,042.40",13/08/2014
Delivery Units,Adults and Communities,Other Agencies - Third Party Payment,30028205,THE EXTRA MILE CARE CO LTD,518.56,14/08/2014
Delivery Units,Adults and Communities,Other Agencies - Third Party Payment,30028207,THE EXTRA MILE CARE CO LTD,"1,042.52",14/08/2014
Delivery Units,Adults and Communities,Other Agencies - Third Party Payment,30028209,THE EXTRA MILE CARE CO LTD,566.14,14/08/2014
Delivery Units,Adults and Communities,Other Agencies - Third Party Payment,30028251,THE EXTRA MILE CARE CO LTD,875.64,15/08/2014
Delivery Units,Adults and Communities,Other Agencies - Third Party Payment,30028253,THE EXTRA MILE CARE CO LTD,"1,111.04",15/08/2014
Delivery Units,Adults and Communities,Other Agencies - Third Party Payment,30028254,THE EXTRA MILE CARE CO LTD,645.78,15/08/2014
Delivery Units,Adults and Communities,Other Agencies - Third Party Payment,30028256,THE EXTRA MILE CARE CO LTD,814.8,15/08/2014
Delivery Units,Adults and Communities,Other Agencies - Third Party Payment,30030967,THE EXTRA MILE CARE CO LTD,513.22,27/08/2014
Delivery Units,Adults and Communities,Other Agencies - Third Party Payment,30031763,THE EXTRA MILE CARE CO LTD,"1,419.17",28/08/2014
Delivery Units,Adults and Communities,Other Agencies - Third Party Payment,30031958,THE EXTRA MILE CARE CO LTD,894.24,29/08/2014
Delivery Units,Adults and Communities,Other Agencies - Third Party Payment,30031960,THE EXTRA MILE CARE CO LTD,909.84,29/08/2014
Delivery Units,Adults and Communities,Other Agencies - Third Party Payment,30031961,THE EXTRA MILE CARE CO LTD,571.44,29/08/2014
Delivery Units,Adults and Communities,Other Agencies - Third Party Payment,30030760,THE GRANGE,"2,184.04",27/08/2014
Delivery Units,Adults and Communities,Other Agencies - Third Party Payment,30030858,THE GRANGE,"2,184.04",27/08/2014
Delivery Units,Adults and Communities,Other Agencies - Third Party Payment,30030859,THE GRANGE,-767.64,27/08/2014
Delivery Units,Adults and Communities,Other Agencies - Third Party Payment,30030863,THE GRANGE,"2,184.04",27/08/2014
Delivery Units,Adults and Communities,Other Agencies - Third Party Payment,30030864,THE GRANGE,"2,184.04",27/08/2014
Delivery Units,Adults and Communities,Other Agencies - Third Party Payment,30030964,THE GRANGE,"2,184.04",27/08/2014
Delivery Units,Adults and Communities,Other Agencies - Third Party Payment,30030972,THE GRANGE,"2,184.04",27/08/2014
Delivery Units,Adults and Communities,Other Agencies - Third Party Payment,30031690,THE HOLLIES RESIDENTIAL HOTEL,"2,184.04",28/08/2014
Delivery Units,Adults and Communities,Other Agencies - Third Party Payment,30028183,THE KINGSDOWNE SOCIETY,"2,001.92",13/08/2014
Delivery Units,Adults and Communities,Other Agencies - Third Party Payment,30030336,THE KINGSDOWNE SOCIETY,"2,441.92",28/08/2014
Delivery Units,Adults and Communities,Other Agencies - Third Party Payment,30030337,THE KINGSDOWNE SOCIETY,"2,001.92",28/08/2014
Delivery Units,Adults and Communities,Other Agencies - Third Party Payment,30030338,THE KINGSDOWNE SOCIETY,"2,001.92",28/08/2014
Delivery Units,Adults and Communities,Other Agencies - Third Party Payment,30030339,THE KINGSDOWNE SOCIETY,"2,184.04",28/08/2014
Delivery Units,Adults and Communities,Other Agencies - Third Party Payment,30030340,THE KINGSDOWNE SOCIETY,"2,001.92",28/08/2014
Delivery Units,Adults and Communities,Other Agencies - Third Party Payment,30031976,THE KINGSDOWNE SOCIETY,"2,001.92",29/08/2014
Delivery Units,Adults and Communities,Other Agencies - Third Party Payment,30027196,THE LIMES RESIDENTIAL HOME,"2,418.04",07/08/2014
Delivery Units,Adults and Communities,Other Agencies - Third Party Payment,30027209,THE LIMES RESIDENTIAL HOME,"2,418.04",07/08/2014
Delivery Units,Adults and Communities,Other Agencies - Third Party Payment,30027211,THE LIMES RESIDENTIAL HOME,546.01,07/08/2014
Delivery Units,Adults and Communities,Other Agencies - Third Party Payment,30027212,THE LIMES RESIDENTIAL HOME,"2,418.04",07/08/2014
Delivery Units,Adults and Communities,Other Agencies - Third Party Payment,30027214,THE LIMES RESIDENTIAL HOME,"2,418.04",07/08/2014
Delivery Units,Adults and Communities,Other Agencies - Third Party Payment,30027215,THE LIMES RESIDENTIAL HOME,"2,418.04",07/08/2014
Delivery Units,Adults and Communities,Other Agencies - Third Party Payment,30027218,THE LIMES RESIDENTIAL HOME,"2,418.04",07/08/2014
Delivery Units,Adults and Communities,Other Agencies - Third Party Payment,30027220,THE LIMES RESIDENTIAL HOME,"2,216.41",07/08/2014
Delivery Units,Adults and Communities,Other Agencies - Third Party Payment,30027222,THE LIMES RESIDENTIAL HOME,"2,418.04",07/08/2014
Delivery Units,Adults and Communities,Other Agencies - Third Party Payment,30029989,THE NATIONAL AUTISTIC SOCIETY,"5,325.20",21/08/2014
Delivery Units,Adults and Communities,Other Agencies - Third Party Payment,30029991,THE NATIONAL AUTISTIC SOCIETY,"5,325.20",21/08/2014
Delivery Units,Adults and Communities,Other Agencies - Third Party Payment,30026023,THE NATIONAL SOCIETY FOR EPILEPSY,"4,326.32",01/08/2014
Delivery Units,Adults and Communities,Other Agencies - Third Party Payment,30026024,THE NATIONAL SOCIETY FOR EPILEPSY,"9,140.00",01/08/2014
Delivery Units,Adults and Communities,Other Agencies - Third Party Payment,30027151,THE PRIORY GRANGE POTTERS BAR,"1,539.98",07/08/2014
Delivery Units,Adults and Communities,Other Agencies - Third Party Payment,30025986,THE REGARD PARTNERSHIP LTD,"5,238.82",01/08/2014
Delivery Units,Adults and Communities,Other Agencies - Third Party Payment,30025988,THE REGARD PARTNERSHIP LTD,"8,040.65",01/08/2014
Delivery Units,Adults and Communities,Other Agencies - Third Party Payment,30026538,THE REGARD PARTNERSHIP LTD,"3,856.84",06/08/2014
Delivery Units,Adults and Communities,Other Agencies - Third Party Payment,30025897,THE WELL HOUSE,"4,495.00",01/08/2014
Delivery Units,Adults and Communities,Other Agencies - Third Party Payment,30031714,THEMI CARE LTD,"4,440.00",28/08/2014
Delivery Units,Adults and Communities,Other Agencies - Third Party Payment,30026301,THORNDENE LTD,"3,711.14",04/08/2014
Delivery Units,Adults and Communities,Other Agencies - Third Party Payment,30026302,THORNDENE LTD,-548.92,04/08/2014
Delivery Units,Adults and Communities,Other Agencies - Third Party Payment,30026271,THOUGHTS OF OTHERS LTD,"6,336.36",04/08/2014
Delivery Units,Adults and Communities,Other Agencies - Third Party Payment,30028698,TORRINGTON HOMES,"2,774.24",19/08/2014
Delivery Units,Adults and Communities,Other Agencies - Third Party Payment,30028699,TORRINGTON HOMES,-590.2,19/08/2014
Delivery Units,Adults and Communities,Other Agencies - Third Party Payment,30029964,TORRINGTON HOMES,"2,774.24",21/08/2014
Delivery Units,Adults and Communities,Other Agencies - Third Party Payment,30029965,TORRINGTON HOMES,-590.2,21/08/2014
Delivery Units,Adults and Communities,Other Agencies - Third Party Payment,30030992,TORRINGTON HOMES,"2,184.04",27/08/2014
Delivery Units,Adults and Communities,Other Agencies - Third Party Payment,30030995,TORRINGTON HOMES,"2,184.04",27/08/2014
Delivery Units,Adults and Communities,Other Agencies - Third Party Payment,30030996,TORRINGTON HOMES,"2,184.04",27/08/2014
Delivery Units,Adults and Communities,Other Agencies - Third Party Payment,30030997,TORRINGTON HOMES,"2,184.04",27/08/2014
Delivery Units,Adults and Communities,Other Agencies - Third Party Payment,30030998,TORRINGTON HOMES,"2,001.92",27/08/2014
Delivery Units,Adults and Communities,Other Agencies - Third Party Payment,30031003,TORRINGTON HOMES,"2,184.04",27/08/2014
Delivery Units,Adults and Communities,Other Agencies - Third Party Payment,30031004,TORRINGTON HOMES,"2,184.04",27/08/2014
Delivery Units,Adults and Communities,Other Agencies - Third Party Payment,30031005,TORRINGTON HOMES,"2,001.92",27/08/2014
Delivery Units,Adults and Communities,Other Agencies - Third Party Payment,30031007,TORRINGTON HOMES,"2,184.04",27/08/2014
Delivery Units,Adults and Communities,Other Agencies - Third Party Payment,30031009,TORRINGTON HOMES,"2,184.04",27/08/2014
Delivery Units,Adults and Communities,Other Agencies - Third Party Payment,30026228,TOWERTREND LTD,"3,321.43",04/08/2014
Delivery Units,Adults and Communities,Other Agencies - Third Party Payment,30025902,TRAFALGAR HEALTHCARE LTD,"2,418.04",01/08/2014
Delivery Units,Adults and Communities,Other Agencies - Third Party Payment,30026495,TREEHAVEN,"6,905.32",06/08/2014
Delivery Units,Adults and Communities,Other Agencies - Third Party Payment,30026497,TREEHAVEN,"5,971.88",06/08/2014
Delivery Units,Adults and Communities,Other Agencies - Third Party Payment,30026506,TREEHAVEN,"6,091.36",06/08/2014
Delivery Units,Adults and Communities,Other Agencies - Third Party Payment,30026507,TREEHAVEN,"5,210.60",06/08/2014
Delivery Units,Adults and Communities,Other Agencies - Third Party Payment,30026161,TUDOR LODGE RESIDENTIAL HOME,"2,529.60",04/08/2014
Delivery Units,Adults and Communities,Other Agencies - Third Party Payment,30028715,TURNING POINT SERVICES LTD,"19,172.15",19/08/2014
Delivery Units,Adults and Communities,Other Agencies - Third Party Payment,30028716,TURNING POINT SERVICES LTD,"-1,037.15",19/08/2014
Delivery Units,Adults and Communities,Other Agencies - Third Party Payment,30026004,UNIQUE CARE SERVICES,"2,455.24",01/08/2014
Delivery Units,Adults and Communities,Other Agencies - Third Party Payment,30031790,UNIQUE CARE SERVICES,"2,455.24",28/08/2014
Delivery Units,Adults and Communities,Other Agencies - Third Party Payment,30028466,VENTRY RESIDENTIAL CARE LTD,"2,184.04",18/08/2014
Delivery Units,Adults and Communities,Other Agencies - Third Party Payment,30026335,VIVRE CARE LTD,"6,956.32",04/08/2014
Delivery Units,Adults and Communities,Other Agencies - Third Party Payment,30026274,VOYAGE CARE,"5,757.14",04/08/2014
Delivery Units,Adults and Communities,Other Agencies - Third Party Payment,30026275,VOYAGE CARE,-526.78,04/08/2014
Delivery Units,Adults and Communities,Other Agencies - Third Party Payment,30026276,VOYAGE CARE,"4,871.42",04/08/2014
Delivery Units,Adults and Communities,Other Agencies - Third Party Payment,30026278,VOYAGE CARE,"7,475.43",04/08/2014
Delivery Units,Adults and Communities,Other Agencies - Third Party Payment,30028735,VOYAGE CARE,"6,800.00",19/08/2014
Delivery Units,Adults and Communities,Other Agencies - Third Party Payment,30026363,VOYAGE LTD (SOLOR CARE),"6,553.67",04/08/2014
Delivery Units,Adults and Communities,Other Agencies - Third Party Payment,20010729,W. SHERRY & SONS,943,19/08/2014
Delivery Units,Adults and Communities,Other Agencies - Third Party Payment,30027143,WALSINGHAM,"3,224.93",07/08/2014
Delivery Units,Adults and Communities,Other Agencies - Third Party Payment,30026504,WESTBROOK HOUSE,"4,134.56",06/08/2014
Delivery Units,Adults and Communities,Other Agencies - Third Party Payment,30026509,WESTBROOK HOUSE,"3,838.28",06/08/2014
Delivery Units,Adults and Communities,Other Agencies - Third Party Payment,30026367,WESTGATE HOUSE CARE CENTRE,"3,725.76",01/08/2014
Delivery Units,Adults and Communities,Other Agencies - Third Party Payment,30025858,WESTMINSTER HEALTH CARE LTD,"4,495.93",01/08/2014
Delivery Units,Adults and Communities,Other Agencies - Third Party Payment,30025859,WESTMINSTER HEALTH CARE LTD,"2,318.93",01/08/2014
Delivery Units,Adults and Communities,Other Agencies - Third Party Payment,30025860,WESTMINSTER HEALTH CARE LTD,"4,864.08",01/08/2014
Delivery Units,Adults and Communities,Other Agencies - Third Party Payment,30025861,WESTMINSTER HEALTH CARE LTD,"4,864.08",01/08/2014
Delivery Units,Adults and Communities,Other Agencies - Third Party Payment,30025862,WESTMINSTER HEALTH CARE LTD,"5,087.68",01/08/2014
Delivery Units,Adults and Communities,Other Agencies - Third Party Payment,30028469,WILLOW CARE HOMES,"4,904.00",18/08/2014
Delivery Units,Adults and Communities,Other Agencies - Third Party Payment,30028741,WILLOW CARE HOMES,"5,066.00",19/08/2014
Delivery Units,Adults and Communities,Other Agencies - Third Party Payment,30025847,WILSMERE HOUSE CARE CENTRE,"4,979.35",01/08/2014
Delivery Units,Adults and Communities,Other Agencies - Third Party Payment,30025848,WILSMERE HOUSE CARE CENTRE,"5,421.90",01/08/2014
Delivery Units,Adults and Communities,Other Agencies - Third Party Payment,30025849,WILSMERE HOUSE CARE CENTRE,"5,535.71",01/08/2014
Delivery Units,Adults and Communities,Other Agencies - Third Party Payment,30027246,WOODFIELD HOUSE,"3,000.00",07/08/2014
Delivery Units,Adults and Communities,Other Agencies - Third Party Payment,30028956,WOODFIELD HOUSE,"3,600.00",20/08/2014
Delivery Units,Adults and Communities,Other Agencies - Third Party Payment,30028957,WOODFIELD HOUSE,"2,700.00",20/08/2014
Delivery Units,Adults and Communities,Other Agencies - Third Party Payment,30028958,WOODFIELD HOUSE,"3,200.00",20/08/2014
Delivery Units,Adults and Communities,Other Agencies - Third Party Payment,30028959,WOODFIELD HOUSE,"6,368.00",20/08/2014
Delivery Units,Adults and Communities,Other Agencies - Third Party Payment,30028964,WOODFIELD HOUSE,"2,700.00",20/08/2014
Delivery Units,Adults and Communities,Other Agencies - Third Party Payment,30028965,WOODFIELD HOUSE,"2,700.00",20/08/2014
Delivery Units,Adults and Communities,Other Agencies - Third Party Payment,30028966,WOODFIELD HOUSE,"4,688.00",20/08/2014
Delivery Units,Adults and Communities,Other Agencies - Third Party Payment,30030698,WOODFIELD HOUSE,"2,700.00",26/08/2014
Delivery Units,Adults and Communities,Other Agencies - Third Party Payment,30027247,YAD VOEZER LIMITED,"4,838.88",27/08/2014
Delivery Units,Adults and Communities,Other Agencies - Third Party Payment,30027248,YAD VOEZER LIMITED,"5,199.88",27/08/2014
Delivery Units,Adults and Communities,Other Agencies - Third Party Payment,30026162,YOUNG FOUNDATIONS LTD,"13,064.33",04/08/2014
Delivery Units,Adults and Communities,Other Agencies - Third Party Payment,30030802,Z & M CARE LTD,"2,184.04",27/08/2014
Delivery Units,Adults and Communities,Other Services,20010289,BRITISH TELECOMMUNICATIONS PLC,"29,684.88",07/08/2014
Delivery Units,Adults and Communities,Other Services,20010298,BRITISH TELECOMMUNICATIONS PLC,"6,685.18",07/08/2014
Delivery Units,Adults and Communities,Other Services,20010299,BRITISH TELECOMMUNICATIONS PLC,"108,852.34",07/08/2014
Delivery Units,Adults and Communities,Other Services,20010195,COMMUNITY BARNET,"5,386.28",06/08/2014
Delivery Units,Adults and Communities,Other Services,20010323,COMMUNITY BARNET,"20,613.72",08/08/2014
Delivery Units,Adults and Communities,Other Services,20010423,GREEN GARDEN,"3,000.00",12/08/2014
Delivery Units,Adults and Communities,Other Services,20010319,LONDON BOROUGH OF HARROW,"88,406.00",08/08/2014
Delivery Units,Adults and Communities,Other Services,20010317,LONDON PROBATION TRUST,"11,290.80",08/08/2014
Delivery Units,Adults and Communities,Other Services,20010318,LONDON PROBATION TRUST,"47,500.00",08/08/2014
Delivery Units,Adults and Communities,Other Services,10005500,MI HOMECARE LIMITED,"1,780.80",07/08/2014
Delivery Units,Adults and Communities,Other Services,10005505,MI HOMECARE LIMITED,"1,780.80",07/08/2014
Delivery Units,Adults and Communities,Other Services,10006835,MI HOMECARE LIMITED,"1,780.80",22/08/2014
Delivery Units,Adults and Communities,Other Services,10006836,MI HOMECARE LIMITED,"1,780.80",22/08/2014
Delivery Units,Adults and Communities,Other Services,10007273,MI HOMECARE LIMITED,"1,780.80",28/08/2014
Delivery Units,Adults and Communities,Other Services,10007274,MI HOMECARE LIMITED,"1,780.80",28/08/2014
Delivery Units,Adults and Communities,Other Services,10005502,UNIVERSITY OF ST. ANDREWS,"2,100.00",05/08/2014
Delivery Units,Adults and Communities,Other Services,30028278,WILLOW HOUSING & CARE LTD.,711.38,15/08/2014
Delivery Units,Adults and Communities,Other Transfer Payments to Soc,10006636,HOUSING 21,634.56,19/08/2014
Delivery Units,Adults and Communities,Other Transfer Payments to Soc,10006637,HOUSING 21,634.56,19/08/2014
Delivery Units,Adults and Communities,Other Transfer Payments to Soc,10006638,HOUSING 21,634.56,19/08/2014
Delivery Units,Adults and Communities,Other Transfer Payments to Soc,10006640,HOUSING 21,634.56,19/08/2014
Delivery Units,Adults and Communities,Other Transfer Payments to Soc,10006641,HOUSING 21,634.56,19/08/2014
Delivery Units,Adults and Communities,Other Transfer Payments to Soc,10006837,HOUSING 21,634.56,22/08/2014
Delivery Units,Adults and Communities,Other Transfer Payments to Soc,10007277,HOUSING 21,634.56,28/08/2014
Delivery Units,Adults and Communities,Other Transfer Payments to Soc,10007362,HOUSING 21,634.56,29/08/2014
Delivery Units,Adults and Communities,Other Transfer Payments to Soc,10007363,HOUSING 21,634.56,29/08/2014
Delivery Units,Adults and Communities,Other Transfer Payments to Soc,2232,THE FREMANTLE TRUST,782.8,11/08/2014
Delivery Units,Adults and Communities,Printing-Contract,10006426,GOOD IMPRESSIONS (LONDON) LIMITED,"1,440.00",18/08/2014
Delivery Units,Adults and Communities,Printing-Contract,10006428,GOOD IMPRESSIONS (LONDON) LIMITED,660,18/08/2014
Delivery Units,Adults and Communities,Private Contractors - Third Party Payment,10002365,GREENWICH LEISURE LTD,"97,102.41",07/08/2014
Delivery Units,Adults and Communities,Private Contractors - Third Party Payment,10006420,GREENWICH LEISURE LTD,"92,215.84",15/08/2014
Delivery Units,Adults and Communities,Private Contractors - Third Party Payment,10006422,GREENWICH LEISURE LTD,"2,687.78",15/08/2014
Delivery Units,Adults and Communities,Software Licences & Support,10006834,CARE MONITORING 2000 LTD,"7,365.80",21/08/2014
Delivery Units,Adults and Communities,Subscriptions,10005265,ASSOCIATION OF DIRECTORS OF ADULT,"1,661.00",04/08/2014
Delivery Units,Adults and Communities,Training,10005570,PREMIER PEOPLE SOLUTIONS LTD,"2,985.00",06/08/2014
Delivery Units,Adults and Communities,Training,10006480,PREMIER PEOPLE SOLUTIONS LTD,"2,314.00",28/08/2014
Delivery Units,Adults and Communities,Training,10005193,VBA PARTNERS LTD,742,06/08/2014
Delivery Units,Adults and Communities,Voluntary Associations - Third Party Payment,30028281,BARNET ASIAN WOMENS ASSOCIATION,"2,471.35",15/08/2014
Delivery Units,Adults and Communities,Voluntary Associations - Third Party Payment,30028262,BARNET MENCAP,"10,523.61",15/08/2014
Delivery Units,Adults and Communities,Voluntary Associations - Third Party Payment,30028283,BARNET REFUGEE SERVICE,"5,578.83",20/08/2014
Delivery Units,Adults and Communities,Voluntary Associations - Third Party Payment,30028284,BRITISH RED CROSS SOCIETY,"3,164.63",15/08/2014
Delivery Units,Adults and Communities,Voluntary Associations - Third Party Payment,30028285,CHERRY LODGE CANCER CARE,"1,173.83",15/08/2014
Delivery Units,Adults and Communities,Voluntary Associations - Third Party Payment,30028263,CHINESE MENTAL HEALTH ASSOCIATION,"3,907.90",15/08/2014
Delivery Units,Adults and Communities,Voluntary Associations - Third Party Payment,30028286,DIMENSIONS UK,"30,050.42",15/08/2014
Delivery Units,Adults and Communities,Voluntary Associations - Third Party Payment,30022265,GENESIS HOUSING ASSOCIATION LIMITED,"95,142.58",11/08/2014
Delivery Units,Adults and Communities,Voluntary Associations - Third Party Payment,30028268,JEWISH COMMUNITY HOUSING ASSOCIATIO,568.17,15/08/2014
Delivery Units,Adults and Communities,Voluntary Associations - Third Party Payment,30028274,LINEN & WOOLLEN DRAPERS COTTAGE,730.11,15/08/2014
Delivery Units,Adults and Communities,Voluntary Associations - Third Party Payment,30028287,MIND IN BARNET,"6,418.22",15/08/2014
Delivery Units,Adults and Communities,Voluntary Associations - Third Party Payment,30028291,PRT BARNET CARERS CENTRE,"23,333.33",15/08/2014
Delivery Units,Adults and Communities,Voluntary Associations - Third Party Payment,30028275,ROYAL MENCAP SOCIETY,"2,930.88",15/08/2014
Delivery Units,Adults and Communities,Voluntary Associations - Third Party Payment,30028273,ST PANCRAS & HUMANIST H.A.,661.55,15/08/2014
Delivery Units,Adults and Communities,Voluntary Associations - Third Party Payment,30028289,THE RICHMOND FELLOWSHIP,"44,166.67",15/08/2014
Delivery Units,Barnet Group,Grant Payments,20010105,CITY OF WESTMINSTER,"80,000.00",04/08/2014
Delivery Units,Barnet Group,Private Contractors - Third Party Payment,10007142,THE BARNETGROUP LIMITED,"1,041,296.87",27/08/2014
Delivery Units,Childrens Services,Advertising,10007471,HAMPSTEAD GARDEN SUBURB RES.ASSO.,525,28/08/2014
Delivery Units,Childrens Services,Advertising,10002485,NEWSQUEST (LONDON) LIMITED,"4,000.00",08/08/2014
Delivery Units,Childrens Services,Advertising for staff,10005757,THE LONDON APPRENTICESHIP CO,"2,750.00",12/08/2014
Delivery Units,Childrens Services,Advertising for staff,10005758,THE LONDON APPRENTICESHIP CO,"4,125.00",12/08/2014
Delivery Units,Childrens Services,Advertising for staff,10005759,THE LONDON APPRENTICESHIP CO,"5,225.00",12/08/2014
Delivery Units,Childrens Services,Advertising for staff,10005786,THE LONDON APPRENTICESHIP CO,"3,025.00",12/08/2014
Delivery Units,Childrens Services,Advertising for staff,20010480,TMP (UK) LTD,552.3,14/08/2014
Delivery Units,Childrens Services,Agency/Interim Hays,20010415,CENTRAL LONDONCOMMUNITY HEALTHCARE,"37,500.00",12/08/2014
Delivery Units,Childrens Services,Agency/Interim Non Hays,20010408,TMP (UK) LTD,939,12/08/2014
Delivery Units,Childrens Services,Books-CDs-Audio-Video,30028816,ASKEWS & HOLTS LIBRARY SERVICES LTD,565.43,20/08/2014
Delivery Units,Childrens Services,Books-CDs-Audio-Video,30028861,ASKEWS & HOLTS LIBRARY SERVICES LTD,654.42,20/08/2014
Delivery Units,Childrens Services,Books-CDs-Audio-Video,30030170,CENGAGE LEARNING SERVICES,"4,165.00",22/08/2014
Delivery Units,Childrens Services,Books-CDs-Audio-Video,10007351,FAMILY LINKS,"1,245.00",27/08/2014
Delivery Units,Childrens Services,Books-CDs-Audio-Video,30031857,OVERDRIVE,"1,292.08",29/08/2014
Delivery Units,Childrens Services,Books-CDs-Audio-Video,30031858,OVERDRIVE,"11,250.00",29/08/2014
Delivery Units,Childrens Services,Building Repairs & Maintenance,10006212,BELFRY PROPERTY SERVICES LTD,"84,617.00",13/08/2014
Delivery Units,Childrens Services,Building Repairs & Maintenance,10007086,BREYER GROUP PLC,"7,663.56",28/08/2014
Delivery Units,Childrens Services,Building Repairs & Maintenance,10007087,BREYER GROUP PLC,"1,719.92",28/08/2014
Delivery Units,Childrens Services,Building Repairs & Maintenance,10006472,KIRKMAN & JOURDAIN LTD,"23,497.00",15/08/2014
Delivery Units,Childrens Services,Building Repairs & Maintenance,10006473,KIRKMAN & JOURDAIN LTD,"2,140.00",15/08/2014
Delivery Units,Childrens Services,Building Repairs & Maintenance,10006496,LONDON DIOCESAN BOARD FOR SCHOOL,"249,613.00",20/08/2014
Delivery Units,Childrens Services,Building Repairs & Maintenance,20010316,NEILCOTT CONSTRUCTION LTD,"23,000.00",08/08/2014
Delivery Units,Childrens Services,Capital Construction and Works,10006229,D LONG (CONSTRUCTION) LTD,"59,560.00",13/08/2014
Delivery Units,Childrens Services,Capital Construction and Works,10006230,D LONG (CONSTRUCTION) LTD,"65,435.00",13/08/2014
Delivery Units,Childrens Services,Capital Construction and Works,10005521,GARDINER & THEOBALD LLP,"7,500.00",14/08/2014
Delivery Units,Childrens Services,Capital Construction and Works,10005523,GARDINER & THEOBALD LLP,"1,000.00",14/08/2014
Delivery Units,Childrens Services,Capital Construction and Works,10005894,GARDINER & THEOBALD LLP,"8,500.00",14/08/2014
Delivery Units,Childrens Services,Capital Construction and Works,10006252,KIER REGIONAL LTD,"458,810.00",14/08/2014
Delivery Units,Childrens Services,Capital Construction and Works,10006418,MORGAN SINDALL,"151,805.00",14/08/2014
Delivery Units,Childrens Services,Capital Construction and Works,10007457,PORTAKABIN LTD,"1,934.85",28/08/2014
Delivery Units,Childrens Services,Capital Construction and Works,10007456,WESTMINSTER ROMAN CATHOLIC,"30,000.00",29/08/2014
Delivery Units,Childrens Services,Consultants Fees,10007207,MORGAN SINDALL,"118,149.00",28/08/2014
Delivery Units,Childrens Services,Consultants Fees,10007100,MOUCHEL LTD,"1,208.32",22/08/2014
Delivery Units,Childrens Services,Consultants Fees,10007101,MOUCHEL LTD,984.15,22/08/2014
Delivery Units,Childrens Services,Consultants Fees,10007102,MOUCHEL LTD,"1,208.32",22/08/2014
Delivery Units,Childrens Services,Consultants Fees,10007105,MOUCHEL LTD,"1,279.40",22/08/2014
Delivery Units,Childrens Services,Consultants Fees,10007107,MOUCHEL LTD,"1,350.47",22/08/2014
Delivery Units,Childrens Services,Consultants Fees,10005471,THE HISTORICAL ASSOCIATION,570.33,18/08/2014
Delivery Units,Childrens Services,Consumable Catering Supplies,10007171,LONDON BIO PACKAGING,506.51,27/08/2014
Delivery Units,Childrens Services,Consumable Catering Supplies,10007200,LONDON BIO PACKAGING,"2,137.87",27/08/2014
Delivery Units,Childrens Services,Contract Cleaning,10005013,BIRKIN CLEANING SERVICES LTD,745.32,01/08/2014
Delivery Units,Childrens Services,Electricity,10005551,KENT COUNTY COUNCIL (KCS),576.14,06/08/2014
Delivery Units,Childrens Services,Electricity,10005653,KENT COUNTY COUNCIL (KCS),660.89,06/08/2014
Delivery Units,Childrens Services,Electricity,10005660,KENT COUNTY COUNCIL (KCS),"2,466.25",06/08/2014
Delivery Units,Childrens Services,Electricity,10005661,KENT COUNTY COUNCIL (KCS),"1,298.50",06/08/2014
Delivery Units,Childrens Services,Electricity,10005662,KENT COUNTY COUNCIL (KCS),851.16,06/08/2014
Delivery Units,Childrens Services,Electricity,10005663,KENT COUNTY COUNCIL (KCS),"1,217.24",06/08/2014
Delivery Units,Childrens Services,Electricity,10005669,KENT COUNTY COUNCIL (KCS),961.95,07/08/2014
Delivery Units,Childrens Services,Electricity,10005670,KENT COUNTY COUNCIL (KCS),"-1,127.20",22/08/2014
Delivery Units,Childrens Services,Electricity,10006826,KENT COUNTY COUNCIL (KCS),502.96,22/08/2014
Delivery Units,Childrens Services,Electricity,10006936,KENT COUNTY COUNCIL (KCS),571.87,22/08/2014
Delivery Units,Childrens Services,Electricity,10007244,KENT COUNTY COUNCIL (KCS),665.18,26/08/2014
Delivery Units,Childrens Services,Equipment and Materials Purchase,10005535,CONNEVANS LTD,"9,875.50",14/08/2014
Delivery Units,Childrens Services,Equipment and Materials Purchase,10005546,FOSTER REFRIGERATOR (UK) LTD,"1,568.00",14/08/2014
Delivery Units,Childrens Services,Equipment and Materials Purchase,10005547,FOSTER REFRIGERATOR (UK) LTD,"1,374.00",14/08/2014
Delivery Units,Childrens Services,Equipment and Materials Purchase,10007199,FOSTER REFRIGERATOR (UK) LTD,"4,244.00",26/08/2014
Delivery Units,Childrens Services,Equipment and Materials Purchase,10005975,GLS EDUCATIONAL SUPPLIES LTD,619.19,13/08/2014
Delivery Units,Childrens Services,Equipment and Materials Purchase,10006023,HERTFORDSHIRE SUPPLIES   COUNTY CO,512,14/08/2014
Delivery Units,Childrens Services,Equipment and Materials Purchase,10006024,HERTFORDSHIRE SUPPLIES   COUNTY CO,559.6,14/08/2014
Delivery Units,Childrens Services,Equipment and Materials Purchase,10006025,HERTFORDSHIRE SUPPLIES   COUNTY CO,"1,007.40",14/08/2014
Delivery Units,Childrens Services,Equipment and Materials Purchase,10005710,HOBART UK,"7,930.00",07/08/2014
Delivery Units,Childrens Services,Equipment and Materials Purchase,10005033,KIRKFIELDS HEATING SERVICES LTD,"2,482.67",06/08/2014
Delivery Units,Childrens Services,Equipment and Materials Purchase,20010410,NEWSQUEST (LONDON) LIMITED,894.76,12/08/2014
Delivery Units,Childrens Services,Equipment and Materials Purchase,10006607,NISBETS PLC,971.94,19/08/2014
Delivery Units,Childrens Services,Equipment and Materials Purchase,10007170,NISBETS PLC,"4,069.89",27/08/2014
Delivery Units,Childrens Services,Equipment and Materials Purchase,10007544,SERVACCOMM REDHALL LTD,"77,761.49",29/08/2014
Delivery Units,Childrens Services,Equipment and Materials Purchase,10007545,SERVACCOMM REDHALL LTD,"142,544.13",29/08/2014
Delivery Units,Childrens Services,Equipment and Materials Purchase,10007546,SERVACCOMM REDHALL LTD,"103,403.22",29/08/2014
Delivery Units,Childrens Services,Equipment and Materials Purchase,10006335,T.&.D.BARRS,"4,960.80",14/08/2014
Delivery Units,Childrens Services,Food Costs,10005407,HATOV DISTRIBUTION,778.3,05/08/2014
Delivery Units,Childrens Services,Food Costs,10005417,HATOV DISTRIBUTION,972.9,05/08/2014
Delivery Units,Childrens Services,Food Costs,10005564,HATOV DISTRIBUTION,"1,195.10",07/08/2014
Delivery Units,Childrens Services,Food Costs,10005427,MOISHE ROSENBERG,820.34,05/08/2014
Delivery Units,Childrens Services,Food Costs,10005428,MOISHE ROSENBERG,"1,980.76",05/08/2014
Delivery Units,Childrens Services,Food Costs,10005430,MOISHE ROSENBERG,"1,588.72",05/08/2014
Delivery Units,Childrens Services,Food Costs,10004781,OSEM U.K. LIMITED,825.57,01/08/2014
Delivery Units,Childrens Services,Food Costs,10005413,OSEM U.K. LIMITED,716.3,05/08/2014
Delivery Units,Childrens Services,Food Costs,10007185,OSEM U.K. LIMITED,671.64,26/08/2014
Delivery Units,Childrens Services,Food Costs,10005405,RUMPLER'S,911.7,05/08/2014
Delivery Units,Childrens Services,Food Costs,10005419,RUMPLER'S,672,05/08/2014
Delivery Units,Childrens Services,Food Costs,10005567,RUMPLER'S,570.5,06/08/2014
Delivery Units,Childrens Services,Food Costs,10005409,THE FAMILY BREAD LTD,597.38,05/08/2014
Delivery Units,Childrens Services,Food Costs,10005562,THE FAMILY BREAD LTD,682,07/08/2014
Delivery Units,Childrens Services,Furniture-Purchase-Repair,10007426,THE HYDE EF ACADEMY,"5,600.00",29/08/2014
Delivery Units,Childrens Services,Furniture-Purchase-Repair,10007427,THE HYDE EF ACADEMY,"14,000.00",29/08/2014
Delivery Units,Childrens Services,Gas,10005638,KENT COUNTY COUNCIL (KCS),820.33,08/08/2014
Delivery Units,Childrens Services,Gas,10006947,KENT COUNTY COUNCIL (KCS),501.95,22/08/2014
Delivery Units,Childrens Services,Gas,10006951,KENT COUNTY COUNCIL (KCS),565.82,22/08/2014
Delivery Units,Childrens Services,Grant Payments,20010353,BRIGHT SPARKS NURSERY,"1,008.00",11/08/2014
Delivery Units,Childrens Services,Grant Payments,20010126,COUNTRY COWS MONTESSORI NURSERY LTD,720,05/08/2014
Delivery Units,Childrens Services,Grant Payments,20010578,CUPCAKES NURSERIES LTD,"1,000.00",15/08/2014
Delivery Units,Childrens Services,Grant Payments,20010453,JACK & JILL PLAYGROUP,"10,000.00",13/08/2014
Delivery Units,Childrens Services,Grant Payments,20010768,JOEL DAY NURSERY,540,21/08/2014
Delivery Units,Childrens Services,Grant Payments,20010081,KIDZ KABIN PEMBROKE STUDIOS LTD,"20,000.00",04/08/2014
Delivery Units,Childrens Services,Grant Payments,20010902,LITTLE OAKS PRE-SCHOOL,"1,000.00",27/08/2014
Delivery Units,Childrens Services,Grant Payments,20010351,LUBAVITCH OF EDGWARE,"1,103.40",11/08/2014
Delivery Units,Childrens Services,Grant Payments,20010736,MATRYOSHKA MONTESSORI SCHOOL,"10,000.00",21/08/2014
Delivery Units,Childrens Services,Grant Payments,20010735,NIGHTINGALE DAY NURSERY,"1,000.00",21/08/2014
Delivery Units,Childrens Services,Grant Payments,20010579,SPARKLER'S  NURSERY,"4,928.78",15/08/2014
Delivery Units,Childrens Services,Grant Payments,20010577,ST PHILLIPS PRE-SCHOOL,875.46,15/08/2014
Delivery Units,Childrens Services,Grant Payments,20010582,TWISTY TAILS NURSERY LTD,540,15/08/2014
Delivery Units,Childrens Services,Other Agencies - Third Party Payment,10006602,ABOVE BEYOND CARE,"3,321.34",18/08/2014
Delivery Units,Childrens Services,Other Agencies - Third Party Payment,10007124,ABOVE BEYOND CARE,"3,321.34",27/08/2014
Delivery Units,Childrens Services,Other Agencies - Third Party Payment,10007125,ABOVE BEYOND CARE,"3,214.20",27/08/2014
Delivery Units,Childrens Services,Other Agencies - Third Party Payment,10007126,ABOVE BEYOND CARE,"3,321.34",27/08/2014
Delivery Units,Childrens Services,Other Agencies - Third Party Payment,10006919,ACTION FOR KIDS,"2,095.00",21/08/2014
Delivery Units,Childrens Services,Other Agencies - Third Party Payment,10005187,ADVANTAGE HEALTHCARE GROUP LTD,"1,251.40",07/08/2014
Delivery Units,Childrens Services,Other Agencies - Third Party Payment,10005188,ADVANTAGE HEALTHCARE GROUP LTD,"1,254.63",01/08/2014
Delivery Units,Childrens Services,Other Agencies - Third Party Payment,10006895,ADVANTAGE HEALTHCARE GROUP LTD,"1,254.63",28/08/2014
Delivery Units,Childrens Services,Other Agencies - Third Party Payment,10006896,ADVANTAGE HEALTHCARE GROUP LTD,"1,318.13",22/08/2014
Delivery Units,Childrens Services,Other Agencies - Third Party Payment,10006902,ADVANTAGE HEALTHCARE GROUP LTD,732.76,22/08/2014
Delivery Units,Childrens Services,Other Agencies - Third Party Payment,10005031,AJ'S ONLY,"2,472.00",01/08/2014
Delivery Units,Childrens Services,Other Agencies - Third Party Payment,10005120,ALERE CARE,"2,768.30",01/08/2014
Delivery Units,Childrens Services,Other Agencies - Third Party Payment,10003894,ANCHOR FOSTER CARE SERVICES LTD,"3,245.28",01/08/2014
Delivery Units,Childrens Services,Other Agencies - Third Party Payment,10005522,ANCHOR FOSTER CARE SERVICES LTD,"3,063.29",05/08/2014
Delivery Units,Childrens Services,Other Agencies - Third Party Payment,10005524,ANCHOR FOSTER CARE SERVICES LTD,"3,497.29",12/08/2014
Delivery Units,Childrens Services,Other Agencies - Third Party Payment,10005526,ANCHOR FOSTER CARE SERVICES LTD,"3,684.57",05/08/2014
Delivery Units,Childrens Services,Other Agencies - Third Party Payment,10004821,APPLE FOSTERING,531.44,05/08/2014
Delivery Units,Childrens Services,Other Agencies - Third Party Payment,10006160,APPLE FOSTERING,"3,432.32",28/08/2014
Delivery Units,Childrens Services,Other Agencies - Third Party Payment,10005529,ARCHWAY CARE LTD,"5,626.50",07/08/2014
Delivery Units,Childrens Services,Other Agencies - Third Party Payment,10005530,ARCHWAY CARE LTD,"2,452.80",07/08/2014
Delivery Units,Childrens Services,Other Agencies - Third Party Payment,10006700,ATLANTIC LODGE LTD,"3,587.01",19/08/2014
Delivery Units,Childrens Services,Other Agencies - Third Party Payment,10005742,BARNET CARERS CENTRE,"28,754.50",11/08/2014
Delivery Units,Childrens Services,Other Agencies - Third Party Payment,10005645,BARNET SUB-COMMITTEE PRE-SCHOOL,"22,778.15",06/08/2014
Delivery Units,Childrens Services,Other Agencies - Third Party Payment,10005215,BRAMLEY CARE LTD,"2,331.00",01/08/2014
Delivery Units,Childrens Services,Other Agencies - Third Party Payment,10007408,BRIGHTER FUTURES FOSTERCARE,"3,113.29",28/08/2014
Delivery Units,Childrens Services,Other Agencies - Third Party Payment,10006828,BROADFIELDS PLAYSCHEME,"3,520.00",21/08/2014
Delivery Units,Childrens Services,Other Agencies - Third Party Payment,10004817,CALDECOTT FOSTERING LTD,"3,686.33",04/08/2014
Delivery Units,Childrens Services,Other Agencies - Third Party Payment,10004818,CALDECOTT FOSTERING LTD,"4,428.57",04/08/2014
Delivery Units,Childrens Services,Other Agencies - Third Party Payment,10006981,CALDECOTT FOSTERING LTD,"4,428.57",28/08/2014
Delivery Units,Childrens Services,Other Agencies - Third Party Payment,10006982,CALDECOTT FOSTERING LTD,"3,687.33",28/08/2014
Delivery Units,Childrens Services,Other Agencies - Third Party Payment,10007416,CAPSTONE FOSTER CARE (SOUTH) LTD,"3,250.66",28/08/2014
Delivery Units,Childrens Services,Other Agencies - Third Party Payment,10007417,CAPSTONE FOSTER CARE (SOUTH) LTD,"4,136.33",28/08/2014
Delivery Units,Childrens Services,Other Agencies - Third Party Payment,10007418,CAPSTONE FOSTER CARE (SOUTH) LTD,"3,317.00",28/08/2014
Delivery Units,Childrens Services,Other Agencies - Third Party Payment,10005891,CARE AFLOAT LIMITED,866.67,12/08/2014
Delivery Units,Childrens Services,Other Agencies - Third Party Payment,10007539,CARE AFLOAT LIMITED,866.67,29/08/2014
Delivery Units,Childrens Services,Other Agencies - Third Party Payment,10006653,CHILDREN FIRST FOSTERING AGENCY LTD,"1,152.36",18/08/2014
Delivery Units,Childrens Services,Other Agencies - Third Party Payment,10006654,CHILDREN FIRST FOSTERING AGENCY LTD,"1,296.00",18/08/2014
Delivery Units,Childrens Services,Other Agencies - Third Party Payment,10006655,CHILDREN FIRST FOSTERING AGENCY LTD,"5,181.34",18/08/2014
Delivery Units,Childrens Services,Other Agencies - Third Party Payment,10005333,CHILDREN OF COLOUR LTD,"1,485.71",04/08/2014
Delivery Units,Childrens Services,Other Agencies - Third Party Payment,10005334,CHILDREN OF COLOUR LTD,"1,485.71",04/08/2014
Delivery Units,Childrens Services,Other Agencies - Third Party Payment,10005336,CHILDREN OF COLOUR LTD,"1,619.43",04/08/2014
Delivery Units,Childrens Services,Other Agencies - Third Party Payment,10006649,CHILDREN OF COLOUR LTD,"2,057.14",18/08/2014
Delivery Units,Childrens Services,Other Agencies - Third Party Payment,10006651,CHILDREN OF COLOUR LTD,"2,057.14",18/08/2014
Delivery Units,Childrens Services,Other Agencies - Third Party Payment,10006652,CHILDREN OF COLOUR LTD,"2,242.29",18/08/2014
Delivery Units,Childrens Services,Other Agencies - Third Party Payment,10007534,CHILDREN OF COLOUR LTD,"2,117.71",29/08/2014
Delivery Units,Childrens Services,Other Agencies - Third Party Payment,10007536,CHILDREN OF COLOUR LTD,"1,942.86",29/08/2014
Delivery Units,Childrens Services,Other Agencies - Third Party Payment,10007537,CHILDREN OF COLOUR LTD,"1,942.86",29/08/2014
Delivery Units,Childrens Services,Other Agencies - Third Party Payment,10005644,COMMUNITY BARNET,"3,241.36",06/08/2014
Delivery Units,Childrens Services,Other Agencies - Third Party Payment,10005743,COMMUNITY BARNET,"9,800.91",11/08/2014
Delivery Units,Childrens Services,Other Agencies - Third Party Payment,10007022,COMMUNITY BARNET,"29,137.50",22/08/2014
Delivery Units,Childrens Services,Other Agencies - Third Party Payment,10005288,DIVERSE CARE UK LTD,"3,473.10",04/08/2014
Delivery Units,Childrens Services,Other Agencies - Third Party Payment,10005289,DIVERSE CARE UK LTD,"3,588.87",04/08/2014
Delivery Units,Childrens Services,Other Agencies - Third Party Payment,10005290,DIVERSE CARE UK LTD,"1,041.93",04/08/2014
Delivery Units,Childrens Services,Other Agencies - Third Party Payment,10005291,DIVERSE CARE UK LTD,"3,473.10",04/08/2014
Delivery Units,Childrens Services,Other Agencies - Third Party Payment,10005292,DIVERSE CARE UK LTD,"3,588.87",04/08/2014
Delivery Units,Childrens Services,Other Agencies - Third Party Payment,10006382,DIVERSE CARE UK LTD,"3,473.10",15/08/2014
Delivery Units,Childrens Services,Other Agencies - Third Party Payment,10006383,DIVERSE CARE UK LTD,"3,588.87",28/08/2014
Delivery Units,Childrens Services,Other Agencies - Third Party Payment,10006384,DIVERSE CARE UK LTD,"3,588.87",28/08/2014
Delivery Units,Childrens Services,Other Agencies - Third Party Payment,10005223,DYNAMIC PEOPLE LTD,691.6,01/08/2014
Delivery Units,Childrens Services,Other Agencies - Third Party Payment,10005224,DYNAMIC PEOPLE LTD,691.6,01/08/2014
Delivery Units,Childrens Services,Other Agencies - Third Party Payment,10005225,DYNAMIC PEOPLE LTD,708.89,01/08/2014
Delivery Units,Childrens Services,Other Agencies - Third Party Payment,10005226,DYNAMIC PEOPLE LTD,596.38,01/08/2014
Delivery Units,Childrens Services,Other Agencies - Third Party Payment,10005227,DYNAMIC PEOPLE LTD,511.92,01/08/2014
Delivery Units,Childrens Services,Other Agencies - Third Party Payment,10005878,DYNAMIC PEOPLE LTD,952.02,12/08/2014
Delivery Units,Childrens Services,Other Agencies - Third Party Payment,10006196,DYNAMIC PEOPLE LTD,691.6,14/08/2014
Delivery Units,Childrens Services,Other Agencies - Third Party Payment,10006243,DYNAMIC PEOPLE LTD,544.86,14/08/2014
Delivery Units,Childrens Services,Other Agencies - Third Party Payment,10007250,DYNAMIC PEOPLE LTD,614.12,27/08/2014
Delivery Units,Childrens Services,Other Agencies - Third Party Payment,10007251,DYNAMIC PEOPLE LTD,691.6,27/08/2014
Delivery Units,Childrens Services,Other Agencies - Third Party Payment,10005136,FAIR PLAY BARNET,"2,545.00",01/08/2014
Delivery Units,Childrens Services,Other Agencies - Third Party Payment,10005137,FAIR PLAY BARNET,"2,545.00",01/08/2014
Delivery Units,Childrens Services,Other Agencies - Third Party Payment,10005450,FAIR PLAY BARNET,"3,133.72",06/08/2014
Delivery Units,Childrens Services,Other Agencies - Third Party Payment,10005451,FAIR PLAY BARNET,"4,748.18",06/08/2014
Delivery Units,Childrens Services,Other Agencies - Third Party Payment,10005452,FAIR PLAY BARNET,592.2,06/08/2014
Delivery Units,Childrens Services,Other Agencies - Third Party Payment,10006150,FAIR PLAY BARNET,"47,076.00",14/08/2014
Delivery Units,Childrens Services,Other Agencies - Third Party Payment,10006920,FAIR PLAY BARNET,"2,932.00",22/08/2014
Delivery Units,Childrens Services,Other Agencies - Third Party Payment,10006921,FAIR PLAY BARNET,"1,525.00",22/08/2014
Delivery Units,Childrens Services,Other Agencies - Third Party Payment,10006922,FAIR PLAY BARNET,"9,414.00",22/08/2014
Delivery Units,Childrens Services,Other Agencies - Third Party Payment,10007253,FAIR PLAY BARNET,"4,707.00",26/08/2014
Delivery Units,Childrens Services,Other Agencies - Third Party Payment,10007254,FAIR PLAY BARNET,"2,225.75",26/08/2014
Delivery Units,Childrens Services,Other Agencies - Third Party Payment,10007255,FAIR PLAY BARNET,"3,009.00",26/08/2014
Delivery Units,Childrens Services,Other Agencies - Third Party Payment,10007400,FAMILIES FOSTERING LTD,"2,878.35",28/08/2014
Delivery Units,Childrens Services,Other Agencies - Third Party Payment,10005520,FOCUS ON FOSTERING LIMITED,"3,339.67",05/08/2014
Delivery Units,Childrens Services,Other Agencies - Third Party Payment,10005880,FOSTERING OPTIONS LTD,"3,309.87",13/08/2014
Delivery Units,Childrens Services,Other Agencies - Third Party Payment,10006392,FUNTIME HIRE LTD,"1,670.00",14/08/2014
Delivery Units,Childrens Services,Other Agencies - Third Party Payment,10005531,FUTURES FOR CHILDREN LTD,"3,344.90",05/08/2014
Delivery Units,Childrens Services,Other Agencies - Third Party Payment,10007533,FUTURES FOR CHILDREN LTD,"3,237.00",29/08/2014
Delivery Units,Childrens Services,Other Agencies - Third Party Payment,10006983,GREATER LONDON FOSTERING,"3,236.71",21/08/2014
Delivery Units,Childrens Services,Other Agencies - Third Party Payment,10006161,HILLCREST CARE LTD,"3,252.83",13/08/2014
Delivery Units,Childrens Services,Other Agencies - Third Party Payment,10006162,HILLCREST CARE LTD,"3,252.83",13/08/2014
Delivery Units,Childrens Services,Other Agencies - Third Party Payment,10006163,HILLCREST CARE LTD,"3,286.93",15/08/2014
Delivery Units,Childrens Services,Other Agencies - Third Party Payment,10006164,HILLCREST CARE LTD,"3,252.83",13/08/2014
Delivery Units,Childrens Services,Other Agencies - Third Party Payment,10007530,HILLCREST CARE LTD,"3,147.90",29/08/2014
Delivery Units,Childrens Services,Other Agencies - Third Party Payment,10006980,HORIZON FOSTERING SERVICES LTD,"3,255.00",21/08/2014
Delivery Units,Childrens Services,Other Agencies - Third Party Payment,10007272,HORIZON FOSTERING SERVICES LTD,"3,255.00",28/08/2014
Delivery Units,Childrens Services,Other Agencies - Third Party Payment,10005259,HOUSING PLUS LTD,"4,007.92",04/08/2014
Delivery Units,Childrens Services,Other Agencies - Third Party Payment,10005260,HOUSING PLUS LTD,"1,292.88",04/08/2014
Delivery Units,Childrens Services,Other Agencies - Third Party Payment,10005261,HOUSING PLUS LTD,"1,292.88",04/08/2014
Delivery Units,Childrens Services,Other Agencies - Third Party Payment,10005262,HOUSING PLUS LTD,"2,628.85",04/08/2014
Delivery Units,Childrens Services,Other Agencies - Third Party Payment,10006990,HYTHE HOUSE SUPPORT LTD,"4,144.04",28/08/2014
Delivery Units,Childrens Services,Other Agencies - Third Party Payment,10001584,INTEGRATED SERVICES PROGRAMME,"-1,483.44",28/08/2014
Delivery Units,Childrens Services,Other Agencies - Third Party Payment,10002771,INTEGRATED SERVICES PROGRAMME,"-1,798.70",28/08/2014
Delivery Units,Childrens Services,Other Agencies - Third Party Payment,10002772,INTEGRATED SERVICES PROGRAMME,"-1,798.70",28/08/2014
Delivery Units,Childrens Services,Other Agencies - Third Party Payment,10005362,INTEGRATED SERVICES PROGRAMME,"-3,699.36",28/08/2014
Delivery Units,Childrens Services,Other Agencies - Third Party Payment,10006946,INTEGRATED SERVICES PROGRAMME,"5,748.33",28/08/2014
Delivery Units,Childrens Services,Other Agencies - Third Party Payment,10006948,INTEGRATED SERVICES PROGRAMME,"5,575.88",28/08/2014
Delivery Units,Childrens Services,Other Agencies - Third Party Payment,10006949,INTEGRATED SERVICES PROGRAMME,"3,321.34",28/08/2014
Delivery Units,Childrens Services,Other Agencies - Third Party Payment,10006952,INTEGRATED SERVICES PROGRAMME,"5,460.96",28/08/2014
Delivery Units,Childrens Services,Other Agencies - Third Party Payment,10006954,INTEGRATED SERVICES PROGRAMME,"5,460.65",28/08/2014
Delivery Units,Childrens Services,Other Agencies - Third Party Payment,10006955,INTEGRATED SERVICES PROGRAMME,"4,603.50",28/08/2014
Delivery Units,Childrens Services,Other Agencies - Third Party Payment,10006957,INTEGRATED SERVICES PROGRAMME,"5,460.96",28/08/2014
Delivery Units,Childrens Services,Other Agencies - Third Party Payment,10006989,INTEGRATED SERVICES PROGRAMME,"2,642.40",28/08/2014
Delivery Units,Childrens Services,Other Agencies - Third Party Payment,10006938,INTERGRATED FOSTERING SERVICES LTD,"1,990.26",21/08/2014
Delivery Units,Childrens Services,Other Agencies - Third Party Payment,10006939,INTERGRATED FOSTERING SERVICES LTD,"3,427.67",21/08/2014
Delivery Units,Childrens Services,Other Agencies - Third Party Payment,10006940,INTERGRATED FOSTERING SERVICES LTD,"4,092.00",21/08/2014
Delivery Units,Childrens Services,Other Agencies - Third Party Payment,10006942,INTERGRATED FOSTERING SERVICES LTD,"3,431.39",22/08/2014
Delivery Units,Childrens Services,Other Agencies - Third Party Payment,10006944,INTERGRATED FOSTERING SERVICES LTD,"3,551.36",21/08/2014
Delivery Units,Childrens Services,Other Agencies - Third Party Payment,10006592,KEF,"1,800.00",18/08/2014
Delivery Units,Childrens Services,Other Agencies - Third Party Payment,10007461,LCS PARTNERSHIPS LTD,"3,312.90",29/08/2014
Delivery Units,Childrens Services,Other Agencies - Third Party Payment,10006992,LONDON BOROUGH OF HACKNEY,"4,457.40",21/08/2014
Delivery Units,Childrens Services,Other Agencies - Third Party Payment,10005483,METROPOLITAN SUPPORT TRUST,"11,488.38",05/08/2014
Delivery Units,Childrens Services,Other Agencies - Third Party Payment,10003245,NATIONAL FOSTERING AGENCY,"3,178.74",12/08/2014
Delivery Units,Childrens Services,Other Agencies - Third Party Payment,10006960,NATIONAL FOSTERING AGENCY,"5,305.34",28/08/2014
Delivery Units,Childrens Services,Other Agencies - Third Party Payment,10006961,NATIONAL FOSTERING AGENCY,"3,520.67",28/08/2014
Delivery Units,Childrens Services,Other Agencies - Third Party Payment,10006962,NATIONAL FOSTERING AGENCY,"3,299.33",28/08/2014
Delivery Units,Childrens Services,Other Agencies - Third Party Payment,10006963,NATIONAL FOSTERING AGENCY,"3,200.44",28/08/2014
Delivery Units,Childrens Services,Other Agencies - Third Party Payment,10006964,NATIONAL FOSTERING AGENCY,"1,809.31",28/08/2014
Delivery Units,Childrens Services,Other Agencies - Third Party Payment,10006965,NATIONAL FOSTERING AGENCY,"3,210.67",28/08/2014
Delivery Units,Childrens Services,Other Agencies - Third Party Payment,10006967,NATIONAL FOSTERING AGENCY,"5,221.33",28/08/2014
Delivery Units,Childrens Services,Other Agencies - Third Party Payment,10006968,NATIONAL FOSTERING AGENCY,"1,553.55",28/08/2014
Delivery Units,Childrens Services,Other Agencies - Third Party Payment,10006970,NATIONAL FOSTERING AGENCY,"3,210.67",28/08/2014
Delivery Units,Childrens Services,Other Agencies - Third Party Payment,10006971,NATIONAL FOSTERING AGENCY,"3,178.74",28/08/2014
Delivery Units,Childrens Services,Other Agencies - Third Party Payment,10006972,NATIONAL FOSTERING AGENCY,"3,105.27",28/08/2014
Delivery Units,Childrens Services,Other Agencies - Third Party Payment,10006973,NATIONAL FOSTERING AGENCY,"3,105.27",28/08/2014
Delivery Units,Childrens Services,Other Agencies - Third Party Payment,10007257,NATIONAL FOSTERING AGENCY,"1,860.00",28/08/2014
Delivery Units,Childrens Services,Other Agencies - Third Party Payment,10007123,NEO PROPERTIES (UK) LTD,"2,914.20",27/08/2014
Delivery Units,Childrens Services,Other Agencies - Third Party Payment,10007269,NEO PROPERTIES (UK) LTD,"2,914.20",29/08/2014
Delivery Units,Childrens Services,Other Agencies - Third Party Payment,10007270,NEO PROPERTIES (UK) LTD,"2,914.20",28/08/2014
Delivery Units,Childrens Services,Other Agencies - Third Party Payment,10007326,NEO PROPERTIES (UK) LTD,"2,914.20",28/08/2014
Delivery Units,Childrens Services,Other Agencies - Third Party Payment,10005338,NEXT STEP FOSTERING SERVICES LIMITE,"3,611.50",07/08/2014
Delivery Units,Childrens Services,Other Agencies - Third Party Payment,10005354,NEXT STEP FOSTERING SERVICES LIMITE,"3,430.77",12/08/2014
Delivery Units,Childrens Services,Other Agencies - Third Party Payment,10005356,NEXT STEP FOSTERING SERVICES LIMITE,"3,430.77",07/08/2014
Delivery Units,Childrens Services,Other Agencies - Third Party Payment,10007401,NEXUS FOSTERING LTD,"3,816.10",28/08/2014
Delivery Units,Childrens Services,Other Agencies - Third Party Payment,10006506,NOAH'S ARK HOSPICE,"2,710.73",18/08/2014
Delivery Units,Childrens Services,Other Agencies - Third Party Payment,10005493,PROTOCOL EDUCATION,800,12/08/2014
Delivery Units,Childrens Services,Other Agencies - Third Party Payment,10005494,PROTOCOL EDUCATION,600,14/08/2014
Delivery Units,Childrens Services,Other Agencies - Third Party Payment,10005495,PROTOCOL EDUCATION,800,15/08/2014
Delivery Units,Childrens Services,Other Agencies - Third Party Payment,10005058,PURPLE PEBBLES,925,04/08/2014
Delivery Units,Childrens Services,Other Agencies - Third Party Payment,10005059,PURPLE PEBBLES,925,04/08/2014
Delivery Units,Childrens Services,Other Agencies - Third Party Payment,10006393,PURPLE PEBBLES,"2,325.00",14/08/2014
Delivery Units,Childrens Services,Other Agencies - Third Party Payment,20010717,REDACTED - PERSONAL DATA,832.5,19/08/2014
Delivery Units,Childrens Services,Other Agencies - Third Party Payment,10007006,RESOURCES FOR AUTISM,"23,888.20",21/08/2014
Delivery Units,Childrens Services,Other Agencies - Third Party Payment,10005674,RYANCARE FOSTERING,"3,541.75",12/08/2014
Delivery Units,Childrens Services,Other Agencies - Third Party Payment,10006579,SAFE START FOUNDATION,"25,248.00",18/08/2014
Delivery Units,Childrens Services,Other Agencies - Third Party Payment,10007540,SAFE START FOUNDATION,"1,152.34",29/08/2014
Delivery Units,Childrens Services,Other Agencies - Third Party Payment,10006216,SOLACE WOMEN'S AID,"26,910.65",13/08/2014
Delivery Units,Childrens Services,Other Agencies - Third Party Payment,10007256,SOLACE WOMEN'S AID,"2,475.00",26/08/2014
Delivery Units,Childrens Services,Other Agencies - Third Party Payment,10005499,ST CHRISTOPHER'S FELLOWSHIP,"4,580.00",07/08/2014
Delivery Units,Childrens Services,Other Agencies - Third Party Payment,10005673,ST CHRISTOPHER'S FELLOWSHIP,"3,680.00",07/08/2014
Delivery Units,Childrens Services,Other Agencies - Third Party Payment,10007128,STONE LODGE HOTELS,900,27/08/2014
Delivery Units,Childrens Services,Other Agencies - Third Party Payment,10007129,STONE LODGE HOTELS,930,27/08/2014
Delivery Units,Childrens Services,Other Agencies - Third Party Payment,10005118,SUNBEAM FOSTERING AGENCY LTD,"3,033.64",01/08/2014
Delivery Units,Childrens Services,Other Agencies - Third Party Payment,10005119,SUNBEAM FOSTERING AGENCY LTD,"3,034.29",01/08/2014
Delivery Units,Childrens Services,Other Agencies - Third Party Payment,10007410,SUNBEAM FOSTERING AGENCY LTD,"3,071.44",28/08/2014
Delivery Units,Childrens Services,Other Agencies - Third Party Payment,10007411,SUNBEAM FOSTERING AGENCY LTD,"3,134.76",28/08/2014
Delivery Units,Childrens Services,Other Agencies - Third Party Payment,10007412,SUNBEAM FOSTERING AGENCY LTD,"3,134.76",28/08/2014
Delivery Units,Childrens Services,Other Agencies - Third Party Payment,10007413,SUNBEAM FOSTERING AGENCY LTD,"3,134.76",28/08/2014
Delivery Units,Childrens Services,Other Agencies - Third Party Payment,10007414,SUNBEAM FOSTERING AGENCY LTD,"3,135.43",28/08/2014
Delivery Units,Childrens Services,Other Agencies - Third Party Payment,10007415,SUNBEAM FOSTERING AGENCY LTD,"3,166.43",28/08/2014
Delivery Units,Childrens Services,Other Agencies - Third Party Payment,10006984,SUPPORTED FOSTERING SERVICES,"4,161.26",21/08/2014
Delivery Units,Childrens Services,Other Agencies - Third Party Payment,10006985,SUPPORTED FOSTERING SERVICES,"4,161.26",21/08/2014
Delivery Units,Childrens Services,Other Agencies - Third Party Payment,10006986,SUPPORTED FOSTERING SERVICES,"3,329.02",21/08/2014
Delivery Units,Childrens Services,Other Agencies - Third Party Payment,10006987,SUPPORTED FOSTERING SERVICES,"3,329.02",21/08/2014
Delivery Units,Childrens Services,Other Agencies - Third Party Payment,10006988,SUPPORTED FOSTERING SERVICES,"3,329.02",21/08/2014
Delivery Units,Childrens Services,Other Agencies - Third Party Payment,10000474,THEMI CARE LTD,"-2,117.17",19/08/2014
Delivery Units,Childrens Services,Other Agencies - Third Party Payment,10003829,THEMI CARE LTD,"-1,735.80",20/08/2014
Delivery Units,Childrens Services,Other Agencies - Third Party Payment,10003831,THEMI CARE LTD,"-1,287.07",20/08/2014
Delivery Units,Childrens Services,Other Agencies - Third Party Payment,10005111,THEMI CARE LTD,"1,482.90",01/08/2014
Delivery Units,Childrens Services,Other Agencies - Third Party Payment,10005113,THEMI CARE LTD,"3,642.90",01/08/2014
Delivery Units,Childrens Services,Other Agencies - Third Party Payment,10005114,THEMI CARE LTD,"-1,220.00",19/08/2014
Delivery Units,Childrens Services,Other Agencies - Third Party Payment,10006395,THEMI CARE LTD,"1,383.06",15/08/2014
Delivery Units,Childrens Services,Other Agencies - Third Party Payment,10006400,THEMI CARE LTD,"1,532.33",15/08/2014
Delivery Units,Childrens Services,Other Agencies - Third Party Payment,10006401,THEMI CARE LTD,"3,454.33",14/08/2014
Delivery Units,Childrens Services,Other Agencies - Third Party Payment,10006402,THEMI CARE LTD,"3,454.33",15/08/2014
Delivery Units,Childrens Services,Other Agencies - Third Party Payment,10006405,THEMI CARE LTD,"3,454.33",15/08/2014
Delivery Units,Childrens Services,Other Agencies - Third Party Payment,10006406,THEMI CARE LTD,"1,532.33",15/08/2014
Delivery Units,Childrens Services,Other Agencies - Third Party Payment,10006407,THEMI CARE LTD,"3,454.33",15/08/2014
Delivery Units,Childrens Services,Other Agencies - Third Party Payment,10006408,THEMI CARE LTD,"3,454.33",14/08/2014
Delivery Units,Childrens Services,Other Agencies - Third Party Payment,10006409,THEMI CARE LTD,"2,041.66",15/08/2014
Delivery Units,Childrens Services,Other Agencies - Third Party Payment,10006411,THEMI CARE LTD,"3,454.33",14/08/2014
Delivery Units,Childrens Services,Other Agencies - Third Party Payment,10006412,THEMI CARE LTD,"1,235.75",22/08/2014
Delivery Units,Childrens Services,Other Agencies - Third Party Payment,10006709,THEMI CARE LTD,"3,885.76",19/08/2014
Delivery Units,Childrens Services,Other Agencies - Third Party Payment,10006710,THEMI CARE LTD,"4,345.77",20/08/2014
Delivery Units,Childrens Services,Other Agencies - Third Party Payment,10007119,THEMI CARE LTD,"1,071.30",27/08/2014
Delivery Units,Childrens Services,Other Agencies - Third Party Payment,10007258,THEMI CARE LTD,"1,532.33",27/08/2014
Delivery Units,Childrens Services,Other Agencies - Third Party Payment,10007262,THEMI CARE LTD,"1,532.33",26/08/2014
Delivery Units,Childrens Services,Other Agencies - Third Party Payment,10007263,THEMI CARE LTD,"3,454.33",27/08/2014
Delivery Units,Childrens Services,Other Agencies - Third Party Payment,10007264,THEMI CARE LTD,"3,454.33",26/08/2014
Delivery Units,Childrens Services,Other Agencies - Third Party Payment,10007265,THEMI CARE LTD,"3,454.33",26/08/2014
Delivery Units,Childrens Services,Other Agencies - Third Party Payment,10007266,THEMI CARE LTD,"3,454.33",26/08/2014
Delivery Units,Childrens Services,Other Agencies - Third Party Payment,10005518,TIME FOR CHILDREN LTD,"3,100.00",13/08/2014
Delivery Units,Childrens Services,Other Agencies - Third Party Payment,10007535,TIME FOR CHILDREN LTD,"1,700.00",29/08/2014
Delivery Units,Childrens Services,Other Agencies - Third Party Payment,10005444,WOODHOUSE ESTATES LTD,900,06/08/2014
Delivery Units,Childrens Services,Other Agencies - Third Party Payment,10005445,WOODHOUSE ESTATES LTD,930,06/08/2014
Delivery Units,Childrens Services,Other Agencies - Third Party Payment,10005446,WOODHOUSE ESTATES LTD,900,06/08/2014
Delivery Units,Childrens Services,Other Agencies - Third Party Payment,10006905,WOODHOUSE ESTATES LTD,900,22/08/2014
Delivery Units,Childrens Services,Other Agencies - Third Party Payment,10006907,WOODHOUSE ESTATES LTD,930,22/08/2014
Delivery Units,Childrens Services,Other Agencies - Third Party Payment,10007329,WOODHOUSE ESTATES LTD,900,27/08/2014
Delivery Units,Childrens Services,Other Agencies - Third Party Payment,10007475,WOODHOUSE ESTATES LTD,930,28/08/2014
Delivery Units,Childrens Services,Other Agencies - Third Party Payment,10005589,XCEL 2000 FOSTERCARE SERVICES LTD,"3,538.43",06/08/2014
Delivery Units,Childrens Services,Other Agencies - Third Party Payment,20010409,YOUTH AT RISK (UK) LTD,8000,41863
Delivery Units,Childrens Services,Other Agencies - Third Party Payment,10006413,YOUTH JUSTICE BOARD,"4,740.00",15/08/2014
Delivery Units,Childrens Services,Other Agencies - Third Party Payment,10006414,YOUTH JUSTICE BOARD,790,15/08/2014
Delivery Units,Childrens Services,Other Agencies - Third Party Payment,10006415,YOUTH JUSTICE BOARD,"11,726.00",15/08/2014
Delivery Units,Childrens Services,Other Agencies - Third Party Payment,10006416,YOUTH JUSTICE BOARD,"4,740.00",15/08/2014
Delivery Units,Childrens Services,Other Agencies - Third Party Payment,10006417,YOUTH JUSTICE BOARD,"4,740.00",15/08/2014
Delivery Units,Childrens Services,Other Agencies - Third Party Payment,10006419,YOUTH JUSTICE BOARD,"1,264.00",15/08/2014
Delivery Units,Childrens Services,Other Establishments - Third Party Payment,10005902,16 TO 21 PROJECT LTD,"7,307.50",21/08/2014
Delivery Units,Childrens Services,Other Establishments - Third Party Payment,10005528,ADVANCED CHILDCARE LTD,"14,392.99",05/08/2014
Delivery Units,Childrens Services,Other Establishments - Third Party Payment,10007405,ADVANCED CHILDCARE LTD,"10,607.10",29/08/2014
Delivery Units,Childrens Services,Other Establishments - Third Party Payment,10007420,AMBITIOUS ABOUT AUTISM,"22,980.00",29/08/2014
Delivery Units,Childrens Services,Other Establishments - Third Party Payment,10007421,AMBITIOUS ABOUT AUTISM,"22,980.00",29/08/2014
Delivery Units,Childrens Services,Other Establishments - Third Party Payment,10007422,AMBITIOUS ABOUT AUTISM,"22,980.00",29/08/2014
Delivery Units,Childrens Services,Other Establishments - Third Party Payment,10007423,AMBITIOUS ABOUT AUTISM,"22,980.00",29/08/2014
Delivery Units,Childrens Services,Other Establishments - Third Party Payment,10007424,AMBITIOUS ABOUT AUTISM,"22,980.00",29/08/2014
Delivery Units,Childrens Services,Other Establishments - Third Party Payment,10007425,AMBITIOUS ABOUT AUTISM,"22,980.00",29/08/2014
Delivery Units,Childrens Services,Other Establishments - Third Party Payment,30025814,AREA 51 EDUCATION LTD,"1,688.39",20/08/2014
Delivery Units,Childrens Services,Other Establishments - Third Party Payment,10005448,ASEND,520,06/08/2014
Delivery Units,Childrens Services,Other Establishments - Third Party Payment,10006687,AUDITORY VERBAL UK,750,20/08/2014
Delivery Units,Childrens Services,Other Establishments - Third Party Payment,10006688,AUDITORY VERBAL UK,"1,500.00",20/08/2014
Delivery Units,Childrens Services,Other Establishments - Third Party Payment,30028471,BARNET & SOUTHGATE COLLEGE,"24,971.84",18/08/2014
Delivery Units,Childrens Services,Other Establishments - Third Party Payment,10007141,BNOS BEIS YAAKOV PRIMARY SCHOOL,"4,758.02",26/08/2014
Delivery Units,Childrens Services,Other Establishments - Third Party Payment,30025816,BSIX 6TH FORM COLLEGE,"1,583.33",20/08/2014
Delivery Units,Childrens Services,Other Establishments - Third Party Payment,10007001,CAMBIAN ASPERGER SYNDROME SERVICES,"43,430.33",28/08/2014
Delivery Units,Childrens Services,Other Establishments - Third Party Payment,10006994,CAMBIAN AUTISM SERVICES LTD,"44,873.92",28/08/2014
Delivery Units,Childrens Services,Other Establishments - Third Party Payment,10006995,CAMBIAN AUTISM SERVICES LTD,"21,317.40",28/08/2014
Delivery Units,Childrens Services,Other Establishments - Third Party Payment,10006997,CAMBIAN AUTISM SERVICES LTD,"63,123.31",28/08/2014
Delivery Units,Childrens Services,Other Establishments - Third Party Payment,10007404,CARE 2 SHARE LTD,"3,000.00",29/08/2014
Delivery Units,Childrens Services,Other Establishments - Third Party Payment,10005889,CARE AFLOAT LIMITED,"11,735.67",12/08/2014
Delivery Units,Childrens Services,Other Establishments - Third Party Payment,10006192,CARE AFLOAT LIMITED,"2,474.98",14/08/2014
Delivery Units,Childrens Services,Other Establishments - Third Party Payment,10007538,CARE AFLOAT LIMITED,"11,735.67",29/08/2014
Delivery Units,Childrens Services,Other Establishments - Third Party Payment,30028473,DERWEN COLLEGE,588.08,18/08/2014
Delivery Units,Childrens Services,Other Establishments - Third Party Payment,10006657,DIRECT CARE LTD,"10,268.64",18/08/2014
Delivery Units,Childrens Services,Other Establishments - Third Party Payment,10007406,DIRECT CARE LTD,"13,263.66",29/08/2014
Delivery Units,Childrens Services,Other Establishments - Third Party Payment,10007419,DIRECT CARE LTD,"14,346.45",29/08/2014
Delivery Units,Childrens Services,Other Establishments - Third Party Payment,30025818,DONCASTER COLLEGE,"3,158.75",20/08/2014
Delivery Units,Childrens Services,Other Establishments - Third Party Payment,30025819,ELFRIDA RATHBONE,"2,954.23",20/08/2014
Delivery Units,Childrens Services,Other Establishments - Third Party Payment,10005253,FAIRLEY HOUSE SCHOOL,"8,323.00",01/08/2014
Delivery Units,Childrens Services,Other Establishments - Third Party Payment,30025820,FARLEIGH FURTHER EDUCATION COLLEGE,"3,161.75",22/08/2014
Delivery Units,Childrens Services,Other Establishments - Third Party Payment,30025821,FOXES ACADEMY,"7,286.33",20/08/2014
Delivery Units,Childrens Services,Other Establishments - Third Party Payment,10004937,HAMPSTEAD FINE ARTS COLLEGE,"6,110.00",19/08/2014
Delivery Units,Childrens Services,Other Establishments - Third Party Payment,20010059,HAMPSTEAD SCHOOL,"9,663.00",01/08/2014
Delivery Units,Childrens Services,Other Establishments - Third Party Payment,30028478,HARROW COLLEGE,"5,379.50",18/08/2014
Delivery Units,Childrens Services,Other Establishments - Third Party Payment,10007051,HEARTWOOD RESIDENTIAL SERVICES LTD,"3,928.54",22/08/2014
Delivery Units,Childrens Services,Other Establishments - Third Party Payment,10007140,HENDON PREPARATORY SCHOOL,"5,125.82",26/08/2014
Delivery Units,Childrens Services,Other Establishments - Third Party Payment,30025824,HEREWARD COLLEGE,"3,239.17",20/08/2014
Delivery Units,Childrens Services,Other Establishments - Third Party Payment,30025825,HINWICK HALL,"4,021.22",20/08/2014
Delivery Units,Childrens Services,Other Establishments - Third Party Payment,10006167,INGLESIDE CHILDREN'S HOME LTD,"8,646.83",13/08/2014
Delivery Units,Childrens Services,Other Establishments - Third Party Payment,10005106,INSIGHTS ESC LTD,"14,573.44",01/08/2014
Delivery Units,Childrens Services,Other Establishments - Third Party Payment,10005107,INSIGHTS ESC LTD,"14,573.44",01/08/2014
Delivery Units,Childrens Services,Other Establishments - Third Party Payment,10005108,INSIGHTS ESC LTD,"16,338.38",01/08/2014
Delivery Units,Childrens Services,Other Establishments - Third Party Payment,10005109,INSIGHTS ESC LTD,"7,261.50",01/08/2014
Delivery Units,Childrens Services,Other Establishments - Third Party Payment,10005110,INSIGHTS ESC LTD,"14,573.44",01/08/2014
Delivery Units,Childrens Services,Other Establishments - Third Party Payment,10005153,INSIGHTS ESC LTD,"7,261.50",01/08/2014
Delivery Units,Childrens Services,Other Establishments - Third Party Payment,10002677,KEYS CHILD CARE LTD,"-5,028.54",28/08/2014
Delivery Units,Childrens Services,Other Establishments - Third Party Payment,10007459,KEYS CHILD CARE LTD,"11,071.34",28/08/2014
Delivery Units,Childrens Services,Other Establishments - Third Party Payment,10006708,KING ALFRED SCHOOL,"7,990.84",20/08/2014
Delivery Units,Childrens Services,Other Establishments - Third Party Payment,10007295,KING ALFRED SCHOOL,"6,356.35",27/08/2014
Delivery Units,Childrens Services,Other Establishments - Third Party Payment,10005359,KINGDOM CARE,"13,454.00",04/08/2014
Delivery Units,Childrens Services,Other Establishments - Third Party Payment,10006191,KISIMUL GROUP LTD,"75,820.33",13/08/2014
Delivery Units,Childrens Services,Other Establishments - Third Party Payment,30025826,LANGDON COLLEGE,"6,443.25",05/08/2014
Delivery Units,Childrens Services,Other Establishments - Third Party Payment,30028481,LANGDON COLLEGE,"6,443.25",22/08/2014
Delivery Units,Childrens Services,Other Establishments - Third Party Payment,10005533,LEEDS CITY COUNCIL,"21,750.00",05/08/2014
Delivery Units,Childrens Services,Other Establishments - Third Party Payment,10006977,LEEDS CITY COUNCIL,"5,800.00",21/08/2014
Delivery Units,Childrens Services,Other Establishments - Third Party Payment,10007336,MENORAH HIGH SCHOOL FOR GIRLS,"1,750.00",28/08/2014
Delivery Units,Childrens Services,Other Establishments - Third Party Payment,10007337,MENORAH HIGH SCHOOL FOR GIRLS,"5,185.63",28/08/2014
Delivery Units,Childrens Services,Other Establishments - Third Party Payment,10007338,MENORAH HIGH SCHOOL FOR GIRLS,"5,146.05",28/08/2014
Delivery Units,Childrens Services,Other Establishments - Third Party Payment,10007339,MENORAH HIGH SCHOOL FOR GIRLS,"1,750.00",28/08/2014
Delivery Units,Childrens Services,Other Establishments - Third Party Payment,20010424,MILL HILL COUNTY HIGH SCHOOL,"9,000.00",12/08/2014
Delivery Units,Childrens Services,Other Establishments - Third Party Payment,20010425,MILL HILL COUNTY HIGH SCHOOL,"9,452.78",12/08/2014
Delivery Units,Childrens Services,Other Establishments - Third Party Payment,20010464,MILL HILL COUNTY HIGH SCHOOL,"1,500.00",13/08/2014
Delivery Units,Childrens Services,Other Establishments - Third Party Payment,10006178,MUNTHAM HOUSE SCHOOL,"18,187.00",13/08/2014
Delivery Units,Childrens Services,Other Establishments - Third Party Payment,20008074,MUNTHAM HOUSE SCHOOL,"-2,625.00",13/08/2014
Delivery Units,Childrens Services,Other Establishments - Third Party Payment,20008075,MUNTHAM HOUSE SCHOOL,"-2,625.00",13/08/2014
Delivery Units,Childrens Services,Other Establishments - Third Party Payment,30028482,NATIONAL STAR COLLEGE,"6,523.25",18/08/2014
Delivery Units,Childrens Services,Other Establishments - Third Party Payment,10007004,NISAI VIRTUAL ACADEMY LIMITED,"1,725.00",22/08/2014
Delivery Units,Childrens Services,Other Establishments - Third Party Payment,30025828,NORTH HERTFORDSHIRE COLLEGE,"6,024.30",22/08/2014
Delivery Units,Childrens Services,Other Establishments - Third Party Payment,10005453,PIELD HEATH HOUSE SCHOOL,"12,687.00",06/08/2014
Delivery Units,Childrens Services,Other Establishments - Third Party Payment,10005454,PIELD HEATH HOUSE SCHOOL,"9,500.00",06/08/2014
Delivery Units,Childrens Services,Other Establishments - Third Party Payment,10005255,REDACTED - PERSONAL DATA,645,04/08/2014
Delivery Units,Childrens Services,Other Establishments - Third Party Payment,10005590,REDACTED - PERSONAL DATA,650,08/08/2014
Delivery Units,Childrens Services,Other Establishments - Third Party Payment,10005591,REDACTED - PERSONAL DATA,750,08/08/2014
Delivery Units,Childrens Services,Other Establishments - Third Party Payment,10005592,REDACTED - PERSONAL DATA,650,08/08/2014
Delivery Units,Childrens Services,Other Establishments - Third Party Payment,10005593,REDACTED - PERSONAL DATA,"1,520.00",06/08/2014
Delivery Units,Childrens Services,Other Establishments - Third Party Payment,10006911,REDACTED - PERSONAL DATA,520,22/08/2014
Delivery Units,Childrens Services,Other Establishments - Third Party Payment,10006912,REDACTED - PERSONAL DATA,"1,045.00",22/08/2014
Delivery Units,Childrens Services,Other Establishments - Third Party Payment,10006913,REDACTED - PERSONAL DATA,520,22/08/2014
Delivery Units,Childrens Services,Other Establishments - Third Party Payment,10006915,REDACTED - PERSONAL DATA,670,22/08/2014
Delivery Units,Childrens Services,Other Establishments - Third Party Payment,10007130,REDACTED - PERSONAL DATA,"1,540.00",26/08/2014
Delivery Units,Childrens Services,Other Establishments - Third Party Payment,10007323,REDACTED - PERSONAL DATA,520,27/08/2014
Delivery Units,Childrens Services,Other Establishments - Third Party Payment,10007334,REDACTED - PERSONAL DATA,825,28/08/2014
Delivery Units,Childrens Services,Other Establishments - Third Party Payment,10007481,REDACTED - PERSONAL DATA,600,29/08/2014
Delivery Units,Childrens Services,Other Establishments - Third Party Payment,30025830,RUSKIN MILL COLLEGE,"5,720.75",20/08/2014
Delivery Units,Childrens Services,Other Establishments - Third Party Payment,10006185,SALCOMBE PREPARATORY SCHOOL,"5,704.41",14/08/2014
Delivery Units,Childrens Services,Other Establishments - Third Party Payment,10007166,SOUTHGATE & DISTRICT REFORM SYNAGOG,871.2,26/08/2014
